Body Name,Vendor Number,Vendor Name,Cost Centre,Service Label,BV Code,Amount,Period
Slough Borough Council,1869,3Ms Gold Services Limited,P006,Capital,Capital Charges,"2,277.15",Feb-23
Slough Borough Council,1869,3Ms Gold Services Limited,P006,Capital,Capital Charges,"5,412.94",Feb-23
Slough Borough Council,806901,4way Consulting Ltd,P209,Capital,Capital Charges,"3,638.98",Feb-23
Slough Borough Council,806901,4way Consulting Ltd,P240,Capital,Capital Charges,"1,757.70",Feb-23
Slough Borough Council,1055,A J Chapman,F123,Education & Inclusion,Supplies and Services,"3,042.00",Feb-23
Slough Borough Council,1055,A J Chapman,F123,Education & Inclusion,Supplies and Services,"1,236.00",Feb-23
Slough Borough Council,1055,A J Chapman,F123,Education & Inclusion,Supplies and Services,"3,211.00",Feb-23
Slough Borough Council,1055,A J Chapman,F123,Education & Inclusion,Supplies and Services,"1,043.00",Feb-23
Slough Borough Council,1055,A J Chapman,F123,Education & Inclusion,Supplies and Services,"1,581.00",Feb-23
Slough Borough Council,1055,A J Chapman,F123,Education & Inclusion,Supplies and Services,"1,566.00",Feb-23
Slough Borough Council,1055,A J Chapman,M50A,Place Operations,Transport,"2,289.00",Feb-23
Slough Borough Council,536,Ability Housing Association,M42E,Adult Social Care Operations,Supplies and Services,"2,010.66",Feb-23
Slough Borough Council,536,Ability Housing Association,M42E,Adult Social Care Operations,Supplies and Services,"2,585.50",Feb-23
Slough Borough Council,536,Ability Housing Association,M42E,Adult Social Care Operations,Supplies and Services,"2,911.51",Feb-23
Slough Borough Council,536,Ability Housing Association,M42E,Adult Social Care Operations,Supplies and Services,"2,670.66",Feb-23
Slough Borough Council,536,Ability Housing Association,M42E,Adult Social Care Operations,Supplies and Services,"1,350.66",Feb-23
Slough Borough Council,536,Ability Housing Association,M42E,Adult Social Care Operations,Supplies and Services,"3,224.21",Feb-23
Slough Borough Council,536,Ability Housing Association,M42E,Adult Social Care Operations,Supplies and Services,"2,862.28",Feb-23
Slough Borough Council,536,Ability Housing Association,M42E,Adult Social Care Operations,Supplies and Services,"3,023.04",Feb-23
Slough Borough Council,536,Ability Housing Association,M42E,Adult Social Care Operations,Supplies and Services,"3,490.51",Feb-23
Slough Borough Council,536,Ability Housing Association,M42E,Adult Social Care Operations,Supplies and Services,"2,788.84",Feb-23
Slough Borough Council,536,Ability Housing Association,M42E,Adult Social Care Operations,Supplies and Services,"2,895.29",Feb-23
Slough Borough Council,536,Ability Housing Association,M42E,Adult Social Care Operations,Supplies and Services,"2,852.71",Feb-23
Slough Borough Council,536,Ability Housing Association,M42E,Adult Social Care Operations,Supplies and Services,"2,682.39",Feb-23
Slough Borough Council,536,Ability Housing Association,M42E,Adult Social Care Operations,Supplies and Services,"1,532.71",Feb-23
Slough Borough Council,536,Ability Housing Association,M42E,Adult Social Care Operations,Supplies and Services,"2,835.72",Feb-23
Slough Borough Council,536,Ability Housing Association,M42E,Adult Social Care Operations,Supplies and Services,"1,967.08",Feb-23
Slough Borough Council,536,Ability Housing Association,M42E,Adult Social Care Operations,Supplies and Services,"3,261.53",Feb-23
Slough Borough Council,536,Ability Housing Association,M42E,Adult Social Care Operations,Supplies and Services,"2,861.27",Feb-23
Slough Borough Council,536,Ability Housing Association,M42E,Adult Social Care Operations,Supplies and Services,"2,861.27",Feb-23
Slough Borough Council,536,Ability Housing Association,M42E,Adult Social Care Operations,Supplies and Services,"2,774.78",Feb-23
Slough Borough Council,536,Ability Housing Association,M42E,Adult Social Care Operations,Supplies and Services,"2,787.88",Feb-23
Slough Borough Council,536,Ability Housing Association,M44E,Adult Social Care Operations,Supplies and Services,"1,924.65",Feb-23
Slough Borough Council,536,Ability Housing Association,M44E,Adult Social Care Operations,Supplies and Services,"1,997.04",Feb-23
Slough Borough Council,536,Ability Housing Association,M44E,Adult Social Care Operations,Supplies and Services,"2,354.72",Feb-23
Slough Borough Council,536,Ability Housing Association,M44E,Adult Social Care Operations,Supplies and Services,"2,439.88",Feb-23
Slough Borough Council,2898,Achieve Together t/a The Regard Partnership Ltd,M26E,Adult Social Care Operations,Supplies and Services,"7,231.77",Feb-23
Slough Borough Council,2898,Achieve Together t/a The Regard Partnership Ltd,M26E,Adult Social Care Operations,Supplies and Services,"5,910.73",Feb-23
Slough Borough Council,2898,Achieve Together t/a The Regard Partnership Ltd,M26E,Adult Social Care Operations,Supplies and Services,"6,793.20",Feb-23
Slough Borough Council,2898,Achieve Together t/a The Regard Partnership Ltd,M26E,Adult Social Care Operations,Supplies and Services,"5,737.36",Feb-23
Slough Borough Council,2898,Achieve Together t/a The Regard Partnership Ltd,M26E,Adult Social Care Operations,Supplies and Services,"7,521.04",Feb-23
Slough Borough Council,2898,Achieve Together t/a The Regard Partnership Ltd,M26E,Adult Social Care Operations,Supplies and Services,"6,352.08",Feb-23
Slough Borough Council,2898,Achieve Together t/a The Regard Partnership Ltd,M42E,Adult Social Care Operations,Supplies and Services,"5,028.52",Feb-23
Slough Borough Council,2898,Achieve Together t/a The Regard Partnership Ltd,M42E,Adult Social Care Operations,Supplies and Services,"4,818.28",Feb-23
Slough Borough Council,2898,Achieve Together t/a The Regard Partnership Ltd,M42E,Adult Social Care Operations,Supplies and Services,"6,125.20",Feb-23
Slough Borough Council,2898,Achieve Together t/a The Regard Partnership Ltd,M42E,Adult Social Care Operations,Supplies and Services,"6,334.52",Feb-23
Slough Borough Council,2898,Achieve Together t/a The Regard Partnership Ltd,M42E,Adult Social Care Operations,Supplies and Services,"4,704.04",Feb-23
Slough Borough Council,2898,Achieve Together t/a The Regard Partnership Ltd,M42E,Adult Social Care Operations,Supplies and Services,"5,924.40",Feb-23
Slough Borough Council,2898,Achieve Together t/a The Regard Partnership Ltd,M42E,Adult Social Care Operations,Supplies and Services,"4,591.71",Feb-23
Slough Borough Council,2898,Achieve Together t/a The Regard Partnership Ltd,M42E,Adult Social Care Operations,Supplies and Services,"5,235.10",Feb-23
Slough Borough Council,2898,Achieve Together t/a The Regard Partnership Ltd,M42E,Adult Social Care Operations,Supplies and Services,"5,235.10",Feb-23
Slough Borough Council,2898,Achieve Together t/a The Regard Partnership Ltd,M42E,Adult Social Care Operations,Supplies and Services,"5,567.29",Feb-23
Slough Borough Council,2898,Achieve Together t/a The Regard Partnership Ltd,M42E,Adult Social Care Operations,Supplies and Services,"5,334.52",Feb-23
Slough Borough Council,2898,Achieve Together t/a The Regard Partnership Ltd,M42E,Adult Social Care Operations,Supplies and Services,"6,781.47",Feb-23
Slough Borough Council,2898,Achieve Together t/a The Regard Partnership Ltd,M42E,Adult Social Care Operations,Supplies and Services,"7,013.22",Feb-23
Slough Borough Council,2898,Achieve Together t/a The Regard Partnership Ltd,M42E,Adult Social Care Operations,Supplies and Services,"5,208.04",Feb-23
Slough Borough Council,2898,Achieve Together t/a The Regard Partnership Ltd,M42E,Adult Social Care Operations,Supplies and Services,"6,559.16",Feb-23
Slough Borough Council,2898,Achieve Together t/a The Regard Partnership Ltd,M44D,Adult Social Care Operations,Supplies and Services,"4,372.40",Feb-23
Slough Borough Council,2898,Achieve Together t/a The Regard Partnership Ltd,M44D,Adult Social Care Operations,Supplies and Services,"4,840.87",Feb-23
Slough Borough Council,2898,Achieve Together t/a The Regard Partnership Ltd,M44E,Adult Social Care Operations,Supplies and Services,"5,594.70",Feb-23
Slough Borough Council,2898,Achieve Together t/a The Regard Partnership Ltd,M44E,Adult Social Care Operations,Supplies and Services,"5,255.40",Feb-23
Slough Borough Council,2898,Achieve Together t/a The Regard Partnership Ltd,M44E,Adult Social Care Operations,Supplies and Services,"5,818.48",Feb-23
Slough Borough Council,807554,Acorn Care & Education Ltd,F558,Children & Families,Supplies and Services,"49,860.00",Feb-23
Slough Borough Council,808103,Actian Europe Limited,J160,Place Management,Supplies and Services,"38,055.98",Feb-23
Slough Borough Council,2185,Activate Learning,F558,Children & Families,Supplies and Services,"28,167.00",Feb-23
Slough Borough Council,2855,Advance Housing & Support Ltd,M42F,Adult Social Care Operations,Supplies and Services,"1,978.08",Feb-23
Slough Borough Council,2855,Advance Housing & Support Ltd,M42F,Adult Social Care Operations,Supplies and Services,"1,141.20",Feb-23
Slough Borough Council,2855,Advance Housing & Support Ltd,M42F,Adult Social Care Operations,Supplies and Services,760.80,Feb-23
Slough Borough Council,2855,Advance Housing & Support Ltd,M42F,Adult Social Care Operations,Supplies and Services,"1,217.28",Feb-23
Slough Borough Council,2855,Advance Housing & Support Ltd,M42F,Adult Social Care Operations,Supplies and Services,"1,673.76",Feb-23
Slough Borough Council,2135,Adventure Learning Childcare Limited,F909,Children & Families,Supplies and Services,"11,268.87",Feb-23
Slough Borough Council,1603,Advision Security Ltd,A07M,Mental Health Services,Premises,595.00,Feb-23
Slough Borough Council,805178,AFM Transport Limited,D880,Place Operations,Supplies and Services,"2,165.18",Feb-23
Slough Borough Council,805178,AFM Transport Limited,D880,Place Operations,Supplies and Services,"1,580.00",Feb-23
Slough Borough Council,2197,Altwood Housing Ltd,H205,Housing (People) Services,Supplies and Services,"2,325.00",Feb-23
Slough Borough Council,2197,Altwood Housing Ltd,H205,Housing (People) Services,Supplies and Services,930.00,Feb-23
Slough Borough Council,2197,Altwood Housing Ltd,H205,Housing (People) Services,Supplies and Services,930.00,Feb-23
Slough Borough Council,2197,Altwood Housing Ltd,H205,Housing (People) Services,Supplies and Services,930.00,Feb-23
Slough Borough Council,2197,Altwood Housing Ltd,H205,Housing (People) Services,Supplies and Services,930.00,Feb-23
Slough Borough Council,2197,Altwood Housing Ltd,H205,Housing (People) Services,Supplies and Services,930.00,Feb-23
Slough Borough Council,2197,Altwood Housing Ltd,H205,Housing (People) Services,Supplies and Services,"1,240.00",Feb-23
Slough Borough Council,2197,Altwood Housing Ltd,H205,Housing (People) Services,Supplies and Services,"1,705.00",Feb-23
Slough Borough Council,2197,Altwood Housing Ltd,H205,Housing (People) Services,Supplies and Services,"1,798.00",Feb-23
Slough Borough Council,2197,Altwood Housing Ltd,H205,Housing (People) Services,Supplies and Services,930.00,Feb-23
Slough Borough Council,2197,Altwood Housing Ltd,H205,Housing (People) Services,Supplies and Services,930.00,Feb-23
Slough Borough Council,2197,Altwood Housing Ltd,H205,Housing (People) Services,Supplies and Services,744.00,Feb-23
Slough Borough Council,86,Altwood Properties Ltd,H205,Housing (People) Services,Premises,"51,010.07",Feb-23
Slough Borough Council,807515,Always Growing Together Community Interest Company Limited,F909,Children & Families,Supplies and Services,"6,912.61",Feb-23
Slough Borough Council,808191,Ambrose Adrian Healthcare Ltd,M44E,Adult Social Care Operations,Supplies and Services,"3,800.00",Feb-23
Slough Borough Council,808191,Ambrose Adrian Healthcare Ltd,M44E,Adult Social Care Operations,Supplies and Services,"3,800.00",Feb-23
Slough Borough Council,808562,Andy Clements,F253,Children & Families,Agency Staff,"1,406.00",Feb-23
Slough Borough Council,808368,Anthony Toby Homes Trust,M26E,Adult Social Care Operations,Supplies and Services,"4,889.88",Feb-23
Slough Borough Council,808681,Anthroposophical Association,C322,Community,Premises,"5,200.00",Feb-23
Slough Borough Council,3137,Applegarth Care Home Ltd,M25C,Adult Social Care Operations,Supplies and Services,"3,200.00",Feb-23
Slough Borough Council,3137,Applegarth Care Home Ltd,M27C,Adult Social Care Operations,Supplies and Services,"1,125.00",Feb-23
Slough Borough Council,3137,Applegarth Care Home Ltd,M27C,Adult Social Care Operations,Supplies and Services,"3,780.00",Feb-23
Slough Borough Council,808415,APTUS EA LTD,H205,Housing (People) Services,Supplies and Services,"138,774.00",Feb-23
Slough Borough Council,3350,Arbour Vale School,E610,Children & Families,Supplies and Services,"449,338.36",Feb-23
Slough Borough Council,2073,Arc Preschool,F909,Children & Families,Supplies and Services,"9,304.62",Feb-23
Slough Borough Council,831,Argos Business Solutions Ltd,H055,Finance & Commercial,Supplies and Services,"11,659.75",Feb-23
Slough Borough Council,831,Argos Business Solutions Ltd,H055,Finance & Commercial,Supplies and Services,"8,508.55",Feb-23
Slough Borough Council,831,Argos Business Solutions Ltd,H055,Finance & Commercial,Supplies and Services,"7,932.30",Feb-23
Slough Borough Council,831,Argos Business Solutions Ltd,H055,Finance & Commercial,Supplies and Services,"29,197.75",Feb-23
Slough Borough Council,831,Argos Business Solutions Ltd,H055,Finance & Commercial,Supplies and Services,"19,593.30",Feb-23
Slough Borough Council,831,Argos Business Solutions Ltd,H055,Finance & Commercial,Supplies and Services,"19,593.20",Feb-23
Slough Borough Council,420,Ashburn Estate Agents,H205,Housing (People) Services,Premises,"124,101.00",Feb-23
Slough Borough Council,3666,Assisted Living South West,M26E,Adult Social Care Operations,Supplies and Services,"5,105.00",Feb-23
Slough Borough Council,3666,Assisted Living South West,M26E,Adult Social Care Operations,Supplies and Services,"6,778.96",Feb-23
Slough Borough Council,804324,Astoria Healthcare,M27F,Adult Social Care Operations,Supplies and Services,"3,990.00",Feb-23
Slough Borough Council,570,Atkins Limited,P187,Capital,Capital Charges,"11,030.00",Feb-23
Slough Borough Council,570,Atkins Limited,P240,Capital,Capital Charges,"9,000.00",Feb-23
Slough Borough Council,570,Atkins Limited,P235,Capital,Capital Charges,"7,269.53",Feb-23
Slough Borough Council,808330,Avison Young,P242,Capital,Capital Charges,"14,000.00",Feb-23
Slough Borough Council,3370,Baylis Court School,E610,Children & Families,Supplies and Services,"4,333.34",Feb-23
Slough Borough Council,1681,Bcq,B246,Governance,Supplies and Services,715.00,Feb-23
Slough Borough Council,1681,Bcq,B246,Governance,Supplies and Services,"3,371.00",Feb-23
Slough Borough Council,1681,Bcq,B246,Governance,Supplies and Services,"7,263.00",Feb-23
Slough Borough Council,1681,Bcq,B246,Governance,Supplies and Services,549.00,Feb-23
Slough Borough Council,1681,Bcq,B246,Governance,Supplies and Services,"26,219.00",Feb-23
Slough Borough Council,1681,Bcq,B246,Governance,Supplies and Services,697.00,Feb-23
Slough Borough Council,1681,Bcq,D610,Place Operations,Supplies and Services,"1,773.00",Feb-23
Slough Borough Council,1681,Bcq,D610,Place Operations,Supplies and Services,"1,560.00",Feb-23
Slough Borough Council,3208,Be Happy Pre School,F909,Children & Families,Supplies and Services,"11,019.49",Feb-23
Slough Borough Council,3208,Be Happy Pre School,F909,Children & Families,Supplies and Services,"7,118.26",Feb-23
Slough Borough Council,805539,Beech Haven Ltd,M27C,Adult Social Care Operations,Supplies and Services,"3,277.14",Feb-23
Slough Borough Council,609,Beechwood Secondary School,E610,Children & Families,Supplies and Services,"6,541.67",Feb-23
Slough Borough Council,612,Berkshire Healthcare Nhs Foundation Trust,A07M,Mental Health Services,Agency Staff,"3,766.25",Feb-23
Slough Borough Council,612,Berkshire Healthcare Nhs Foundation Trust,A07R,Adult Social Care Operations,Supplies and Services,"6,582.00",Feb-23
Slough Borough Council,612,Berkshire Healthcare Nhs Foundation Trust,A07R,Adult Social Care Operations,Supplies and Services,"6,582.00",Feb-23
Slough Borough Council,808148,BEST CHOICE CARE LTD,A07R,Adult Social Care Operations,Supplies and Services,507.56,Feb-23
Slough Borough Council,808148,BEST CHOICE CARE LTD,M44C,Adult Social Care Operations,Supplies and Services,542.64,Feb-23
Slough Borough Council,808148,BEST CHOICE CARE LTD,M44C,Adult Social Care Operations,Supplies and Services,"1,820.28",Feb-23
Slough Borough Council,808148,BEST CHOICE CARE LTD,M44C,Adult Social Care Operations,Supplies and Services,"1,225.00",Feb-23
Slough Borough Council,808148,BEST CHOICE CARE LTD,M44C,Adult Social Care Operations,Supplies and Services,"1,072.01",Feb-23
Slough Borough Council,808148,BEST CHOICE CARE LTD,M44C,Adult Social Care Operations,Supplies and Services,857.64,Feb-23
Slough Borough Council,808148,BEST CHOICE CARE LTD,M44C,Adult Social Care Operations,Supplies and Services,"1,085.01",Feb-23
Slough Borough Council,808148,BEST CHOICE CARE LTD,M44C,Adult Social Care Operations,Supplies and Services,918.99,Feb-23
Slough Borough Council,808148,BEST CHOICE CARE LTD,M44C,Adult Social Care Operations,Supplies and Services,743.87,Feb-23
Slough Borough Council,808148,BEST CHOICE CARE LTD,M44C,Adult Social Care Operations,Supplies and Services,590.76,Feb-23
Slough Borough Council,808148,BEST CHOICE CARE LTD,M44C,Adult Social Care Operations,Supplies and Services,"1,137.50",Feb-23
Slough Borough Council,808148,BEST CHOICE CARE LTD,M44D,Adult Social Care Operations,Supplies and Services,"2,415.00",Feb-23
Slough Borough Council,808148,BEST CHOICE CARE LTD,M44D,Adult Social Care Operations,Supplies and Services,"2,205.28",Feb-23
Slough Borough Council,808148,BEST CHOICE CARE LTD,M45C,Adult Social Care Operations,Supplies and Services,560.14,Feb-23
Slough Borough Council,808148,BEST CHOICE CARE LTD,M45C,Adult Social Care Operations,Supplies and Services,"2,012.64",Feb-23
Slough Borough Council,808148,BEST CHOICE CARE LTD,M45C,Adult Social Care Operations,Supplies and Services,805.15,Feb-23
Slough Borough Council,808148,BEST CHOICE CARE LTD,M45C,Adult Social Care Operations,Supplies and Services,962.68,Feb-23
Slough Borough Council,808148,BEST CHOICE CARE LTD,M48C,Adult Social Care Operations,Supplies and Services,630.00,Feb-23
Slough Borough Council,806987,Better Life Care Ltd,M44E,Adult Social Care Operations,Supplies and Services,"3,300.00",Feb-23
Slough Borough Council,1736,Bevan Brittan Llp,B082,Place Strategy & Infrastructure,Indirect Employee Expenses,"1,250.00",Feb-23
Slough Borough Council,1736,Bevan Brittan Llp,P242,Capital,Capital Charges,"1,250.00",Feb-23
Slough Borough Council,1736,Bevan Brittan Llp,P242,Capital,Capital Charges,"13,745.00",Feb-23
Slough Borough Council,808452,Black Swan International Limited,M25C,Adult Social Care Operations,Supplies and Services,"2,999.92",Feb-23
Slough Borough Council,808452,Black Swan International Limited,M25C,Adult Social Care Operations,Supplies and Services,"3,321.34",Feb-23
Slough Borough Council,803828,Blue Willow Day Nursery Ltd,F909,Children & Families,Supplies and Services,"21,852.39",Feb-23
Slough Borough Council,805160,Bouygues E&S FM UK Limited,K521,Business Services,Premises,"91,025.98",Feb-23
Slough Borough Council,805160,Bouygues E&S FM UK Limited,K521,Business Services,Premises,"15,290.22",Feb-23
Slough Borough Council,805160,Bouygues E&S FM UK Limited,K522,Business Services,Premises,"50,812.96",Feb-23
Slough Borough Council,805160,Bouygues E&S FM UK Limited,K523,Business Services,Premises,"50,804.37",Feb-23
Slough Borough Council,805160,Bouygues E&S FM UK Limited,K525,Business Services,Premises,"3,400.95",Feb-23
Slough Borough Council,805160,Bouygues E&S FM UK Limited,K522,Business Services,Supplies and Services,"7,367.90",Feb-23
Slough Borough Council,805160,Bouygues E&S FM UK Limited,B060,Business Services,Transport,"4,533.74",Feb-23
Slough Borough Council,805160,Bouygues E&S FM UK Limited,B060,Business Services,Transport,"6,081.50",Feb-23
Slough Borough Council,808575,Boxxe Limited,B342,Digital and Strategic IT,Capital Charges,"9,950.00",Feb-23
Slough Borough Council,2856,Brain Injury Rehabilitation Trust,M26E,Adult Social Care Operations,Supplies and Services,"5,613.57",Feb-23
Slough Borough Council,2856,Brain Injury Rehabilitation Trust,M27C,Adult Social Care Operations,Supplies and Services,"7,481.67",Feb-23
Slough Borough Council,805179,Braywood Tree Surgery Ltd,P220,Capital,Capital Charges,593.36,Feb-23
Slough Borough Council,949,British Parking Association,D123,Place Strategy & Infrastructure,Supplies and Services,"1,903.00",Feb-23
Slough Borough Council,620,Buckinghamshire County Council,D342,Place Operations,Supplies and Services,"7,564.53",Feb-23
Slough Borough Council,741,Bunnies Pre-School,F909,Children & Families,Supplies and Services,"3,458.38",Feb-23
Slough Borough Council,804448,Bupa Care Homes (ANS) Ltd,M15D,Adult Social Care Operations,Supplies and Services,"5,633.40",Feb-23
Slough Borough Council,804448,Bupa Care Homes (ANS) Ltd,M15D,Adult Social Care Operations,Supplies and Services,"6,428.57",Feb-23
Slough Borough Council,804448,Bupa Care Homes (ANS) Ltd,M15D,Adult Social Care Operations,Supplies and Services,"5,821.18",Feb-23
Slough Borough Council,804448,Bupa Care Homes (ANS) Ltd,M15D,Adult Social Care Operations,Supplies and Services,"6,642.86",Feb-23
Slough Borough Council,804448,Bupa Care Homes (ANS) Ltd,M15D,Adult Social Care Operations,Supplies and Services,"5,821.18",Feb-23
Slough Borough Council,804448,Bupa Care Homes (ANS) Ltd,M26E,Adult Social Care Operations,Supplies and Services,"7,285.71",Feb-23
Slough Borough Council,804448,Bupa Care Homes (ANS) Ltd,M26E,Adult Social Care Operations,Supplies and Services,"7,528.57",Feb-23
Slough Borough Council,804448,Bupa Care Homes (ANS) Ltd,M26E,Adult Social Care Operations,Supplies and Services,"7,528.57",Feb-23
Slough Borough Council,2675,Burnham Lodge Ltd,M17C,Adult Social Care Operations,Supplies and Services,"5,000.00",Feb-23
Slough Borough Council,2675,Burnham Lodge Ltd,M17C,Adult Social Care Operations,Supplies and Services,"5,535.71",Feb-23
Slough Borough Council,2675,Burnham Lodge Ltd,M17C,Adult Social Care Operations,Supplies and Services,"5,535.71",Feb-23
Slough Borough Council,2675,Burnham Lodge Ltd,M18C,Adult Social Care Operations,Supplies and Services,"4,563.24",Feb-23
Slough Borough Council,2675,Burnham Lodge Ltd,M18C,Adult Social Care Operations,Supplies and Services,"5,052.16",Feb-23
Slough Borough Council,808007,Cameron & Cooper Limited (The Beech House School),F462,Children & Families,Supplies and Services,"1,263.12",Feb-23
Slough Borough Council,808007,Cameron & Cooper Limited (The Beech House School),F462,Children & Families,Supplies and Services,"2,105.20",Feb-23
Slough Borough Council,623,Canon (Uk) Ltd,K059,Business Services,Supplies and Services,"9,601.12",Feb-23
Slough Borough Council,623,Canon (Uk) Ltd,K059,Business Services,Supplies and Services,647.79,Feb-23
Slough Borough Council,623,Canon (Uk) Ltd,K059,Business Services,Supplies and Services,"2,603.25",Feb-23
Slough Borough Council,623,Canon (Uk) Ltd,K059,Business Services,Supplies and Services,"1,007.09",Feb-23
Slough Borough Council,623,Canon (Uk) Ltd,K059,Business Services,Supplies and Services,"4,347.12",Feb-23
Slough Borough Council,807068,Capita Business Services Limited,H015,Finance & Commercial,Supplies and Services,"4,725.00",Feb-23
Slough Borough Council,807068,Capita Business Services Limited,H020,Finance & Commercial,Supplies and Services,"1,830.00",Feb-23
Slough Borough Council,805717,Care Management Group Ltd,M26E,Adult Social Care Operations,Supplies and Services,"14,410.75",Feb-23
Slough Borough Council,805717,Care Management Group Ltd,M26E,Adult Social Care Operations,Supplies and Services,"14,410.75",Feb-23
Slough Borough Council,805717,Care Management Group Ltd,M26E,Adult Social Care Operations,Supplies and Services,"14,268.39",Feb-23
Slough Borough Council,805717,Care Management Group Ltd,M26E,Adult Social Care Operations,Supplies and Services,"14,744.00",Feb-23
Slough Borough Council,805717,Care Management Group Ltd,M26E,Adult Social Care Operations,Supplies and Services,"14,088.53",Feb-23
Slough Borough Council,805717,Care Management Group Ltd,M42F,Adult Social Care Operations,Supplies and Services,"1,864.59",Feb-23
Slough Borough Council,805621,Care Staff Services,A07R,Adult Social Care Operations,Supplies and Services,840.00,Feb-23
Slough Borough Council,805621,Care Staff Services,A07R,Adult Social Care Operations,Supplies and Services,"1,221.00",Feb-23
Slough Borough Council,805621,Care Staff Services,A07R,Adult Social Care Operations,Supplies and Services,582.75,Feb-23
Slough Borough Council,805621,Care Staff Services,A07R,Adult Social Care Operations,Supplies and Services,770.00,Feb-23
Slough Borough Council,805621,Care Staff Services,A07R,Adult Social Care Operations,Supplies and Services,647.50,Feb-23
Slough Borough Council,805621,Care Staff Services,A07R,Adult Social Care Operations,Supplies and Services,560.00,Feb-23
Slough Borough Council,805621,Care Staff Services,M44C,Adult Social Care Operations,Supplies and Services,"-1,838.16",Feb-23
Slough Borough Council,805621,Care Staff Services,M44C,Adult Social Care Operations,Supplies and Services,"1,575.00",Feb-23
Slough Borough Council,805621,Care Staff Services,M44C,Adult Social Care Operations,Supplies and Services,726.25,Feb-23
Slough Borough Council,805621,Care Staff Services,M44C,Adult Social Care Operations,Supplies and Services,923.13,Feb-23
Slough Borough Council,805621,Care Staff Services,M44C,Adult Social Care Operations,Supplies and Services,"2,205.00",Feb-23
Slough Borough Council,805621,Care Staff Services,M44C,Adult Social Care Operations,Supplies and Services,997.50,Feb-23
Slough Borough Council,805621,Care Staff Services,M44C,Adult Social Care Operations,Supplies and Services,525.00,Feb-23
Slough Borough Council,805621,Care Staff Services,M44C,Adult Social Care Operations,Supplies and Services,735.00,Feb-23
Slough Borough Council,805621,Care Staff Services,M44C,Adult Social Care Operations,Supplies and Services,"1,813.00",Feb-23
Slough Borough Council,805621,Care Staff Services,M44C,Adult Social Care Operations,Supplies and Services,518.00,Feb-23
Slough Borough Council,805621,Care Staff Services,M44C,Adult Social Care Operations,Supplies and Services,"1,165.50",Feb-23
Slough Borough Council,805621,Care Staff Services,M44C,Adult Social Care Operations,Supplies and Services,"1,102.50",Feb-23
Slough Borough Council,805621,Care Staff Services,M44C,Adult Social Care Operations,Supplies and Services,857.50,Feb-23
Slough Borough Council,805621,Care Staff Services,M44C,Adult Social Care Operations,Supplies and Services,721.50,Feb-23
Slough Borough Council,805621,Care Staff Services,M44C,Adult Social Care Operations,Supplies and Services,612.50,Feb-23
Slough Borough Council,805621,Care Staff Services,M44C,Adult Social Care Operations,Supplies and Services,726.25,Feb-23
Slough Borough Council,805621,Care Staff Services,M44C,Adult Social Care Operations,Supplies and Services,"1,221.00",Feb-23
Slough Borough Council,805621,Care Staff Services,M44C,Adult Social Care Operations,Supplies and Services,735.00,Feb-23
Slough Borough Council,805621,Care Staff Services,M44C,Adult Social Care Operations,Supplies and Services,"1,120.00",Feb-23
Slough Borough Council,805621,Care Staff Services,M44C,Adult Social Care Operations,Supplies and Services,"1,260.00",Feb-23
Slough Borough Council,805621,Care Staff Services,M44C,Adult Social Care Operations,Supplies and Services,"2,331.00",Feb-23
Slough Borough Council,805621,Care Staff Services,M44C,Adult Social Care Operations,Supplies and Services,897.25,Feb-23
Slough Borough Council,805621,Care Staff Services,M44C,Adult Social Care Operations,Supplies and Services,857.50,Feb-23
Slough Borough Council,805621,Care Staff Services,M44C,Adult Social Care Operations,Supplies and Services,525.00,Feb-23
Slough Borough Council,805621,Care Staff Services,M44C,Adult Social Care Operations,Supplies and Services,"1,085.00",Feb-23
Slough Borough Council,805621,Care Staff Services,M44C,Adult Social Care Operations,Supplies and Services,"1,102.50",Feb-23
Slough Borough Council,805621,Care Staff Services,M44C,Adult Social Care Operations,Supplies and Services,"1,960.00",Feb-23
Slough Borough Council,805621,Care Staff Services,M44C,Adult Social Care Operations,Supplies and Services,857.50,Feb-23
Slough Borough Council,805621,Care Staff Services,M44C,Adult Social Care Operations,Supplies and Services,777.00,Feb-23
Slough Borough Council,805621,Care Staff Services,M44C,Adult Social Care Operations,Supplies and Services,857.50,Feb-23
Slough Borough Council,805621,Care Staff Services,M44C,Adult Social Care Operations,Supplies and Services,"2,205.00",Feb-23
Slough Borough Council,805621,Care Staff Services,M44C,Adult Social Care Operations,Supplies and Services,647.50,Feb-23
Slough Borough Council,805621,Care Staff Services,M44C,Adult Social Care Operations,Supplies and Services,906.50,Feb-23
Slough Borough Council,805621,Care Staff Services,M44C,Adult Social Care Operations,Supplies and Services,"2,196.25",Feb-23
Slough Borough Council,805621,Care Staff Services,M44C,Adult Social Care Operations,Supplies and Services,805.00,Feb-23
Slough Borough Council,805621,Care Staff Services,M44C,Adult Social Care Operations,Supplies and Services,"2,664.00",Feb-23
Slough Borough Council,805621,Care Staff Services,M44C,Adult Social Care Operations,Supplies and Services,595.00,Feb-23
Slough Borough Council,805621,Care Staff Services,M44C,Adult Social Care Operations,Supplies and Services,"2,196.25",Feb-23
Slough Borough Council,805621,Care Staff Services,M44C,Adult Social Care Operations,Supplies and Services,752.50,Feb-23
Slough Borough Council,805621,Care Staff Services,M44C,Adult Social Care Operations,Supplies and Services,"1,137.50",Feb-23
Slough Borough Council,805621,Care Staff Services,M44C,Adult Social Care Operations,Supplies and Services,957.38,Feb-23
Slough Borough Council,805621,Care Staff Services,M44C,Adult Social Care Operations,Supplies and Services,"2,336.25",Feb-23
Slough Borough Council,805621,Care Staff Services,M44C,Adult Social Care Operations,Supplies and Services,"1,548.75",Feb-23
Slough Borough Council,805621,Care Staff Services,M44C,Adult Social Care Operations,Supplies and Services,"2,030.00",Feb-23
Slough Borough Council,805621,Care Staff Services,M44C,Adult Social Care Operations,Supplies and Services,821.40,Feb-23
Slough Borough Council,805621,Care Staff Services,M44C,Adult Social Care Operations,Supplies and Services,"1,813.00",Feb-23
Slough Borough Council,805621,Care Staff Services,M44D,Adult Social Care Operations,Supplies and Services,"1,165.50",Feb-23
Slough Borough Council,805621,Care Staff Services,M44D,Adult Social Care Operations,Supplies and Services,831.25,Feb-23
Slough Borough Council,805621,Care Staff Services,M44D,Adult Social Care Operations,Supplies and Services,945.00,Feb-23
Slough Borough Council,805621,Care Staff Services,M44D,Adult Social Care Operations,Supplies and Services,630.00,Feb-23
Slough Borough Council,805621,Care Staff Services,M44D,Adult Social Care Operations,Supplies and Services,"2,331.00",Feb-23
Slough Borough Council,805621,Care Staff Services,M44D,Adult Social Care Operations,Supplies and Services,"1,188.63",Feb-23
Slough Borough Council,805621,Care Staff Services,M44D,Adult Social Care Operations,Supplies and Services,"1,776.25",Feb-23
Slough Borough Council,805621,Care Staff Services,M44D,Adult Social Care Operations,Supplies and Services,"1,120.00",Feb-23
Slough Borough Council,805621,Care Staff Services,M44D,Adult Social Care Operations,Supplies and Services,619.75,Feb-23
Slough Borough Council,805621,Care Staff Services,M44D,Adult Social Care Operations,Supplies and Services,518.00,Feb-23
Slough Borough Council,805621,Care Staff Services,M44D,Adult Social Care Operations,Supplies and Services,832.50,Feb-23
Slough Borough Council,805621,Care Staff Services,M44F,Adult Social Care Operations,Supplies and Services,560.00,Feb-23
Slough Borough Council,805621,Care Staff Services,M44F,Adult Social Care Operations,Supplies and Services,"1,220.63",Feb-23
Slough Borough Council,805621,Care Staff Services,M44F,Adult Social Care Operations,Supplies and Services,740.00,Feb-23
Slough Borough Council,805621,Care Staff Services,M44F,Adult Social Care Operations,Supplies and Services,"1,207.50",Feb-23
Slough Borough Council,805621,Care Staff Services,M44F,Adult Social Care Operations,Supplies and Services,999.00,Feb-23
Slough Borough Council,805621,Care Staff Services,M44F,Adult Social Care Operations,Supplies and Services,560.00,Feb-23
Slough Borough Council,805621,Care Staff Services,M44F,Adult Social Care Operations,Supplies and Services,"2,590.00",Feb-23
Slough Borough Council,805621,Care Staff Services,M44F,Adult Social Care Operations,Supplies and Services,647.50,Feb-23
Slough Borough Council,805621,Care Staff Services,M44F,Adult Social Care Operations,Supplies and Services,666.00,Feb-23
Slough Borough Council,805621,Care Staff Services,M45C,Adult Social Care Operations,Supplies and Services,"2,205.00",Feb-23
Slough Borough Council,805621,Care Staff Services,M45C,Adult Social Care Operations,Supplies and Services,787.50,Feb-23
Slough Borough Council,805621,Care Staff Services,M45C,Adult Social Care Operations,Supplies and Services,"1,303.75",Feb-23
Slough Borough Council,805621,Care Staff Services,M45C,Adult Social Care Operations,Supplies and Services,"2,397.50",Feb-23
Slough Borough Council,805621,Care Staff Services,M45C,Adult Social Care Operations,Supplies and Services,"1,876.88",Feb-23
Slough Borough Council,805621,Care Staff Services,M45C,Adult Social Care Operations,Supplies and Services,656.25,Feb-23
Slough Borough Council,805621,Care Staff Services,M45C,Adult Social Care Operations,Supplies and Services,586.25,Feb-23
Slough Borough Council,805621,Care Staff Services,M45C,Adult Social Care Operations,Supplies and Services,"2,205.00",Feb-23
Slough Borough Council,805621,Care Staff Services,M45C,Adult Social Care Operations,Supplies and Services,857.50,Feb-23
Slough Borough Council,805621,Care Staff Services,M45C,Adult Social Care Operations,Supplies and Services,669.38,Feb-23
Slough Borough Council,805621,Care Staff Services,M45C,Adult Social Care Operations,Supplies and Services,660.63,Feb-23
Slough Borough Council,805621,Care Staff Services,M45C,Adult Social Care Operations,Supplies and Services,844.38,Feb-23
Slough Borough Council,805621,Care Staff Services,M45C,Adult Social Care Operations,Supplies and Services,700.00,Feb-23
Slough Borough Council,805621,Care Staff Services,M48C,Adult Social Care Operations,Supplies and Services,"1,960.00",Feb-23
Slough Borough Council,805621,Care Staff Services,M48C,Adult Social Care Operations,Supplies and Services,"1,032.50",Feb-23
Slough Borough Council,808149,Care Staff Services Support,M44F,Adult Social Care Operations,Supplies and Services,"2,002.25",Feb-23
Slough Borough Council,808149,Care Staff Services Support,M44F,Adult Social Care Operations,Supplies and Services,"5,415.17",Feb-23
Slough Borough Council,808149,Care Staff Services Support,M44F,Adult Social Care Operations,Supplies and Services,"4,828.83",Feb-23
Slough Borough Council,1910,Carousel Buses Ltd,D512,Place Strategy & Infrastructure,Supplies and Services,"2,970.35",Feb-23
Slough Borough Council,1910,Carousel Buses Ltd,D512,Place Strategy & Infrastructure,Supplies and Services,"3,843.16",Feb-23
Slough Borough Council,804413,Castle Water,B068,Business Services,Premises,"3,010.53",Feb-23
Slough Borough Council,804413,Castle Water,B068,Business Services,Premises,"3,039.92",Feb-23
Slough Borough Council,804413,Castle Water,B068,Business Services,Premises,"2,200.00",Feb-23
Slough Borough Council,418,Castleview School,E620,Children & Families,Supplies and Services,"42,824.06",Feb-23
Slough Borough Council,803560,Centennial Property Limited T/A Rent Connect,H205,Housing (People) Services,Premises,"38,717.00",Feb-23
Slough Borough Council,805619,Centennial Property Limited T/A The Housing Network,H205,Housing (People) Services,Premises,"51,705.00",Feb-23
Slough Borough Council,3609,Centurion Healthcare Ltd,M26E,Adult Social Care Operations,Supplies and Services,"6,031.67",Feb-23
Slough Borough Council,3609,Centurion Healthcare Ltd,M26E,Adult Social Care Operations,Supplies and Services,"5,447.96",Feb-23
Slough Borough Council,805174,Certas Energy,D900,Place Operations,Supplies and Services,"15,809.88",Feb-23
Slough Borough Council,805174,Certas Energy,D900,Place Operations,Supplies and Services,855.00,Feb-23
Slough Borough Council,2892,Chalfont Lodge,M15F,Adult Social Care Operations,Supplies and Services,"8,000.00",Feb-23
Slough Borough Council,2892,Chalfont Lodge,M26E,Adult Social Care Operations,Supplies and Services,"5,978.57",Feb-23
Slough Borough Council,2608,Chandos Lodge Nursing Home,M18C,Adult Social Care Operations,Supplies and Services,"3,600.00",Feb-23
Slough Borough Council,2174,Chartered Institute Of Environmental Health(Cieh),H253,Community,Salaries and Wages-Employees Expenses,984.00,Feb-23
Slough Borough Council,808500,Chartwell Care Services,M26E,Adult Social Care Operations,Supplies and Services,"11,761.72",Feb-23
Slough Borough Council,807017,Chelmsford Safety Supplies Ltd,D750,Place Operations,Supplies and Services,532.35,Feb-23
Slough Borough Council,1877,Chelsie Innes,C322,Community,Supplies and Services,"4,488.00",Feb-23
Slough Borough Council,3114,Cherry Trees Day Nursery,F909,Children & Families,Supplies and Services,540.00,Feb-23
Slough Borough Council,3114,Cherry Trees Day Nursery,F909,Children & Families,Supplies and Services,"26,273.52",Feb-23
Slough Borough Council,2871,Cherry Trees Residential Care,M42F,Adult Social Care Operations,Supplies and Services,"1,500.00",Feb-23
Slough Borough Council,808527,Chiron Care (Uk) Limited,M44F,Adult Social Care Operations,Supplies and Services,"3,002.04",Feb-23
Slough Borough Council,808527,Chiron Care (Uk) Limited,M44F,Adult Social Care Operations,Supplies and Services,"1,868.68",Feb-23
Slough Borough Council,808527,Chiron Care (Uk) Limited,M44F,Adult Social Care Operations,Supplies and Services,"3,002.04",Feb-23
Slough Borough Council,808527,Chiron Care (Uk) Limited,M44F,Adult Social Care Operations,Supplies and Services,"4,579.01",Feb-23
Slough Borough Council,808527,Chiron Care (Uk) Limited,M44F,Adult Social Care Operations,Supplies and Services,"1,868.68",Feb-23
Slough Borough Council,808527,Chiron Care (Uk) Limited,M44F,Adult Social Care Operations,Supplies and Services,"1,232.10",Feb-23
Slough Borough Council,808527,Chiron Care (Uk) Limited,M44F,Adult Social Care Operations,Supplies and Services,"2,464.20",Feb-23
Slough Borough Council,808527,Chiron Care (Uk) Limited,M44F,Adult Social Care Operations,Supplies and Services,"2,546.34",Feb-23
Slough Borough Council,808527,Chiron Care (Uk) Limited,M44F,Adult Social Care Operations,Supplies and Services,"1,642.80",Feb-23
Slough Borough Council,803495,Christchurch Court Ltd,M15D,Adult Social Care Operations,Supplies and Services,"8,322.64",Feb-23
Slough Borough Council,803405,Churchmead School,F552,Children & Families,Supplies and Services,"14,455.00",Feb-23
Slough Borough Council,803405,Churchmead School,F552,Children & Families,Supplies and Services,"13,798.00",Feb-23
Slough Borough Council,803405,Churchmead School,F552,Children & Families,Supplies and Services,"12,890.00",Feb-23
Slough Borough Council,1573,Cipfa Business Limited,B015,Finance & Commercial,Salaries and Wages,"1,462.50",Feb-23
Slough Borough Council,1573,Cipfa Business Limited,B015,Finance & Commercial,Supplies and Services,"13,748.40",Feb-23
Slough Borough Council,1573,Cipfa Business Limited,B015,Finance & Commercial,Supplies and Services,"1,372.00",Feb-23
Slough Borough Council,807491,Cippenham School,E620,Children & Families,Supplies and Services,"16,166.67",Feb-23
Slough Borough Council,808112,Citizen Advice Bureau Slough,A02C,Adult Social Care Commissioning,Supplies and Services,"30,000.00",Feb-23
Slough Borough Council,806550,City Homecare Ltd,A07R,Adult Social Care Operations,Supplies and Services,961.80,Feb-23
Slough Borough Council,806550,City Homecare Ltd,A07R,Adult Social Care Operations,Supplies and Services,"1,102.50",Feb-23
Slough Borough Council,806550,City Homecare Ltd,A07R,Adult Social Care Operations,Supplies and Services,"1,102.50",Feb-23
Slough Borough Council,806550,City Homecare Ltd,A07R,Adult Social Care Operations,Supplies and Services,"1,102.50",Feb-23
Slough Borough Council,806550,City Homecare Ltd,A07R,Adult Social Care Operations,Supplies and Services,686.88,Feb-23
Slough Borough Council,806550,City Homecare Ltd,A07R,Adult Social Care Operations,Supplies and Services,822.50,Feb-23
Slough Borough Council,806550,City Homecare Ltd,M41D,Adult Social Care Operations,Supplies and Services,612.50,Feb-23
Slough Borough Council,806550,City Homecare Ltd,M44C,Adult Social Care Operations,Supplies and Services,577.50,Feb-23
Slough Borough Council,806550,City Homecare Ltd,M44C,Adult Social Care Operations,Supplies and Services,"1,207.50",Feb-23
Slough Borough Council,806550,City Homecare Ltd,M44C,Adult Social Care Operations,Supplies and Services,660.63,Feb-23
Slough Borough Council,806550,City Homecare Ltd,M44C,Adult Social Care Operations,Supplies and Services,"1,942.50",Feb-23
Slough Borough Council,806550,City Homecare Ltd,M44C,Adult Social Care Operations,Supplies and Services,"1,347.50",Feb-23
Slough Borough Council,806550,City Homecare Ltd,M44C,Adult Social Care Operations,Supplies and Services,551.25,Feb-23
Slough Borough Council,806550,City Homecare Ltd,M44C,Adult Social Care Operations,Supplies and Services,"1,960.00",Feb-23
Slough Borough Council,806550,City Homecare Ltd,M44C,Adult Social Care Operations,Supplies and Services,"1,050.00",Feb-23
Slough Borough Council,806550,City Homecare Ltd,M44C,Adult Social Care Operations,Supplies and Services,"1,102.50",Feb-23
Slough Borough Council,806550,City Homecare Ltd,M44C,Adult Social Care Operations,Supplies and Services,"1,225.00",Feb-23
Slough Borough Council,806550,City Homecare Ltd,M44C,Adult Social Care Operations,Supplies and Services,"1,715.00",Feb-23
Slough Borough Council,806550,City Homecare Ltd,M44C,Adult Social Care Operations,Supplies and Services,"2,345.00",Feb-23
Slough Borough Council,806550,City Homecare Ltd,M44C,Adult Social Care Operations,Supplies and Services,"1,960.00",Feb-23
Slough Borough Council,806550,City Homecare Ltd,M44C,Adult Social Care Operations,Supplies and Services,735.00,Feb-23
Slough Borough Council,806550,City Homecare Ltd,M44C,Adult Social Care Operations,Supplies and Services,"1,102.50",Feb-23
Slough Borough Council,806550,City Homecare Ltd,M44C,Adult Social Care Operations,Supplies and Services,857.50,Feb-23
Slough Borough Council,806550,City Homecare Ltd,M44C,Adult Social Care Operations,Supplies and Services,"1,102.50",Feb-23
Slough Borough Council,806550,City Homecare Ltd,M44C,Adult Social Care Operations,Supplies and Services,"1,960.00",Feb-23
Slough Borough Council,806550,City Homecare Ltd,M44C,Adult Social Care Operations,Supplies and Services,857.50,Feb-23
Slough Borough Council,806550,City Homecare Ltd,M44C,Adult Social Care Operations,Supplies and Services,857.50,Feb-23
Slough Borough Council,806550,City Homecare Ltd,M44C,Adult Social Care Operations,Supplies and Services,980.00,Feb-23
Slough Borough Council,806550,City Homecare Ltd,M44C,Adult Social Care Operations,Supplies and Services,"1,470.00",Feb-23
Slough Borough Council,806550,City Homecare Ltd,M44C,Adult Social Care Operations,Supplies and Services,717.50,Feb-23
Slough Borough Council,806550,City Homecare Ltd,M44C,Adult Social Care Operations,Supplies and Services,612.50,Feb-23
Slough Borough Council,806550,City Homecare Ltd,M44C,Adult Social Care Operations,Supplies and Services,"1,102.50",Feb-23
Slough Borough Council,806550,City Homecare Ltd,M44C,Adult Social Care Operations,Supplies and Services,892.50,Feb-23
Slough Borough Council,806550,City Homecare Ltd,M44C,Adult Social Care Operations,Supplies and Services,"1,715.00",Feb-23
Slough Borough Council,806550,City Homecare Ltd,M44C,Adult Social Care Operations,Supplies and Services,"2,205.00",Feb-23
Slough Borough Council,806550,City Homecare Ltd,M44C,Adult Social Care Operations,Supplies and Services,"3,675.00",Feb-23
Slough Borough Council,806550,City Homecare Ltd,M44D,Adult Social Care Operations,Supplies and Services,966.00,Feb-23
Slough Borough Council,806550,City Homecare Ltd,M44D,Adult Social Care Operations,Supplies and Services,787.50,Feb-23
Slough Borough Council,806550,City Homecare Ltd,M44D,Adult Social Care Operations,Supplies and Services,717.50,Feb-23
Slough Borough Council,806550,City Homecare Ltd,M44D,Adult Social Care Operations,Supplies and Services,542.50,Feb-23
Slough Borough Council,806550,City Homecare Ltd,M44D,Adult Social Care Operations,Supplies and Services,980.00,Feb-23
Slough Borough Council,806550,City Homecare Ltd,M44D,Adult Social Care Operations,Supplies and Services,857.50,Feb-23
Slough Borough Council,806550,City Homecare Ltd,M44D,Adult Social Care Operations,Supplies and Services,"2,030.00",Feb-23
Slough Borough Council,806550,City Homecare Ltd,M44D,Adult Social Care Operations,Supplies and Services,"2,940.00",Feb-23
Slough Borough Council,806550,City Homecare Ltd,M44D,Adult Social Care Operations,Supplies and Services,980.00,Feb-23
Slough Borough Council,806550,City Homecare Ltd,M44D,Adult Social Care Operations,Supplies and Services,980.00,Feb-23
Slough Borough Council,806550,City Homecare Ltd,M44D,Adult Social Care Operations,Supplies and Services,"5,197.50",Feb-23
Slough Borough Council,806550,City Homecare Ltd,M44D,Adult Social Care Operations,Supplies and Services,"5,040.00",Feb-23
Slough Borough Council,806550,City Homecare Ltd,M44E,Adult Social Care Operations,Supplies and Services,630.00,Feb-23
Slough Borough Council,806550,City Homecare Ltd,M44E,Adult Social Care Operations,Supplies and Services,709.35,Feb-23
Slough Borough Council,806550,City Homecare Ltd,M44E,Adult Social Care Operations,Supplies and Services,708.40,Feb-23
Slough Borough Council,806550,City Homecare Ltd,M44E,Adult Social Care Operations,Supplies and Services,708.40,Feb-23
Slough Borough Council,806550,City Homecare Ltd,M44F,Adult Social Care Operations,Supplies and Services,665.00,Feb-23
Slough Borough Council,806550,City Homecare Ltd,M44F,Adult Social Care Operations,Supplies and Services,840.00,Feb-23
Slough Borough Council,806550,City Homecare Ltd,M44F,Adult Social Care Operations,Supplies and Services,875.00,Feb-23
Slough Borough Council,806550,City Homecare Ltd,M45C,Adult Social Care Operations,Supplies and Services,813.75,Feb-23
Slough Borough Council,806550,City Homecare Ltd,M45C,Adult Social Care Operations,Supplies and Services,"1,102.50",Feb-23
Slough Borough Council,806550,City Homecare Ltd,M45C,Adult Social Care Operations,Supplies and Services,"1,015.00",Feb-23
Slough Borough Council,806550,City Homecare Ltd,M45C,Adult Social Care Operations,Supplies and Services,748.13,Feb-23
Slough Borough Council,806550,City Homecare Ltd,M45C,Adult Social Care Operations,Supplies and Services,945.00,Feb-23
Slough Borough Council,806550,City Homecare Ltd,M48C,Adult Social Care Operations,Supplies and Services,568.75,Feb-23
Slough Borough Council,806550,City Homecare Ltd,M48C,Adult Social Care Operations,Supplies and Services,577.50,Feb-23
Slough Borough Council,806550,City Homecare Ltd,M48C,Adult Social Care Operations,Supplies and Services,857.50,Feb-23
Slough Borough Council,1083,Civica Uk Limited,J160,Place Management,Supplies and Services,"1,914.75",Feb-23
Slough Borough Council,1083,Civica Uk Limited,A106,Customer Services,Supplies and Services,"5,584.00",Feb-23
Slough Borough Council,1083,Civica Uk Limited,B342,Digital and Strategic IT,Supplies and Services,"119,144.00",Feb-23
Slough Borough Council,1151,Claycots Primary School,E200,Children & Families,Supplies and Services,"937,898.17",Feb-23
Slough Borough Council,3685,Coghlan Lodges Limited,M44D,Adult Social Care Operations,Supplies and Services,"2,116.04",Feb-23
Slough Borough Council,3685,Coghlan Lodges Limited,M44D,Adult Social Care Operations,Supplies and Services,"2,116.04",Feb-23
Slough Borough Council,3685,Coghlan Lodges Limited,M44F,Adult Social Care Operations,Supplies and Services,"1,870.00",Feb-23
Slough Borough Council,3685,Coghlan Lodges Limited,M44F,Adult Social Care Operations,Supplies and Services,"1,870.00",Feb-23
Slough Borough Council,459,Colliers Cre,J006,Place Management,Supplies and Services,"3,666.67",Feb-23
Slough Borough Council,286,Colnbrook C Of E Primary School,E620,Children & Families,Supplies and Services,"22,892.37",Feb-23
Slough Borough Council,2535,Comfort Care Services,M27C,Adult Social Care Operations,Supplies and Services,"3,032.56",Feb-23
Slough Borough Council,2535,Comfort Care Services,M42E,Adult Social Care Operations,Supplies and Services,"2,211.28",Feb-23
Slough Borough Council,2535,Comfort Care Services,M42E,Adult Social Care Operations,Supplies and Services,"2,100.00",Feb-23
Slough Borough Council,2535,Comfort Care Services,M42E,Adult Social Care Operations,Supplies and Services,"2,380.00",Feb-23
Slough Borough Council,2535,Comfort Care Services,M42E,Adult Social Care Operations,Supplies and Services,"2,316.60",Feb-23
Slough Borough Council,2535,Comfort Care Services,M42E,Adult Social Care Operations,Supplies and Services,"1,053.00",Feb-23
Slough Borough Council,2535,Comfort Care Services,M42E,Adult Social Care Operations,Supplies and Services,700.00,Feb-23
Slough Borough Council,2535,Comfort Care Services,M42E,Adult Social Care Operations,Supplies and Services,"1,053.00",Feb-23
Slough Borough Council,2535,Comfort Care Services,M42E,Adult Social Care Operations,Supplies and Services,842.40,Feb-23
Slough Borough Council,2535,Comfort Care Services,M42E,Adult Social Care Operations,Supplies and Services,"1,389.96",Feb-23
Slough Borough Council,2535,Comfort Care Services,M42E,Adult Social Care Operations,Supplies and Services,541.54,Feb-23
Slough Borough Council,2535,Comfort Care Services,M42E,Adult Social Care Operations,Supplies and Services,937.50,Feb-23
Slough Borough Council,2535,Comfort Care Services,M42E,Adult Social Care Operations,Supplies and Services,968.75,Feb-23
Slough Borough Council,2535,Comfort Care Services,M42F,Adult Social Care Operations,Supplies and Services,"1,474.20",Feb-23
Slough Borough Council,2535,Comfort Care Services,M42F,Adult Social Care Operations,Supplies and Services,"1,174.92",Feb-23
Slough Borough Council,2535,Comfort Care Services,M42F,Adult Social Care Operations,Supplies and Services,758.00,Feb-23
Slough Borough Council,2535,Comfort Care Services,M42F,Adult Social Care Operations,Supplies and Services,"2,380.00",Feb-23
Slough Borough Council,2535,Comfort Care Services,M42F,Adult Social Care Operations,Supplies and Services,"2,140.00",Feb-23
Slough Borough Council,2535,Comfort Care Services,M42F,Adult Social Care Operations,Supplies and Services,"2,380.00",Feb-23
Slough Borough Council,2535,Comfort Care Services,M42F,Adult Social Care Operations,Supplies and Services,"2,380.00",Feb-23
Slough Borough Council,2535,Comfort Care Services,M42F,Adult Social Care Operations,Supplies and Services,"3,517.00",Feb-23
Slough Borough Council,2535,Comfort Care Services,M42F,Adult Social Care Operations,Supplies and Services,"1,580.00",Feb-23
Slough Borough Council,2535,Comfort Care Services,M42F,Adult Social Care Operations,Supplies and Services,758.00,Feb-23
Slough Borough Council,2535,Comfort Care Services,M42F,Adult Social Care Operations,Supplies and Services,"2,380.00",Feb-23
Slough Borough Council,2535,Comfort Care Services,M42F,Adult Social Care Operations,Supplies and Services,758.00,Feb-23
Slough Borough Council,2535,Comfort Care Services,M42F,Adult Social Care Operations,Supplies and Services,909.60,Feb-23
Slough Borough Council,2535,Comfort Care Services,M42F,Adult Social Care Operations,Supplies and Services,"1,334.96",Feb-23
Slough Borough Council,2535,Comfort Care Services,M42F,Adult Social Care Operations,Supplies and Services,"2,380.00",Feb-23
Slough Borough Council,2535,Comfort Care Services,M42F,Adult Social Care Operations,Supplies and Services,"3,138.00",Feb-23
Slough Borough Council,2535,Comfort Care Services,M44E,Adult Social Care Operations,Supplies and Services,"1,934.40",Feb-23
Slough Borough Council,2535,Comfort Care Services,M44E,Adult Social Care Operations,Supplies and Services,"4,029.80",Feb-23
Slough Borough Council,2535,Comfort Care Services,M44E,Adult Social Care Operations,Supplies and Services,-580.93,Feb-23
Slough Borough Council,2535,Comfort Care Services,M44E,Adult Social Care Operations,Supplies and Services,-600.29,Feb-23
Slough Borough Council,2535,Comfort Care Services,M44F,Adult Social Care Operations,Supplies and Services,"1,705.52",Feb-23
Slough Borough Council,2535,Comfort Care Services,M44F,Adult Social Care Operations,Supplies and Services,"2,653.56",Feb-23
Slough Borough Council,2535,Comfort Care Services,M44F,Adult Social Care Operations,Supplies and Services,839.20,Feb-23
Slough Borough Council,2535,Comfort Care Services,M44F,Adult Social Care Operations,Supplies and Services,"1,190.00",Feb-23
Slough Borough Council,2535,Comfort Care Services,M44F,Adult Social Care Operations,Supplies and Services,"1,053.00",Feb-23
Slough Borough Council,2535,Comfort Care Services,M44F,Adult Social Care Operations,Supplies and Services,"3,138.00",Feb-23
Slough Borough Council,2535,Comfort Care Services,M44F,Adult Social Care Operations,Supplies and Services,"2,380.00",Feb-23
Slough Borough Council,2535,Comfort Care Services,M44F,Adult Social Care Operations,Supplies and Services,"2,990.52",Feb-23
Slough Borough Council,2535,Comfort Care Services,M44F,Adult Social Care Operations,Supplies and Services,"2,653.56",Feb-23
Slough Borough Council,2535,Comfort Care Services,M44F,Adult Social Care Operations,Supplies and Services,"1,190.00",Feb-23
Slough Borough Council,2535,Comfort Care Services,M44F,Adult Social Care Operations,Supplies and Services,"2,653.56",Feb-23
Slough Borough Council,2535,Comfort Care Services,M44F,Adult Social Care Operations,Supplies and Services,"1,579.65",Feb-23
Slough Borough Council,2535,Comfort Care Services,M44F,Adult Social Care Operations,Supplies and Services,"1,579.65",Feb-23
Slough Borough Council,2535,Comfort Care Services,M44F,Adult Social Care Operations,Supplies and Services,"1,528.69",Feb-23
Slough Borough Council,2535,Comfort Care Services,M44F,Adult Social Care Operations,Supplies and Services,"1,579.65",Feb-23
Slough Borough Council,2535,Comfort Care Services,M44F,Adult Social Care Operations,Supplies and Services,"1,528.69",Feb-23
Slough Borough Council,2535,Comfort Care Services,M81D,Adult Social Care Operations,Supplies and Services,"2,380.00",Feb-23
Slough Borough Council,2585,Comitted Care Services Limited,M26E,Adult Social Care Operations,Supplies and Services,"1,344.00",Feb-23
Slough Borough Council,2585,Comitted Care Services Limited,M26E,Adult Social Care Operations,Supplies and Services,"1,458.72",Feb-23
Slough Borough Council,2585,Comitted Care Services Limited,M26E,Adult Social Care Operations,Supplies and Services,"1,488.00",Feb-23
Slough Borough Council,2585,Comitted Care Services Limited,M26E,Adult Social Care Operations,Supplies and Services,"1,615.01",Feb-23
Slough Borough Council,2585,Comitted Care Services Limited,M42E,Adult Social Care Operations,Supplies and Services,"2,198.21",Feb-23
Slough Borough Council,2585,Comitted Care Services Limited,M42E,Adult Social Care Operations,Supplies and Services,"1,985.48",Feb-23
Slough Borough Council,2585,Comitted Care Services Limited,M26E,Adult Social Care Operations,External Receipts,-521.95,Feb-23
Slough Borough Council,804912,CommuniKate Ltd,M22D,Adult Social Care Operations,Supplies and Services,"1,454.10",Feb-23
Slough Borough Council,804912,CommuniKate Ltd,M22D,Adult Social Care Operations,Supplies and Services,"1,454.10",Feb-23
Slough Borough Council,804912,CommuniKate Ltd,M22D,Adult Social Care Operations,Supplies and Services,"1,454.10",Feb-23
Slough Borough Council,804912,CommuniKate Ltd,M22D,Adult Social Care Operations,Supplies and Services,"1,454.10",Feb-23
Slough Borough Council,804912,CommuniKate Ltd,M22D,Adult Social Care Operations,Supplies and Services,"1,454.10",Feb-23
Slough Borough Council,804912,CommuniKate Ltd,M22D,Adult Social Care Operations,Supplies and Services,"1,454.10",Feb-23
Slough Borough Council,804912,CommuniKate Ltd,M22D,Adult Social Care Operations,Supplies and Services,"1,454.10",Feb-23
Slough Borough Council,804912,CommuniKate Ltd,M22D,Adult Social Care Operations,Supplies and Services,"1,454.10",Feb-23
Slough Borough Council,3840,Community Housing And Therapy,M80F,Adult Social Care Operations,Supplies and Services,"2,615.51",Feb-23
Slough Borough Council,3840,Community Housing And Therapy,M80F,Adult Social Care Operations,Supplies and Services,"2,531.14",Feb-23
Slough Borough Council,3840,Community Housing And Therapy,M80F,Adult Social Care Operations,Supplies and Services,"2,615.51",Feb-23
Slough Borough Council,3840,Community Housing And Therapy,M80F,Adult Social Care Operations,Supplies and Services,"2,362.40",Feb-23
Slough Borough Council,807005,Complete Background Screening Ltd,B348,People,Supplies and Services,926.00,Feb-23
Slough Borough Council,807005,Complete Background Screening Ltd,B348,People,Supplies and Services,"1,070.00",Feb-23
Slough Borough Council,1772,Computershare Voucher Services,B348,People,Supplies and Services,"2,018.00",Feb-23
Slough Borough Council,807468,"Connect Managed Services (UK) Ltd, trading as Conn3ct",A106,Customer Services,Supplies and Services,"6,800.00",Feb-23
Slough Borough Council,806314,CONNECT SOFTWARE SOLUTIONS LIMITED,F150,Children & Families,Supplies and Services,"5,830.08",Feb-23
Slough Borough Council,806986,Converge Technology Ltd t/a GBE Converge,D320,Place Operations,Premises,570.00,Feb-23
Slough Borough Council,1480,Corona Energy Limited,K526,Business Services,Premises,"40,416.22",Feb-23
Slough Borough Council,1480,Corona Energy Limited,K526,Business Services,Premises,"1,318.54",Feb-23
Slough Borough Council,1480,Corona Energy Limited,K526,Business Services,Premises,"52,837.62",Feb-23
Slough Borough Council,1480,Corona Energy Limited,K526,Business Services,Premises,"47,214.47",Feb-23
Slough Borough Council,3290,Corporate Collections London Borough Of Hillingdon,M26E,Adult Social Care Operations,Supplies and Services,"1,540.98",Feb-23
Slough Borough Council,3290,Corporate Collections London Borough Of Hillingdon,M26E,Adult Social Care Operations,Supplies and Services,"1,632.40",Feb-23
Slough Borough Council,3290,Corporate Collections London Borough Of Hillingdon,M26E,Adult Social Care Operations,Supplies and Services,"1,632.40",Feb-23
Slough Borough Council,3290,Corporate Collections London Borough Of Hillingdon,M26E,Adult Social Care Operations,Supplies and Services,"1,632.40",Feb-23
Slough Borough Council,3290,Corporate Collections London Borough Of Hillingdon,M26E,Adult Social Care Operations,Supplies and Services,"1,632.40",Feb-23
Slough Borough Council,805278,Countrystyle Recycling Ltd,D342,Place Operations,Supplies and Services,"4,516.40",Feb-23
Slough Borough Council,805278,Countrystyle Recycling Ltd,D342,Place Operations,Supplies and Services,"5,867.80",Feb-23
Slough Borough Council,805278,Countrystyle Recycling Ltd,D342,Place Operations,Supplies and Services,"5,867.80",Feb-23
Slough Borough Council,805278,Countrystyle Recycling Ltd,D342,Place Operations,Supplies and Services,"2,525.00",Feb-23
Slough Borough Council,808737,COUNTY PRIVATE CLIENT LIMITED,H205,Housing (People) Services,Supplies and Services,"25,370.00",Feb-23
Slough Borough Council,251,Cox Green School,F552,Children & Families,Supplies and Services,"7,608.00",Feb-23
Slough Borough Council,3670,Craegmoor Birches Grove Priory,M27F,Adult Social Care Operations,Supplies and Services,"4,089.40",Feb-23
Slough Borough Council,1638,Creative Support Ltd,A02L,Adult Social Care Operations,Supplies and Services,"1,065.60",Feb-23
Slough Borough Council,1638,Creative Support Ltd,A02L,Adult Social Care Operations,Supplies and Services,"1,365.30",Feb-23
Slough Borough Council,1638,Creative Support Ltd,M42E,Adult Social Care Operations,Supplies and Services,"1,198.80",Feb-23
Slough Borough Council,1638,Creative Support Ltd,M42E,Adult Social Care Operations,Supplies and Services,"2,021.04",Feb-23
Slough Borough Council,1638,Creative Support Ltd,M42E,Adult Social Care Operations,Supplies and Services,"6,993.00",Feb-23
Slough Borough Council,1638,Creative Support Ltd,M42E,Adult Social Care Operations,Supplies and Services,"6,993.00",Feb-23
Slough Borough Council,1638,Creative Support Ltd,M42E,Adult Social Care Operations,Supplies and Services,"2,021.04",Feb-23
Slough Borough Council,1638,Creative Support Ltd,M42E,Adult Social Care Operations,Supplies and Services,"6,993.00",Feb-23
Slough Borough Council,1638,Creative Support Ltd,M42E,Adult Social Care Operations,Supplies and Services,"2,021.04",Feb-23
Slough Borough Council,1638,Creative Support Ltd,M42E,Adult Social Care Operations,Supplies and Services,"6,993.00",Feb-23
Slough Borough Council,1638,Creative Support Ltd,M42E,Adult Social Care Operations,Supplies and Services,"2,021.04",Feb-23
Slough Borough Council,1638,Creative Support Ltd,M42E,Adult Social Care Operations,Supplies and Services,"6,993.00",Feb-23
Slough Borough Council,1638,Creative Support Ltd,M42E,Adult Social Care Operations,Supplies and Services,"2,021.04",Feb-23
Slough Borough Council,1638,Creative Support Ltd,M42E,Adult Social Care Operations,Supplies and Services,"6,993.00",Feb-23
Slough Borough Council,1638,Creative Support Ltd,M44E,Adult Social Care Operations,Supplies and Services,699.30,Feb-23
Slough Borough Council,1638,Creative Support Ltd,M44E,Adult Social Care Operations,Supplies and Services,"1,465.20",Feb-23
Slough Borough Council,1638,Creative Support Ltd,M44E,Adult Social Care Operations,Supplies and Services,999.00,Feb-23
Slough Borough Council,1638,Creative Support Ltd,M44E,Adult Social Care Operations,Supplies and Services,932.40,Feb-23
Slough Borough Council,806900,CYXTERA TECHNOLOGY UK LIMITED,B282,Digital and Strategic IT,Supplies and Services,"20,188.90",Feb-23
Slough Borough Council,636,David John (Papers) Ltd,K059,Business Services,Supplies and Services,542.00,Feb-23
Slough Borough Council,808771,David Smith Associate,H235,Place Regulation,Supplies and Services,750.00,Feb-23
Slough Borough Council,2068,Dds Demolition,B490,Finance & Commercial,Premises,"-2,711.74",Feb-23
Slough Borough Council,2068,Dds Demolition,P242,Capital,Capital Charges,"92,243.65",Feb-23
Slough Borough Council,808612,Delta 4 Services Ltd,B377,Finance & Commercial,Supplies and Services,"5,000.00",Feb-23
Slough Borough Council,804903,Dennis Eagle Limited,D610,Place Operations,Supplies and Services,"22,464.72",Feb-23
Slough Borough Council,804903,Dennis Eagle Limited,D630,Place Operations,Supplies and Services,"2,117.04",Feb-23
Slough Borough Council,804903,Dennis Eagle Limited,D610,Place Operations,Supplies and Services,723.32,Feb-23
Slough Borough Council,3554,Dimensions (Uk) Ltd,M42E,Adult Social Care Operations,Supplies and Services,"7,783.97",Feb-23
Slough Borough Council,3554,Dimensions (Uk) Ltd,M42E,Adult Social Care Operations,Supplies and Services,"7,839.64",Feb-23
Slough Borough Council,3554,Dimensions (Uk) Ltd,M42E,Adult Social Care Operations,Supplies and Services,"7,489.87",Feb-23
Slough Borough Council,3554,Dimensions (Uk) Ltd,M42E,Adult Social Care Operations,Supplies and Services,"7,291.82",Feb-23
Slough Borough Council,3554,Dimensions (Uk) Ltd,M42E,Adult Social Care Operations,Supplies and Services,"5,849.00",Feb-23
Slough Borough Council,3554,Dimensions (Uk) Ltd,M42E,Adult Social Care Operations,Supplies and Services,"6,115.64",Feb-23
Slough Borough Council,3554,Dimensions (Uk) Ltd,M42E,Adult Social Care Operations,Supplies and Services,"7,479.24",Feb-23
Slough Borough Council,3554,Dimensions (Uk) Ltd,M42E,Adult Social Care Operations,Supplies and Services,"6,482.81",Feb-23
Slough Borough Council,3554,Dimensions (Uk) Ltd,M42E,Adult Social Care Operations,Supplies and Services,"6,151.69",Feb-23
Slough Borough Council,805483,Direct Tyre Managenent Ltd,D610,Place Operations,Transport,"5,500.73",Feb-23
Slough Borough Council,803306,Ditton Park Academy,E620,Children & Families,Supplies and Services,"33,736.53",Feb-23
Slough Borough Council,803306,Ditton Park Academy,B297,Finance & Commercial,Government Grants,"3,135.00",Feb-23
Slough Borough Council,1457,Dr Norman Gordon,D320,Place Operations,Premises,"2,524.46",Feb-23
Slough Borough Council,803177,Early Steps Preschool,F909,Children & Families,Supplies and Services,"15,490.64",Feb-23
Slough Borough Council,804924,Econ Engineering Limited,D880,Place Operations,Transport,"8,236.70",Feb-23
Slough Borough Council,804924,Econ Engineering Limited,D880,Place Operations,Transport,"7,439.60",Feb-23
Slough Borough Council,803301,Eden Girls School,E610,Children & Families,Supplies and Services,"4,708.33",Feb-23
Slough Borough Council,1299,Edf Energy,D413,Place Strategy & Infrastructure,Supplies and Services,"105,998.33",Feb-23
Slough Borough Council,803350,EDUFOCUS Ltd,B349,Customer,Supplies and Services,"4,999.00",Feb-23
Slough Borough Council,807001,Elegant Care Services Ltd,M42E,Adult Social Care Operations,Supplies and Services,"6,316.76",Feb-23
Slough Borough Council,807001,Elegant Care Services Ltd,M42E,Adult Social Care Operations,Supplies and Services,"5,408.00",Feb-23
Slough Borough Council,807001,Elegant Care Services Ltd,M42E,Adult Social Care Operations,Supplies and Services,"9,199.99",Feb-23
Slough Borough Council,807001,Elegant Care Services Ltd,M42E,Adult Social Care Operations,Supplies and Services,"5,615.99",Feb-23
Slough Borough Council,807001,Elegant Care Services Ltd,M44C,Adult Social Care Operations,Supplies and Services,"6,343.99",Feb-23
Slough Borough Council,806355,Elysium Healthcare,M26E,Adult Social Care Operations,Supplies and Services,"11,044.68",Feb-23
Slough Borough Council,806355,Elysium Healthcare,M26E,Adult Social Care Operations,Supplies and Services,"9,576.52",Feb-23
Slough Borough Council,808611,Emma Holmes,F253,Children & Families,Agency Staff,562.79,Feb-23
Slough Borough Council,3752,Endurance Health,A07R,Adult Social Care Operations,Supplies and Services,"1,615.44",Feb-23
Slough Borough Council,3752,Endurance Health,M44C,Adult Social Care Operations,Supplies and Services,"1,499.40",Feb-23
Slough Borough Council,3752,Endurance Health,M44C,Adult Social Care Operations,Supplies and Services,"1,124.55",Feb-23
Slough Borough Council,3752,Endurance Health,M44C,Adult Social Care Operations,Supplies and Services,"1,129.33",Feb-23
Slough Borough Council,3752,Endurance Health,M44C,Adult Social Care Operations,Supplies and Services,"2,249.10",Feb-23
Slough Borough Council,3752,Endurance Health,M44C,Adult Social Care Operations,Supplies and Services,999.60,Feb-23
Slough Borough Council,3752,Endurance Health,M44C,Adult Social Care Operations,Supplies and Services,"1,267.35",Feb-23
Slough Borough Council,3752,Endurance Health,M44C,Adult Social Care Operations,Supplies and Services,874.65,Feb-23
Slough Borough Council,3752,Endurance Health,M44C,Adult Social Care Operations,Supplies and Services,874.65,Feb-23
Slough Borough Council,3752,Endurance Health,M44C,Adult Social Care Operations,Supplies and Services,681.29,Feb-23
Slough Borough Council,3752,Endurance Health,M44C,Adult Social Care Operations,Supplies and Services,612.86,Feb-23
Slough Borough Council,3752,Endurance Health,M44C,Adult Social Care Operations,Supplies and Services,999.60,Feb-23
Slough Borough Council,3752,Endurance Health,M44C,Adult Social Care Operations,Supplies and Services,"1,124.55",Feb-23
Slough Borough Council,3752,Endurance Health,M44C,Adult Social Care Operations,Supplies and Services,"1,249.50",Feb-23
Slough Borough Council,3752,Endurance Health,M44C,Adult Social Care Operations,Supplies and Services,983.25,Feb-23
Slough Borough Council,3752,Endurance Health,M44C,Adult Social Care Operations,Supplies and Services,946.05,Feb-23
Slough Borough Council,3752,Endurance Health,M44C,Adult Social Care Operations,Supplies and Services,"1,749.30",Feb-23
Slough Borough Council,3752,Endurance Health,M44C,Adult Social Care Operations,Supplies and Services,"1,124.55",Feb-23
Slough Borough Council,3752,Endurance Health,M44C,Adult Social Care Operations,Supplies and Services,606.90,Feb-23
Slough Borough Council,3752,Endurance Health,M44C,Adult Social Care Operations,Supplies and Services,"2,998.80",Feb-23
Slough Borough Council,3752,Endurance Health,M44C,Adult Social Care Operations,Supplies and Services,"1,124.55",Feb-23
Slough Borough Council,3752,Endurance Health,M44C,Adult Social Care Operations,Supplies and Services,"2,249.10",Feb-23
Slough Borough Council,3752,Endurance Health,M44C,Adult Social Care Operations,Supplies and Services,594.12,Feb-23
Slough Borough Council,3752,Endurance Health,M44C,Adult Social Care Operations,Supplies and Services,"1,133.92",Feb-23
Slough Borough Council,3752,Endurance Health,M44C,Adult Social Care Operations,Supplies and Services,572.69,Feb-23
Slough Borough Council,3752,Endurance Health,M44C,Adult Social Care Operations,Supplies and Services,794.34,Feb-23
Slough Borough Council,3752,Endurance Health,M44C,Adult Social Care Operations,Supplies and Services,630.71,Feb-23
Slough Borough Council,3752,Endurance Health,M44C,Adult Social Care Operations,Supplies and Services,"1,870.42",Feb-23
Slough Borough Council,3752,Endurance Health,M44C,Adult Social Care Operations,Supplies and Services,761.91,Feb-23
Slough Borough Council,3752,Endurance Health,M44D,Adult Social Care Operations,Supplies and Services,"2,499.00",Feb-23
Slough Borough Council,3752,Endurance Health,M44D,Adult Social Care Operations,Supplies and Services,983.25,Feb-23
Slough Borough Council,3752,Endurance Health,M44D,Adult Social Care Operations,Supplies and Services,"1,178.10",Feb-23
Slough Borough Council,3752,Endurance Health,M44D,Adult Social Care Operations,Supplies and Services,731.85,Feb-23
Slough Borough Council,3752,Endurance Health,M44D,Adult Social Care Operations,Supplies and Services,"1,749.30",Feb-23
Slough Borough Council,3752,Endurance Health,M44D,Adult Social Care Operations,Supplies and Services,"1,124.55",Feb-23
Slough Borough Council,3752,Endurance Health,M44F,Adult Social Care Operations,Supplies and Services,606.90,Feb-23
Slough Borough Council,3752,Endurance Health,M45C,Adult Social Care Operations,Supplies and Services,626.85,Feb-23
Slough Borough Council,3752,Endurance Health,M45C,Adult Social Care Operations,Supplies and Services,531.04,Feb-23
Slough Borough Council,3752,Endurance Health,M48C,Adult Social Care Operations,Supplies and Services,"1,804.34",Feb-23
Slough Borough Council,3752,Endurance Health,M48C,Adult Social Care Operations,Supplies and Services,874.65,Feb-23
Slough Borough Council,808450,Enhance EHC Limited,F500,Education & Inclusion,Supplies and Services,"1,253.00",Feb-23
Slough Borough Council,805423,Enriched Care,M44D,Adult Social Care Operations,Supplies and Services,"3,379.60",Feb-23
Slough Borough Council,805423,Enriched Care,M44F,Adult Social Care Operations,Supplies and Services,"2,360.40",Feb-23
Slough Borough Council,805423,Enriched Care,M44F,Adult Social Care Operations,Supplies and Services,"2,601.20",Feb-23
Slough Borough Council,805423,Enriched Care,M80F,Adult Social Care Operations,Supplies and Services,"1,587.88",Feb-23
Slough Borough Council,807310,Enterprise Rent-A-Car UK Limited trading as Enterprise Flex-E-Rent,D610,Place Operations,Supplies and Services,600.97,Feb-23
Slough Borough Council,807039,Epaton Ltd,B342,Digital and Strategic IT,Supplies and Services,"17,819.08",Feb-23
Slough Borough Council,808740,Ernest Doe and Sons Ltd,P178,Capital,Capital Charges,"33,990.00",Feb-23
Slough Borough Council,2677,Eton House Residential Home,M25C,Adult Social Care Operations,Supplies and Services,"3,534.00",Feb-23
Slough Borough Council,2677,Eton House Residential Home,M25D,Adult Social Care Operations,Supplies and Services,"3,199.64",Feb-23
Slough Borough Council,2677,Eton House Residential Home,M27C,Adult Social Care Operations,Supplies and Services,"2,657.14",Feb-23
Slough Borough Council,2677,Eton House Residential Home,M27C,Adult Social Care Operations,Supplies and Services,"2,657.14",Feb-23
Slough Borough Council,808344,Euro Housing UK LTD,H205,Housing (People) Services,Supplies and Services,"12,090.00",Feb-23
Slough Borough Council,806501,Excellent Healthcare Services Ltd,A07R,Adult Social Care Operations,Supplies and Services,"1,906.24",Feb-23
Slough Borough Council,806501,Excellent Healthcare Services Ltd,A07R,Adult Social Care Operations,Supplies and Services,"1,072.26",Feb-23
Slough Borough Council,806501,Excellent Healthcare Services Ltd,M44C,Adult Social Care Operations,Supplies and Services,"2,144.52",Feb-23
Slough Borough Council,806501,Excellent Healthcare Services Ltd,M44C,Adult Social Care Operations,Supplies and Services,"2,144.52",Feb-23
Slough Borough Council,806501,Excellent Healthcare Services Ltd,M44C,Adult Social Care Operations,Supplies and Services,"1,838.16",Feb-23
Slough Borough Council,806501,Excellent Healthcare Services Ltd,M44C,Adult Social Care Operations,Supplies and Services,757.39,Feb-23
Slough Borough Council,806501,Excellent Healthcare Services Ltd,M44C,Adult Social Care Operations,Supplies and Services,859.51,Feb-23
Slough Borough Council,806501,Excellent Healthcare Services Ltd,M44C,Adult Social Care Operations,Supplies and Services,"1,072.26",Feb-23
Slough Borough Council,806501,Excellent Healthcare Services Ltd,M44C,Adult Social Care Operations,Supplies and Services,"1,072.26",Feb-23
Slough Borough Council,806501,Excellent Healthcare Services Ltd,M44C,Adult Social Care Operations,Supplies and Services,536.13,Feb-23
Slough Borough Council,806501,Excellent Healthcare Services Ltd,M44C,Adult Social Care Operations,Supplies and Services,774.41,Feb-23
Slough Borough Council,806501,Excellent Healthcare Services Ltd,M44C,Adult Social Care Operations,Supplies and Services,"2,144.52",Feb-23
Slough Borough Council,806501,Excellent Healthcare Services Ltd,M44C,Adult Social Care Operations,Supplies and Services,595.70,Feb-23
Slough Borough Council,806501,Excellent Healthcare Services Ltd,M44C,Adult Social Care Operations,Supplies and Services,"2,280.68",Feb-23
Slough Borough Council,806501,Excellent Healthcare Services Ltd,M44C,Adult Social Care Operations,Supplies and Services,"2,144.52",Feb-23
Slough Borough Council,806501,Excellent Healthcare Services Ltd,M44C,Adult Social Care Operations,Supplies and Services,765.90,Feb-23
Slough Borough Council,806501,Excellent Healthcare Services Ltd,M44C,Adult Social Care Operations,Supplies and Services,514.86,Feb-23
Slough Borough Council,806501,Excellent Healthcare Services Ltd,M44C,Adult Social Care Operations,Supplies and Services,"1,072.26",Feb-23
Slough Borough Council,806501,Excellent Healthcare Services Ltd,M44C,Adult Social Care Operations,Supplies and Services,"2,161.54",Feb-23
Slough Borough Council,806501,Excellent Healthcare Services Ltd,M44C,Adult Social Care Operations,Supplies and Services,"2,144.52",Feb-23
Slough Borough Council,806501,Excellent Healthcare Services Ltd,M44C,Adult Social Care Operations,Supplies and Services,"1,889.22",Feb-23
Slough Borough Council,806501,Excellent Healthcare Services Ltd,M44F,Adult Social Care Operations,Supplies and Services,714.84,Feb-23
Slough Borough Council,806501,Excellent Healthcare Services Ltd,M44F,Adult Social Care Operations,Supplies and Services,953.12,Feb-23
Slough Borough Council,806501,Excellent Healthcare Services Ltd,M44F,Adult Social Care Operations,Supplies and Services,"2,382.80",Feb-23
Slough Borough Council,806501,Excellent Healthcare Services Ltd,M45C,Adult Social Care Operations,Supplies and Services,595.70,Feb-23
Slough Borough Council,806501,Excellent Healthcare Services Ltd,M48C,Adult Social Care Operations,Supplies and Services,595.70,Feb-23
Slough Borough Council,808736,EXCLUSIVE HOUSING SOLUTION LIMITED,H205,Housing (People) Services,Supplies and Services,"11,770.00",Feb-23
Slough Borough Council,1992,Facultatieve Technologies Ltd,D320,Place Operations,Premises,"21,020.56",Feb-23
Slough Borough Council,805225,Falcon Surfacing Ltd,D880,Place Operations,Supplies and Services,"13,044.03",Feb-23
Slough Borough Council,805225,Falcon Surfacing Ltd,D880,Place Operations,Supplies and Services,"1,245.28",Feb-23
Slough Borough Council,805225,Falcon Surfacing Ltd,D880,Place Operations,Supplies and Services,"1,165.26",Feb-23
Slough Borough Council,805225,Falcon Surfacing Ltd,D880,Place Operations,Supplies and Services,"1,270.98",Feb-23
Slough Borough Council,805225,Falcon Surfacing Ltd,D880,Place Operations,Supplies and Services,"2,922.79",Feb-23
Slough Borough Council,805225,Falcon Surfacing Ltd,D880,Place Operations,Supplies and Services,825.00,Feb-23
Slough Borough Council,805225,Falcon Surfacing Ltd,D880,Place Operations,Supplies and Services,"4,655.00",Feb-23
Slough Borough Council,805225,Falcon Surfacing Ltd,D880,Place Operations,Supplies and Services,"5,740.04",Feb-23
Slough Borough Council,805225,Falcon Surfacing Ltd,D880,Place Operations,Supplies and Services,"17,789.05",Feb-23
Slough Borough Council,805225,Falcon Surfacing Ltd,D880,Place Operations,Supplies and Services,"2,745.00",Feb-23
Slough Borough Council,805225,Falcon Surfacing Ltd,D880,Place Operations,Supplies and Services,"2,571.42",Feb-23
Slough Borough Council,805225,Falcon Surfacing Ltd,D880,Place Operations,Supplies and Services,"2,085.00",Feb-23
Slough Borough Council,805225,Falcon Surfacing Ltd,D880,Place Operations,Supplies and Services,"1,493.88",Feb-23
Slough Borough Council,805225,Falcon Surfacing Ltd,D880,Place Operations,Supplies and Services,"1,511.78",Feb-23
Slough Borough Council,805225,Falcon Surfacing Ltd,D880,Place Operations,Supplies and Services,"11,315.75",Feb-23
Slough Borough Council,805225,Falcon Surfacing Ltd,D880,Place Operations,Supplies and Services,"4,575.00",Feb-23
Slough Borough Council,805225,Falcon Surfacing Ltd,D880,Place Operations,Supplies and Services,"4,288.20",Feb-23
Slough Borough Council,805225,Falcon Surfacing Ltd,D880,Place Operations,Supplies and Services,"6,713.12",Feb-23
Slough Borough Council,4031,Family Support Practise Limited,A03D,Adult Social Care Operations,Supplies and Services,"2,189.25",Feb-23
Slough Borough Council,4031,Family Support Practise Limited,B277,Digital and Strategic IT,Supplies and Services,"1,800.00",Feb-23
Slough Borough Council,4031,Family Support Practise Limited,B277,Digital and Strategic IT,Supplies and Services,"1,800.00",Feb-23
Slough Borough Council,4031,Family Support Practise Limited,B277,Digital and Strategic IT,Supplies and Services,"1,800.00",Feb-23
Slough Borough Council,4031,Family Support Practise Limited,B277,Digital and Strategic IT,Supplies and Services,"1,800.00",Feb-23
Slough Borough Council,475,Farnham Road Surgery,A04C,Adult Social Care Operations,Supplies and Services,"12,633.66",Feb-23
Slough Borough Council,955,First Beeline Buses Ltd,D512,Place Strategy & Infrastructure,Supplies and Services,"71,415.94",Feb-23
Slough Borough Council,955,First Beeline Buses Ltd,D512,Place Strategy & Infrastructure,Supplies and Services,"61,571.27",Feb-23
Slough Borough Council,754,First Steps Day Nursery,F909,Children & Families,Supplies and Services,"10,168.53",Feb-23
Slough Borough Council,2519,Fleet Tutors,F449,Education & Inclusion,Supplies and Services,"3,544.00",Feb-23
Slough Borough Council,1204,Forget Me Not,A02E,Adult Social Care Operations,Supplies and Services,"3,400.00",Feb-23
Slough Borough Council,1204,Forget Me Not,A02E,Adult Social Care Operations,Supplies and Services,971.43,Feb-23
Slough Borough Council,1204,Forget Me Not,A02E,Adult Social Care Operations,Supplies and Services,"2,185.71",Feb-23
Slough Borough Council,1204,Forget Me Not,M25C,Adult Social Care Operations,Supplies and Services,"3,400.00",Feb-23
Slough Borough Council,1204,Forget Me Not,M25C,Adult Social Care Operations,Supplies and Services,"3,800.00",Feb-23
Slough Borough Council,1204,Forget Me Not,M25C,Adult Social Care Operations,Supplies and Services,"3,498.00",Feb-23
Slough Borough Council,1204,Forget Me Not,M25C,Adult Social Care Operations,Supplies and Services,"3,800.00",Feb-23
Slough Borough Council,1204,Forget Me Not,M25C,Adult Social Care Operations,Supplies and Services,"3,498.00",Feb-23
Slough Borough Council,1204,Forget Me Not,M25C,Adult Social Care Operations,Supplies and Services,"3,400.00",Feb-23
Slough Borough Council,1204,Forget Me Not,M25D,Adult Social Care Operations,Supplies and Services,"3,600.00",Feb-23
Slough Borough Council,1204,Forget Me Not,M25D,Adult Social Care Operations,Supplies and Services,"3,600.00",Feb-23
Slough Borough Council,1204,Forget Me Not,M27C,Adult Social Care Operations,Supplies and Services,"3,570.00",Feb-23
Slough Borough Council,1204,Forget Me Not,M27C,Adult Social Care Operations,Supplies and Services,"3,199.76",Feb-23
Slough Borough Council,1204,Forget Me Not,M27C,Adult Social Care Operations,Supplies and Services,"3,570.00",Feb-23
Slough Borough Council,1204,Forget Me Not,M27C,Adult Social Care Operations,Supplies and Services,"3,199.76",Feb-23
Slough Borough Council,1204,Forget Me Not,M29C,Adult Social Care Operations,Supplies and Services,"2,428.57",Feb-23
Slough Borough Council,1204,Forget Me Not,M29C,Adult Social Care Operations,Supplies and Services,"1,214.29",Feb-23
Slough Borough Council,806249,Formact Ltd,P006,Capital,Capital Charges,"5,862.25",Feb-23
Slough Borough Council,647,Foxborough Primary School,E620,Children & Families,Supplies and Services,"9,278.33",Feb-23
Slough Borough Council,649,Freeway Lift Services Ltd,P006,Capital,Capital Charges,"15,844.00",Feb-23
Slough Borough Council,805936,Freshworks Inc,B282,Digital and Strategic IT,Capital Charges,"36,419.92",Feb-23
Slough Borough Council,806480,Frontier NX Limited,A04C,Adult Social Care Operations,Supplies and Services,815.41,Feb-23
Slough Borough Council,806480,Frontier NX Limited,A04C,Adult Social Care Operations,Supplies and Services,"1,669.60",Feb-23
Slough Borough Council,806480,Frontier NX Limited,A04C,Adult Social Care Operations,Supplies and Services,"-2,840.30",Feb-23
Slough Borough Council,3120,Frontier Software Plc,B409,Customer,Supplies and Services,"1,679.00",Feb-23
Slough Borough Council,807125,Futures For Shared Lives,M36E,Adult Social Care Operations,Supplies and Services,"3,103.80",Feb-23
Slough Borough Council,807125,Futures For Shared Lives,M36E,Adult Social Care Operations,Supplies and Services,"3,436.35",Feb-23
Slough Borough Council,805516,Gainsborough Baths Ltd. T/A Abacus Healthcare,P006,Capital,Capital Charges,"14,990.00",Feb-23
Slough Borough Council,805516,Gainsborough Baths Ltd. T/A Abacus Healthcare,P006,Capital,Capital Charges,845.00,Feb-23
Slough Borough Council,1555,Gallagher Bassett,B018,Finance & Commercial,Supplies and Services,"20,000.00",Feb-23
Slough Borough Council,1555,Gallagher Bassett,B018,Finance & Commercial,Supplies and Services,"34,293.62",Feb-23
Slough Borough Council,804911,GAP Group Limited,D880,Place Operations,Supplies and Services,682.92,Feb-23
Slough Borough Council,804911,GAP Group Limited,D880,Place Operations,Supplies and Services,968.00,Feb-23
Slough Borough Council,1758,Gas Advisory Services Limited,J606,Place Management,Supplies and Services,"2,529.00",Feb-23
Slough Borough Council,1758,Gas Advisory Services Limited,J606,Place Management,Supplies and Services,"2,380.00",Feb-23
Slough Borough Council,808711,George Browns LTD,P178,Capital,Capital Charges,"53,548.00",Feb-23
Slough Borough Council,808739,Global Machinery Solutions Ltd,P178,Capital,Capital Charges,"22,837.40",Feb-23
Slough Borough Council,808668,Governance Training and Consultancy Ltd,B007,Finance & Commercial,"Other Grants, Reimbursements and Contributions","2,500.00",Feb-23
Slough Borough Council,2830,GR Response Healthcare Ltd,M44C,Adult Social Care Operations,Supplies and Services,"2,394.00",Feb-23
Slough Borough Council,2830,GR Response Healthcare Ltd,M44C,Adult Social Care Operations,Supplies and Services,"1,026.00",Feb-23
Slough Borough Council,2830,GR Response Healthcare Ltd,M44C,Adult Social Care Operations,Supplies and Services,"2,394.00",Feb-23
Slough Borough Council,2830,GR Response Healthcare Ltd,M44C,Adult Social Care Operations,Supplies and Services,"2,394.00",Feb-23
Slough Borough Council,2830,GR Response Healthcare Ltd,M44C,Adult Social Care Operations,Supplies and Services,"1,862.00",Feb-23
Slough Borough Council,2830,GR Response Healthcare Ltd,M44C,Adult Social Care Operations,Supplies and Services,"2,546.00",Feb-23
Slough Borough Council,2830,GR Response Healthcare Ltd,M44C,Adult Social Care Operations,Supplies and Services,"1,500.24",Feb-23
Slough Borough Council,2830,GR Response Healthcare Ltd,M44C,Adult Social Care Operations,Supplies and Services,"2,187.58",Feb-23
Slough Borough Council,2830,GR Response Healthcare Ltd,M44C,Adult Social Care Operations,Supplies and Services,"2,000.32",Feb-23
Slough Borough Council,2830,GR Response Healthcare Ltd,M44D,Adult Social Care Operations,Supplies and Services,"1,955.28",Feb-23
Slough Borough Council,2830,GR Response Healthcare Ltd,M44D,Adult Social Care Operations,Supplies and Services,"2,151.86",Feb-23
Slough Borough Council,2830,GR Response Healthcare Ltd,M44D,Adult Social Care Operations,Supplies and Services,"2,736.00",Feb-23
Slough Borough Council,2830,GR Response Healthcare Ltd,M44D,Adult Social Care Operations,Supplies and Services,"1,596.00",Feb-23
Slough Borough Council,2830,GR Response Healthcare Ltd,M44D,Adult Social Care Operations,Supplies and Services,931.00,Feb-23
Slough Borough Council,2830,GR Response Healthcare Ltd,M44D,Adult Social Care Operations,Supplies and Services,"2,432.00",Feb-23
Slough Borough Council,2830,GR Response Healthcare Ltd,M44D,Adult Social Care Operations,Supplies and Services,"2,250.08",Feb-23
Slough Borough Council,2830,GR Response Healthcare Ltd,M44D,Adult Social Care Operations,Supplies and Services,"2,250.08",Feb-23
Slough Borough Council,2830,GR Response Healthcare Ltd,M44E,Adult Social Care Operations,Supplies and Services,532.00,Feb-23
Slough Borough Council,2830,GR Response Healthcare Ltd,M44F,Adult Social Care Operations,Supplies and Services,"2,128.00",Feb-23
Slough Borough Council,2830,GR Response Healthcare Ltd,M44F,Adult Social Care Operations,Supplies and Services,570.92,Feb-23
Slough Borough Council,2830,GR Response Healthcare Ltd,M45C,Adult Social Care Operations,Supplies and Services,"2,250.08",Feb-23
Slough Borough Council,2830,GR Response Healthcare Ltd,M45C,Adult Social Care Operations,Supplies and Services,"2,231.25",Feb-23
Slough Borough Council,2830,GR Response Healthcare Ltd,M48C,Adult Social Care Operations,Supplies and Services,"3,104.00",Feb-23
Slough Borough Council,2830,GR Response Healthcare Ltd,A06C,People Strategy & Commissioning,Supplies and Services,"6,400.00",Feb-23
Slough Borough Council,807255,Green Corridor,F558,Children & Families,Supplies and Services,"1,624.00",Feb-23
Slough Borough Council,807255,Green Corridor,F558,Children & Families,Supplies and Services,"-7,633.92",Feb-23
Slough Borough Council,807255,Green Corridor,F558,Children & Families,Supplies and Services,"2,348.04",Feb-23
Slough Borough Council,807255,Green Corridor,F558,Children & Families,Supplies and Services,"7,633.92",Feb-23
Slough Borough Council,808378,Greensleeves Care,M17C,Adult Social Care Operations,Supplies and Services,"3,614.07",Feb-23
Slough Borough Council,808378,Greensleeves Care,M17C,Adult Social Care Operations,Supplies and Services,"3,264.32",Feb-23
Slough Borough Council,805069,Grove Academy,E610,Children & Families,Supplies and Services,"28,182.70",Feb-23
Slough Borough Council,804447,Grundon Waste Management Limited,D342,Place Operations,Supplies and Services,"517,086.79",Feb-23
Slough Borough Council,807858,H J Newman,H253,Community,Supplies and Services,"1,835.00",Feb-23
Slough Borough Council,807858,H J Newman,H253,Community,Supplies and Services,"1,835.00",Feb-23
Slough Borough Council,807858,H J Newman,H253,Community,Supplies and Services,"1,805.00",Feb-23
Slough Borough Council,807858,H J Newman,H253,Community,Supplies and Services,"1,810.00",Feb-23
Slough Borough Council,807858,H J Newman,H253,Community,Supplies and Services,"1,550.00",Feb-23
Slough Borough Council,807858,H J Newman,H253,Community,Supplies and Services,"1,835.00",Feb-23
Slough Borough Council,3228,H Plus Care Ltd,M17C,Adult Social Care Operations,Supplies and Services,"5,803.15",Feb-23
Slough Borough Council,3228,H Plus Care Ltd,M17C,Adult Social Care Operations,Supplies and Services,"5,357.14",Feb-23
Slough Borough Council,3228,H Plus Care Ltd,M17C,Adult Social Care Operations,Supplies and Services,"5,357.14",Feb-23
Slough Borough Council,3228,H Plus Care Ltd,M17C,Adult Social Care Operations,Supplies and Services,"6,694.29",Feb-23
Slough Borough Council,3228,H Plus Care Ltd,M17C,Adult Social Care Operations,Supplies and Services,"6,917.43",Feb-23
Slough Borough Council,3228,H Plus Care Ltd,M17C,Adult Social Care Operations,Supplies and Services,"5,871.42",Feb-23
Slough Borough Council,3228,H Plus Care Ltd,M18C,Adult Social Care Operations,Supplies and Services,"4,800.00",Feb-23
Slough Borough Council,3228,H Plus Care Ltd,M25C,Adult Social Care Operations,Supplies and Services,"5,000.00",Feb-23
Slough Borough Council,3228,H Plus Care Ltd,M26E,Adult Social Care Operations,Supplies and Services,"4,800.00",Feb-23
Slough Borough Council,806681,Hako Machines Ltd,D620,Place Operations,Salaries and Wages-Employees Expenses,685.00,Feb-23
Slough Borough Council,806681,Hako Machines Ltd,D620,Place Operations,Supplies and Services,597.42,Feb-23
Slough Borough Council,804986,Havencare Ltd,M26E,Adult Social Care Operations,Supplies and Services,"1,356.27",Feb-23
Slough Borough Council,804986,Havencare Ltd,M26E,Adult Social Care Operations,Supplies and Services,"1,356.27",Feb-23
Slough Borough Council,804986,Havencare Ltd,M26E,Adult Social Care Operations,Supplies and Services,"1,356.27",Feb-23
Slough Borough Council,804986,Havencare Ltd,M26E,Adult Social Care Operations,Supplies and Services,"1,356.27",Feb-23
Slough Borough Council,1381,Haybrook College,E610,Children & Families,Supplies and Services,"88,999.41",Feb-23
Slough Borough Council,1381,Haybrook College,B297,Finance & Commercial,Government Grants,"1,170.00",Feb-23
Slough Borough Council,3784,Haybrook College Pru,E610,Children & Families,Supplies and Services,"38,200.00",Feb-23
Slough Borough Council,808639,Hazel Care Services Ltd,M42E,Adult Social Care Operations,Supplies and Services,"4,259.71",Feb-23
Slough Borough Council,808639,Hazel Care Services Ltd,M42E,Adult Social Care Operations,Supplies and Services,"4,679.45",Feb-23
Slough Borough Council,808639,Hazel Care Services Ltd,M42E,Adult Social Care Operations,Supplies and Services,"2,234.17",Feb-23
Slough Borough Council,808639,Hazel Care Services Ltd,M42E,Adult Social Care Operations,Supplies and Services,"1,850.08",Feb-23
Slough Borough Council,803753,Healthcare Homes,M15D,Adult Social Care Operations,Supplies and Services,"2,654.08",Feb-23
Slough Borough Council,803753,Healthcare Homes,M17C,Adult Social Care Operations,Supplies and Services,"4,000.00",Feb-23
Slough Borough Council,803753,Healthcare Homes,M17C,Adult Social Care Operations,Supplies and Services,"2,375.20",Feb-23
Slough Borough Council,803753,Healthcare Homes,M17C,Adult Social Care Operations,Supplies and Services,"4,400.00",Feb-23
Slough Borough Council,803753,Healthcare Homes,M17C,Adult Social Care Operations,Supplies and Services,"4,400.00",Feb-23
Slough Borough Council,803753,Healthcare Homes,M17C,Adult Social Care Operations,Supplies and Services,"-4,085.72",Feb-23
Slough Borough Council,803753,Healthcare Homes,M18C,Adult Social Care Operations,Supplies and Services,"4,400.00",Feb-23
Slough Borough Council,803753,Healthcare Homes,M18C,Adult Social Care Operations,Supplies and Services,"4,400.00",Feb-23
Slough Borough Council,803753,Healthcare Homes,M18C,Adult Social Care Operations,Supplies and Services,"4,400.00",Feb-23
Slough Borough Council,803753,Healthcare Homes,M18C,Adult Social Care Operations,Supplies and Services,"4,400.00",Feb-23
Slough Borough Council,803753,Healthcare Homes,M27C,Adult Social Care Operations,Supplies and Services,"2,912.00",Feb-23
Slough Borough Council,803753,Healthcare Homes,M28C,Adult Social Care Operations,Supplies and Services,"-4,428.57",Feb-23
Slough Borough Council,803753,Healthcare Homes,M28C,Adult Social Care Operations,Supplies and Services,"-4,428.57",Feb-23
Slough Borough Council,808615,Hedgewood School,F551,Children & Families,Supplies and Services,"6,666.67",Feb-23
Slough Borough Council,1686,Herald Chase,B660,Finance & Commercial,Supplies and Services,"2,194.49",Feb-23
Slough Borough Council,803447,Herewards House Residential Home,A02E,Adult Social Care Operations,Supplies and Services,"3,400.00",Feb-23
Slough Borough Council,803447,Herewards House Residential Home,A03E,Adult Social Care Operations,Supplies and Services,"3,400.00",Feb-23
Slough Borough Council,803447,Herewards House Residential Home,M25C,Adult Social Care Operations,Supplies and Services,"3,400.00",Feb-23
Slough Borough Council,803447,Herewards House Residential Home,M27C,Adult Social Care Operations,Supplies and Services,"3,400.00",Feb-23
Slough Borough Council,803447,Herewards House Residential Home,M27C,Adult Social Care Operations,Supplies and Services,"2,600.00",Feb-23
Slough Borough Council,803447,Herewards House Residential Home,M27C,Adult Social Care Operations,Supplies and Services,"3,400.00",Feb-23
Slough Borough Council,3387,Herschel Grammar School,B297,Finance & Commercial,Government Grants,"1,080.00",Feb-23
Slough Borough Council,805818,Hestia Housing & Support,H254,Place Regulation,Supplies and Services,"53,610.81",Feb-23
Slough Borough Council,805818,Hestia Housing & Support,H254,Place Regulation,Supplies and Services,"5,000.00",Feb-23
Slough Borough Council,659,Hilton Cabinet Co Ltd,D320,Place Operations,Supplies and Services,672.93,Feb-23
Slough Borough Council,850,Holy Family Catholic Primary School,E250,Children & Families,Supplies and Services,"222,601.70",Feb-23
Slough Borough Council,803249,Holyport College,F551,Children & Families,Supplies and Services,"7,500.00",Feb-23
Slough Borough Council,803249,Holyport College,F551,Children & Families,Supplies and Services,"20,000.00",Feb-23
Slough Borough Council,2113,Housing Partners,J200,Place Management,Supplies and Services,"9,078.00",Feb-23
Slough Borough Council,2313,Hqn,J028,Place Management,Supplies and Services,"2,625.00",Feb-23
Slough Borough Council,1914,Huntcliff Limited,J028,Place Management,Supplies and Services,945.18,Feb-23
Slough Borough Council,806778,IBB Solicitors,H009,Business Services,Supplies and Services,920.00,Feb-23
Slough Borough Council,803037,Idox Software Ltd,B061,Business Services,Premises,"5,025.00",Feb-23
Slough Borough Council,803037,Idox Software Ltd,B061,Business Services,Premises,"5,660.70",Feb-23
Slough Borough Council,351,Imperial Polythene Products Ltd,D620,Place Operations,Supplies and Services,"1,960.00",Feb-23
Slough Borough Council,807666,Independence Home and Domicilary Care,M44F,Adult Social Care Operations,Supplies and Services,"1,544.58",Feb-23
Slough Borough Council,807666,Independence Home and Domicilary Care,M44F,Adult Social Care Operations,Supplies and Services,"2,940.66",Feb-23
Slough Borough Council,807666,Independence Home and Domicilary Care,M44F,Adult Social Care Operations,Supplies and Services,"3,348.00",Feb-23
Slough Borough Council,807666,Independence Home and Domicilary Care,M44F,Adult Social Care Operations,Supplies and Services,"3,381.17",Feb-23
Slough Borough Council,3570,Independent Supported Living And Disabilities Ltd,M42E,Adult Social Care Operations,Supplies and Services,"3,000.00",Feb-23
Slough Borough Council,3570,Independent Supported Living And Disabilities Ltd,M44D,Adult Social Care Operations,Supplies and Services,"3,044.16",Feb-23
Slough Borough Council,3570,Independent Supported Living And Disabilities Ltd,M44E,Adult Social Care Operations,Supplies and Services,"1,440.00",Feb-23
Slough Borough Council,3570,Independent Supported Living And Disabilities Ltd,M44E,Adult Social Care Operations,Supplies and Services,"1,050.00",Feb-23
Slough Borough Council,3570,Independent Supported Living And Disabilities Ltd,M44E,Adult Social Care Operations,Supplies and Services,"4,212.00",Feb-23
Slough Borough Council,3570,Independent Supported Living And Disabilities Ltd,M44E,Adult Social Care Operations,Supplies and Services,"3,570.00",Feb-23
Slough Borough Council,3570,Independent Supported Living And Disabilities Ltd,M44F,Adult Social Care Operations,Supplies and Services,"2,608.00",Feb-23
Slough Borough Council,3570,Independent Supported Living And Disabilities Ltd,M81D,Adult Social Care Operations,Supplies and Services,"4,172.00",Feb-23
Slough Borough Council,3570,Independent Supported Living And Disabilities Ltd,M81D,Adult Social Care Operations,Supplies and Services,"4,172.00",Feb-23
Slough Borough Council,803651,Insight Direct (UK) Ltd,B282,Digital and Strategic IT,Supplies and Services,"8,715.50",Feb-23
Slough Borough Council,803651,Insight Direct (UK) Ltd,B342,Digital and Strategic IT,Supplies and Services,"10,500.00",Feb-23
Slough Borough Council,803651,Insight Direct (UK) Ltd,B342,Digital and Strategic IT,Supplies and Services,"5,625.00",Feb-23
Slough Borough Council,803651,Insight Direct (UK) Ltd,B342,Digital and Strategic IT,Supplies and Services,"3,750.00",Feb-23
Slough Borough Council,2932,Instalcom Ltd,P212,Capital,Capital Charges,"2,500.00",Feb-23
Slough Borough Council,807183,Intec For Business Ltd,B349,Customer,Supplies and Services,"8,582.20",Feb-23
Slough Borough Council,3172,Intelligent Transport Services,D124,Place Strategy & Infrastructure,Supplies and Services,"2,750.00",Feb-23
Slough Borough Council,3172,Intelligent Transport Services,D124,Place Strategy & Infrastructure,Supplies and Services,"5,400.00",Feb-23
Slough Borough Council,3172,Intelligent Transport Services,D124,Place Strategy & Infrastructure,Supplies and Services,"2,750.00",Feb-23
Slough Borough Council,3172,Intelligent Transport Services,D509,Place Strategy & Infrastructure,Supplies and Services,900.00,Feb-23
Slough Borough Council,3172,Intelligent Transport Services,P209,Capital,Capital Charges,"1,780.00",Feb-23
Slough Borough Council,3172,Intelligent Transport Services,P209,Capital,Capital Charges,"1,800.00",Feb-23
Slough Borough Council,3172,Intelligent Transport Services,P209,Capital,Capital Charges,600.00,Feb-23
Slough Borough Council,3172,Intelligent Transport Services,P209,Capital,Capital Charges,"1,800.00",Feb-23
Slough Borough Council,3172,Intelligent Transport Services,P209,Capital,Capital Charges,600.00,Feb-23
Slough Borough Council,3172,Intelligent Transport Services,P209,Capital,Capital Charges,"2,700.00",Feb-23
Slough Borough Council,3172,Intelligent Transport Services,P212,Capital,Capital Charges,"2,136.00",Feb-23
Slough Borough Council,3172,Intelligent Transport Services,P212,Capital,Capital Charges,"1,200.00",Feb-23
Slough Borough Council,3172,Intelligent Transport Services,P212,Capital,Capital Charges,600.00,Feb-23
Slough Borough Council,3172,Intelligent Transport Services,P212,Capital,Capital Charges,"1,200.00",Feb-23
Slough Borough Council,3172,Intelligent Transport Services,P212,Capital,Capital Charges,"1,200.00",Feb-23
Slough Borough Council,3172,Intelligent Transport Services,P235,Capital,Capital Charges,"1,068.00",Feb-23
Slough Borough Council,3172,Intelligent Transport Services,P235,Capital,Capital Charges,"1,500.00",Feb-23
Slough Borough Council,3172,Intelligent Transport Services,P235,Capital,Capital Charges,"1,500.00",Feb-23
Slough Borough Council,3172,Intelligent Transport Services,P238,Capital,Capital Charges,712.00,Feb-23
Slough Borough Council,3172,Intelligent Transport Services,P238,Capital,Capital Charges,900.00,Feb-23
Slough Borough Council,3172,Intelligent Transport Services,P238,Capital,Capital Charges,"1,050.00",Feb-23
Slough Borough Council,3172,Intelligent Transport Services,P238,Capital,Capital Charges,"1,050.00",Feb-23
Slough Borough Council,3172,Intelligent Transport Services,P579,Capital,Capital Charges,"1,424.00",Feb-23
Slough Borough Council,3172,Intelligent Transport Services,P579,Capital,Capital Charges,750.00,Feb-23
Slough Borough Council,1880,In-Tend Limited,B146,Finance & Commercial,Supplies and Services,"6,643.00",Feb-23
Slough Borough Council,3500,Iqra Slough Islamic Primary School,E480,Children & Families,Supplies and Services,"146,208.26",Feb-23
Slough Borough Council,2919,Islamic Shakhsiyah Foundation,F909,Children & Families,Supplies and Services,"3,137.72",Feb-23
Slough Borough Council,807347,Jadu Creative Limited,B282,Digital and Strategic IT,Supplies and Services,"104,400.00",Feb-23
Slough Borough Council,807347,Jadu Creative Limited,B282,Digital and Strategic IT,Supplies and Services,"-104,400.00",Feb-23
Slough Borough Council,807347,Jadu Creative Limited,B282,Digital and Strategic IT,Supplies and Services,"104,400.00",Feb-23
Slough Borough Council,733,James Elliman  School,E620,Children & Families,Supplies and Services,"28,768.61",Feb-23
Slough Borough Council,1970,James Elliman Academy,B187,Business Services,Premises,"2,300.88",Feb-23
Slough Borough Council,1970,James Elliman Academy,B297,Finance & Commercial,Government Grants,"1,920.00",Feb-23
Slough Borough Council,805666,James Rosental,C322,Community,Supplies and Services,500.00,Feb-23
Slough Borough Council,805226,JD Surfacing & Civil Engineering Limited,D880,Place Operations,Supplies and Services,"2,200.00",Feb-23
Slough Borough Council,805226,JD Surfacing & Civil Engineering Limited,D880,Place Operations,Supplies and Services,"16,036.00",Feb-23
Slough Borough Council,805226,JD Surfacing & Civil Engineering Limited,D880,Place Operations,Supplies and Services,"2,200.00",Feb-23
Slough Borough Council,805226,JD Surfacing & Civil Engineering Limited,D880,Place Operations,Supplies and Services,"9,120.00",Feb-23
Slough Borough Council,805226,JD Surfacing & Civil Engineering Limited,D880,Place Operations,Supplies and Services,"5,800.00",Feb-23
Slough Borough Council,805226,JD Surfacing & Civil Engineering Limited,D880,Place Operations,Supplies and Services,"5,210.00",Feb-23
Slough Borough Council,805226,JD Surfacing & Civil Engineering Limited,D880,Place Operations,Supplies and Services,"7,980.00",Feb-23
Slough Borough Council,805226,JD Surfacing & Civil Engineering Limited,D880,Place Operations,Supplies and Services,"3,600.00",Feb-23
Slough Borough Council,805226,JD Surfacing & Civil Engineering Limited,D880,Place Operations,Supplies and Services,"2,200.00",Feb-23
Slough Borough Council,805226,JD Surfacing & Civil Engineering Limited,D880,Place Operations,Supplies and Services,"2,200.00",Feb-23
Slough Borough Council,805226,JD Surfacing & Civil Engineering Limited,D880,Place Operations,Supplies and Services,"17,000.00",Feb-23
Slough Borough Council,805226,JD Surfacing & Civil Engineering Limited,D880,Place Operations,Supplies and Services,"8,550.00",Feb-23
Slough Borough Council,805226,JD Surfacing & Civil Engineering Limited,D880,Place Operations,Supplies and Services,"2,200.00",Feb-23
Slough Borough Council,807308,JLA Total Care Ltd,H202,Community,Supplies and Services,549.18,Feb-23
Slough Borough Council,807308,JLA Total Care Ltd,H205,Housing (People) Services,Supplies and Services,760.81,Feb-23
Slough Borough Council,807453,John F Hunt Regeneration Ltd,P405,Capital,Capital Charges,"11,740.88",Feb-23
Slough Borough Council,807453,John F Hunt Regeneration Ltd,P405,Capital,Capital Charges,"11,958.97",Feb-23
Slough Borough Council,807453,John F Hunt Regeneration Ltd,P405,Capital,Capital Charges,"11,362.14",Feb-23
Slough Borough Council,807453,John F Hunt Regeneration Ltd,P405,Capital,Capital Charges,"11,740.88",Feb-23
Slough Borough Council,807453,John F Hunt Regeneration Ltd,P405,Capital,Capital Charges,"11,942.45",Feb-23
Slough Borough Council,2200,Joshua Pilmore,C322,Community,Supplies and Services,"4,604.50",Feb-23
Slough Borough Council,201,Kamal Enterprises Ltd,A04C,Adult Social Care Operations,Supplies and Services,687.00,Feb-23
Slough Borough Council,803815,Kathys Childcare,F909,Children & Families,Supplies and Services,"2,434.87",Feb-23
Slough Borough Council,2620,Kcare Nursing Agency Ltd,M44C,Adult Social Care Operations,Supplies and Services,898.41,Feb-23
Slough Borough Council,2620,Kcare Nursing Agency Ltd,M48C,Adult Social Care Operations,Supplies and Services,805.96,Feb-23
Slough Borough Council,2620,Kcare Nursing Agency Ltd,M48C,Adult Social Care Operations,Supplies and Services,"4,000.00",Feb-23
Slough Borough Council,804887,KCare Nursing Agency Ltd Supported House Living,M42F,Adult Social Care Operations,Supplies and Services,"2,926.00",Feb-23
Slough Borough Council,804887,KCare Nursing Agency Ltd Supported House Living,M44F,Adult Social Care Operations,Supplies and Services,"2,493.50",Feb-23
Slough Borough Council,807742,Khalsa Primary School,E620,Children & Families,Supplies and Services,"14,865.00",Feb-23
Slough Borough Council,803916,Kharis Solutions,A07R,Adult Social Care Operations,Supplies and Services,"2,206.40",Feb-23
Slough Borough Council,803916,Kharis Solutions,M42E,Adult Social Care Operations,Supplies and Services,"7,875.00",Feb-23
Slough Borough Council,803916,Kharis Solutions,M42E,Adult Social Care Operations,Supplies and Services,"7,188.00",Feb-23
Slough Borough Council,803916,Kharis Solutions,M42E,Adult Social Care Operations,Supplies and Services,"9,250.00",Feb-23
Slough Borough Council,803916,Kharis Solutions,M44C,Adult Social Care Operations,Supplies and Services,"1,225.70",Feb-23
Slough Borough Council,803916,Kharis Solutions,M44C,Adult Social Care Operations,Supplies and Services,"1,479.68",Feb-23
Slough Borough Council,803916,Kharis Solutions,M44D,Adult Social Care Operations,Supplies and Services,"1,961.12",Feb-23
Slough Borough Council,803916,Kharis Solutions,M48C,Adult Social Care Operations,Supplies and Services,"2,210.00",Feb-23
Slough Borough Council,807911,Kidz Enterprise LTD,F382,Children & Families,Supplies and Services,"1,216.00",Feb-23
Slough Borough Council,1728,Kristiina Smith,C322,Community,Supplies and Services,"1,751.00",Feb-23
Slough Borough Council,808599,lakhwinder Singh,H205,Housing (People) Services,Supplies and Services,"3,100.00",Feb-23
Slough Borough Council,808609,Langhams Partnership LTD,H205,Housing (People) Services,Supplies and Services,"1,540.00",Feb-23
Slough Borough Council,808609,Langhams Partnership LTD,H205,Housing (People) Services,Supplies and Services,"1,705.00",Feb-23
Slough Borough Council,808609,Langhams Partnership LTD,H205,Housing (People) Services,Supplies and Services,"2,015.00",Feb-23
Slough Borough Council,808609,Langhams Partnership LTD,H205,Housing (People) Services,Supplies and Services,"1,705.00",Feb-23
Slough Borough Council,808609,Langhams Partnership LTD,H205,Housing (People) Services,Supplies and Services,"2,015.00",Feb-23
Slough Borough Council,808609,Langhams Partnership LTD,H205,Housing (People) Services,Supplies and Services,"1,860.00",Feb-23
Slough Borough Council,808609,Langhams Partnership LTD,H205,Housing (People) Services,Supplies and Services,"1,045.00",Feb-23
Slough Borough Council,808609,Langhams Partnership LTD,H205,Housing (People) Services,Supplies and Services,"1,860.00",Feb-23
Slough Borough Council,664,Langley Grammar School,E610,Children & Families,Supplies and Services,"5,608.21",Feb-23
Slough Borough Council,664,Langley Grammar School,B297,Finance & Commercial,Supplies and Services,900.00,Feb-23
Slough Borough Council,1699,Langley Hall Primary Academy,E620,Children & Families,Supplies and Services,"3,583.33",Feb-23
Slough Borough Council,3001,Langley Haven Care Homes Ltd,M25C,Adult Social Care Operations,Supplies and Services,"3,600.00",Feb-23
Slough Borough Council,3001,Langley Haven Care Homes Ltd,M25C,Adult Social Care Operations,Supplies and Services,"3,600.00",Feb-23
Slough Borough Council,3001,Langley Haven Care Homes Ltd,M25C,Adult Social Care Operations,Supplies and Services,"3,980.52",Feb-23
Slough Borough Council,3001,Langley Haven Care Homes Ltd,M25D,Adult Social Care Operations,Supplies and Services,"3,600.00",Feb-23
Slough Borough Council,3001,Langley Haven Care Homes Ltd,M25D,Adult Social Care Operations,Supplies and Services,"3,600.00",Feb-23
Slough Borough Council,3001,Langley Haven Care Homes Ltd,M26E,Adult Social Care Operations,Supplies and Services,"3,715.16",Feb-23
Slough Borough Council,3001,Langley Haven Care Homes Ltd,M27C,Adult Social Care Operations,Supplies and Services,"3,600.00",Feb-23
Slough Borough Council,3001,Langley Haven Care Homes Ltd,M27C,Adult Social Care Operations,Supplies and Services,"3,600.00",Feb-23
Slough Borough Council,3001,Langley Haven Care Homes Ltd,M27C,Adult Social Care Operations,Supplies and Services,"3,600.00",Feb-23
Slough Borough Council,3001,Langley Haven Care Homes Ltd,M27F,Adult Social Care Operations,Supplies and Services,"3,980.52",Feb-23
Slough Borough Council,3001,Langley Haven Care Homes Ltd,M27F,Adult Social Care Operations,Supplies and Services,"3,600.00",Feb-23
Slough Borough Council,3001,Langley Haven Care Homes Ltd,M27F,Adult Social Care Operations,Supplies and Services,"3,600.00",Feb-23
Slough Borough Council,3001,Langley Haven Care Homes Ltd,M27F,Adult Social Care Operations,Supplies and Services,"3,600.00",Feb-23
Slough Borough Council,3001,Langley Haven Care Homes Ltd,M27F,Adult Social Care Operations,Supplies and Services,"3,600.00",Feb-23
Slough Borough Council,3001,Langley Haven Care Homes Ltd,M29C,Adult Social Care Operations,Supplies and Services,"1,511.64",Feb-23
Slough Borough Council,3001,Langley Haven Care Homes Ltd,M29C,Adult Social Care Operations,Supplies and Services,540.82,Feb-23
Slough Borough Council,3001,Langley Haven Care Homes Ltd,M29C,Adult Social Care Operations,Supplies and Services,"3,985.71",Feb-23
Slough Borough Council,803686,Lascelles Park Nursery,F909,Children & Families,Supplies and Services,"15,603.61",Feb-23
Slough Borough Council,3482,Leonard Cheshire Disability,M26E,Adult Social Care Operations,Supplies and Services,"6,579.93",Feb-23
Slough Borough Council,808423,Leo's Circus CIC,F382,Children & Families,Supplies and Services,885.72,Feb-23
Slough Borough Council,808423,Leo's Circus CIC,F382,Children & Families,Supplies and Services,885.72,Feb-23
Slough Borough Council,807116,Libraries Connected,C104,Community,Supplies and Services,543.59,Feb-23
Slough Borough Council,469,LimeBlue Innovation Limited,H213,Adult Social Care Operations,Premises,735.00,Feb-23
Slough Borough Council,804692,Little Diamonds Pre School,F909,Children & Families,Supplies and Services,"15,000.00",Feb-23
Slough Borough Council,808192,Little Musketeers,F382,Children & Families,Supplies and Services,"4,256.00",Feb-23
Slough Borough Council,808399,Little People Media (Trading as Families TV East Magazine),F382,Children & Families,Supplies and Services,976.00,Feb-23
Slough Borough Council,3791,Littledown Pru,E610,Children & Families,Supplies and Services,"17,100.00",Feb-23
Slough Borough Council,667,Littledown School,E610,Children & Families,Supplies and Services,"4,768.91",Feb-23
Slough Borough Council,1282,Long Close School,F909,Children & Families,Supplies and Services,"6,859.24",Feb-23
Slough Borough Council,2302,Look Ahead Care And Support,M42F,Adult Social Care Operations,Supplies and Services,"30,725.42",Feb-23
Slough Borough Council,2302,Look Ahead Care And Support,M42F,Adult Social Care Operations,Supplies and Services,"30,306.00",Feb-23
Slough Borough Council,2302,Look Ahead Care And Support,M42F,Adult Social Care Operations,Supplies and Services,"28,184.58",Feb-23
Slough Borough Council,2302,Look Ahead Care And Support,M42F,Adult Social Care Operations,Supplies and Services,"1,715.57",Feb-23
Slough Borough Council,2302,Look Ahead Care And Support,M44F,Adult Social Care Operations,Supplies and Services,"1,750.07",Feb-23
Slough Borough Council,2302,Look Ahead Care And Support,M44F,Adult Social Care Operations,Supplies and Services,"1,517.14",Feb-23
Slough Borough Council,2302,Look Ahead Care And Support,M44F,Adult Social Care Operations,Supplies and Services,"1,515.30",Feb-23
Slough Borough Council,2302,Look Ahead Care And Support,M44F,Adult Social Care Operations,Supplies and Services,"1,517.14",Feb-23
Slough Borough Council,2302,Look Ahead Care And Support,M44F,Adult Social Care Operations,Supplies and Services,"1,565.81",Feb-23
Slough Borough Council,2302,Look Ahead Care And Support,M44F,Adult Social Care Operations,Supplies and Services,975.03,Feb-23
Slough Borough Council,2302,Look Ahead Care And Support,M44F,Adult Social Care Operations,Supplies and Services,792.86,Feb-23
Slough Borough Council,2302,Look Ahead Care And Support,M44F,Adult Social Care Operations,Supplies and Services,"1,750.07",Feb-23
Slough Borough Council,2302,Look Ahead Care And Support,M44F,Adult Social Care Operations,Supplies and Services,"1,750.50",Feb-23
Slough Borough Council,2302,Look Ahead Care And Support,M44F,Adult Social Care Operations,Supplies and Services,"1,750.07",Feb-23
Slough Borough Council,2302,Look Ahead Care And Support,M44F,Adult Social Care Operations,Supplies and Services,"1,515.30",Feb-23
Slough Borough Council,2302,Look Ahead Care And Support,M44F,Adult Social Care Operations,Supplies and Services,"1,517.14",Feb-23
Slough Borough Council,2302,Look Ahead Care And Support,H216,Community,Supplies and Services,"2,515.34",Feb-23
Slough Borough Council,2302,Look Ahead Care And Support,H216,Community,Supplies and Services,"2,434.20",Feb-23
Slough Borough Council,2302,Look Ahead Care And Support,H216,Community,Supplies and Services,"2,507.24",Feb-23
Slough Borough Council,2302,Look Ahead Care And Support,H216,Community,Supplies and Services,"2,515.34",Feb-23
Slough Borough Council,2302,Look Ahead Care And Support,H216,Community,Supplies and Services,"2,515.34",Feb-23
Slough Borough Council,2302,Look Ahead Care And Support,H216,Community,Supplies and Services,"2,434.20",Feb-23
Slough Borough Council,1195,Lynch Hill (Foundation Primary) School,E620,Children & Families,Supplies and Services,"29,685.00",Feb-23
Slough Borough Council,806390,Lynch Hill Enterprise Academy (NEW),B297,Finance & Commercial,Government Grants,"8,850.00",Feb-23
Slough Borough Council,3424,M D Homes,M15F,Adult Social Care Operations,Supplies and Services,"4,400.00",Feb-23
Slough Borough Council,807217,Macadamia Support Limited,M42E,Adult Social Care Operations,Supplies and Services,"6,931.20",Feb-23
Slough Borough Council,807217,Macadamia Support Limited,M42E,Adult Social Care Operations,Supplies and Services,"6,713.00",Feb-23
Slough Borough Council,807217,Macadamia Support Limited,M42E,Adult Social Care Operations,Supplies and Services,"3,973.20",Feb-23
Slough Borough Council,807217,Macadamia Support Limited,M42E,Adult Social Care Operations,Supplies and Services,"7,308.00",Feb-23
Slough Borough Council,807217,Macadamia Support Limited,M42E,Adult Social Care Operations,Supplies and Services,"3,589.12",Feb-23
Slough Borough Council,807217,Macadamia Support Limited,M44C,Adult Social Care Operations,Supplies and Services,"3,591.56",Feb-23
Slough Borough Council,1941,Manor Green School,F449,Education & Inclusion,Supplies and Services,"2,013.75",Feb-23
Slough Borough Council,1941,Manor Green School,F551,Children & Families,Supplies and Services,"30,000.00",Feb-23
Slough Borough Council,1941,Manor Green School,F551,Children & Families,Supplies and Services,"-10,000.00",Feb-23
Slough Borough Council,1941,Manor Green School,F551,Children & Families,Supplies and Services,"59,020.00",Feb-23
Slough Borough Council,1941,Manor Green School,F551,Children & Families,Supplies and Services,"336,760.00",Feb-23
Slough Borough Council,1941,Manor Green School,F551,Children & Families,Supplies and Services,"28,401.50",Feb-23
Slough Borough Council,529,Marish Primary School,E620,Children & Families,Supplies and Services,"83,190.39",Feb-23
Slough Borough Council,807774,Marsh Ltd,B018,Finance & Commercial,Supplies and Services,637.94,Feb-23
Slough Borough Council,1886,Matrix Scm,B023,Finance & Commercial,Agency Staff,"511,270.44",Feb-23
Slough Borough Council,1886,Matrix Scm,B023,Finance & Commercial,Agency Staff,"488,305.15",Feb-23
Slough Borough Council,1886,Matrix Scm,B023,Finance & Commercial,Agency Staff,"471,552.81",Feb-23
Slough Borough Council,1886,Matrix Scm,B023,Finance & Commercial,Agency Staff,"443,923.42",Feb-23
Slough Borough Council,807684,Maverick Care  Ltd T/A Christies Care Windsor & Maidenhead,M44D,Adult Social Care Operations,Supplies and Services,"2,686.00",Feb-23
Slough Borough Council,806926,Meadow High School,F551,Children & Families,Supplies and Services,"6,666.66",Feb-23
Slough Borough Council,806926,Meadow High School,F551,Children & Families,Supplies and Services,"5,000.00",Feb-23
Slough Borough Council,806926,Meadow High School,F551,Children & Families,Supplies and Services,"3,333.33",Feb-23
Slough Borough Council,807009,Medigold Health Consultancy Ltd,B349,Customer,Salaries and Wages-Employees Expenses,865.00,Feb-23
Slough Borough Council,807009,Medigold Health Consultancy Ltd,B349,Customer,Salaries and Wages-Employees Expenses,755.00,Feb-23
Slough Borough Council,807009,Medigold Health Consultancy Ltd,B349,Customer,Salaries and Wages-Employees Expenses,772.00,Feb-23
Slough Borough Council,807009,Medigold Health Consultancy Ltd,B349,Customer,Salaries and Wages-Employees Expenses,555.00,Feb-23
Slough Borough Council,807009,Medigold Health Consultancy Ltd,B349,Customer,Salaries and Wages-Employees Expenses,"1,347.00",Feb-23
Slough Borough Council,807009,Medigold Health Consultancy Ltd,B349,Customer,Salaries and Wages-Employees Expenses,655.00,Feb-23
Slough Borough Council,1496,Mighty Acorns Day Nursery Ltd,F909,Children & Families,Supplies and Services,"8,657.13",Feb-23
Slough Borough Council,808716,Mini Todds Ltd,F909,Children & Families,Supplies and Services,"1,017.00",Feb-23
Slough Borough Council,808747,MK HOUSING LTD,H205,Housing (People) Services,Supplies and Services,"4,320.00",Feb-23
Slough Borough Council,805121,MMCG (2) Limited,A02E,Adult Social Care Operations,Supplies and Services,"3,580.20",Feb-23
Slough Borough Council,805121,MMCG (2) Limited,A02E,Adult Social Care Operations,Supplies and Services,"3,580.20",Feb-23
Slough Borough Council,805121,MMCG (2) Limited,A02E,Adult Social Care Operations,Supplies and Services,"3,699.54",Feb-23
Slough Borough Council,805121,MMCG (2) Limited,A02E,Adult Social Care Operations,Supplies and Services,"3,699.54",Feb-23
Slough Borough Council,805121,MMCG (2) Limited,A02E,Adult Social Care Operations,Supplies and Services,716.04,Feb-23
Slough Borough Council,805121,MMCG (2) Limited,A03E,Adult Social Care Operations,Supplies and Services,"4,562.80",Feb-23
Slough Borough Council,805121,MMCG (2) Limited,M15D,Adult Social Care Operations,Supplies and Services,"3,699.54",Feb-23
Slough Borough Council,805121,MMCG (2) Limited,M15D,Adult Social Care Operations,Supplies and Services,"3,699.54",Feb-23
Slough Borough Council,805121,MMCG (2) Limited,M15D,Adult Social Care Operations,Supplies and Services,"3,699.54",Feb-23
Slough Borough Council,805121,MMCG (2) Limited,M15F,Adult Social Care Operations,Supplies and Services,"3,699.54",Feb-23
Slough Borough Council,805121,MMCG (2) Limited,M15F,Adult Social Care Operations,Supplies and Services,"3,699.54",Feb-23
Slough Borough Council,805121,MMCG (2) Limited,M15F,Adult Social Care Operations,Supplies and Services,"2,834.68",Feb-23
Slough Borough Council,805121,MMCG (2) Limited,M17C,Adult Social Care Operations,Supplies and Services,"3,580.20",Feb-23
Slough Borough Council,805121,MMCG (2) Limited,M17C,Adult Social Care Operations,Supplies and Services,"4,562.80",Feb-23
Slough Borough Council,805121,MMCG (2) Limited,M17C,Adult Social Care Operations,Supplies and Services,"3,699.54",Feb-23
Slough Borough Council,805121,MMCG (2) Limited,M17C,Adult Social Care Operations,Supplies and Services,"4,562.80",Feb-23
Slough Borough Council,805121,MMCG (2) Limited,M17C,Adult Social Care Operations,Supplies and Services,"3,699.54",Feb-23
Slough Borough Council,805121,MMCG (2) Limited,M17C,Adult Social Care Operations,Supplies and Services,"3,699.54",Feb-23
Slough Borough Council,805121,MMCG (2) Limited,M17C,Adult Social Care Operations,Supplies and Services,"3,699.54",Feb-23
Slough Borough Council,805121,MMCG (2) Limited,M18C,Adult Social Care Operations,Supplies and Services,"3,580.20",Feb-23
Slough Borough Council,805121,MMCG (2) Limited,M18C,Adult Social Care Operations,Supplies and Services,"3,580.20",Feb-23
Slough Borough Council,805121,MMCG (2) Limited,M18C,Adult Social Care Operations,Supplies and Services,"3,699.54",Feb-23
Slough Borough Council,805121,MMCG (2) Limited,M18C,Adult Social Care Operations,Supplies and Services,"3,699.54",Feb-23
Slough Borough Council,805121,MMCG (2) Limited,M18C,Adult Social Care Operations,Supplies and Services,"4,415.61",Feb-23
Slough Borough Council,805121,MMCG (2) Limited,M18C,Adult Social Care Operations,Supplies and Services,"3,699.54",Feb-23
Slough Borough Council,805121,MMCG (2) Limited,M18C,Adult Social Care Operations,Supplies and Services,"3,699.54",Feb-23
Slough Borough Council,805121,MMCG (2) Limited,M18C,Adult Social Care Operations,Supplies and Services,"3,699.54",Feb-23
Slough Borough Council,805121,MMCG (2) Limited,M18C,Adult Social Care Operations,Supplies and Services,"4,192.79",Feb-23
Slough Borough Council,805121,MMCG (2) Limited,M18C,Adult Social Care Operations,Supplies and Services,"3,699.54",Feb-23
Slough Borough Council,805121,MMCG (2) Limited,M18C,Adult Social Care Operations,Supplies and Services,"4,562.80",Feb-23
Slough Borough Council,805121,MMCG (2) Limited,M18C,Adult Social Care Operations,Supplies and Services,"4,562.80",Feb-23
Slough Borough Council,805121,MMCG (2) Limited,M25C,Adult Social Care Operations,Supplies and Services,"3,580.20",Feb-23
Slough Borough Council,805121,MMCG (2) Limited,M25C,Adult Social Care Operations,Supplies and Services,"3,580.20",Feb-23
Slough Borough Council,805121,MMCG (2) Limited,M25C,Adult Social Care Operations,Supplies and Services,"3,699.54",Feb-23
Slough Borough Council,805121,MMCG (2) Limited,M25C,Adult Social Care Operations,Supplies and Services,"3,699.54",Feb-23
Slough Borough Council,805121,MMCG (2) Limited,M25C,Adult Social Care Operations,Supplies and Services,"3,699.54",Feb-23
Slough Borough Council,805121,MMCG (2) Limited,M25C,Adult Social Care Operations,Supplies and Services,"3,699.54",Feb-23
Slough Borough Council,805121,MMCG (2) Limited,M25C,Adult Social Care Operations,Supplies and Services,"3,699.54",Feb-23
Slough Borough Council,805121,MMCG (2) Limited,M25C,Adult Social Care Operations,Supplies and Services,"3,699.54",Feb-23
Slough Borough Council,805121,MMCG (2) Limited,M25C,Adult Social Care Operations,Supplies and Services,"3,699.54",Feb-23
Slough Borough Council,805121,MMCG (2) Limited,M27C,Adult Social Care Operations,Supplies and Services,"3,699.54",Feb-23
Slough Borough Council,805121,MMCG (2) Limited,M27C,Adult Social Care Operations,Supplies and Services,"3,699.54",Feb-23
Slough Borough Council,805121,MMCG (2) Limited,M27C,Adult Social Care Operations,Supplies and Services,"3,699.54",Feb-23
Slough Borough Council,805121,MMCG (2) Limited,M27C,Adult Social Care Operations,Supplies and Services,"3,699.54",Feb-23
Slough Borough Council,805121,MMCG (2) Limited,M27C,Adult Social Care Operations,Supplies and Services,"3,699.54",Feb-23
Slough Borough Council,805121,MMCG (2) Limited,M27C,Adult Social Care Operations,Supplies and Services,"3,699.54",Feb-23
Slough Borough Council,805121,MMCG (2) Limited,M27C,Adult Social Care Operations,Supplies and Services,"3,699.54",Feb-23
Slough Borough Council,805121,MMCG (2) Limited,M28C,Adult Social Care Operations,Supplies and Services,"3,699.54",Feb-23
Slough Borough Council,805121,MMCG (2) Limited,M28C,Adult Social Care Operations,Supplies and Services,"3,580.20",Feb-23
Slough Borough Council,805121,MMCG (2) Limited,M28C,Adult Social Care Operations,Supplies and Services,"3,698.58",Feb-23
Slough Borough Council,805121,MMCG (2) Limited,M28C,Adult Social Care Operations,Supplies and Services,"3,699.54",Feb-23
Slough Borough Council,805121,MMCG (2) Limited,M28C,Adult Social Care Operations,Supplies and Services,"2,099.42",Feb-23
Slough Borough Council,805121,MMCG (2) Limited,M28C,Adult Social Care Operations,Supplies and Services,"1,516.25",Feb-23
Slough Borough Council,805121,MMCG (2) Limited,M29C,Adult Social Care Operations,Supplies and Services,"2,983.50",Feb-23
Slough Borough Council,804815,Molly Southall,C322,Community,Supplies and Services,750.00,Feb-23
Slough Borough Council,1140,Montem Guesthouse,H205,Housing (People) Services,Supplies and Services,"1,705.00",Feb-23
Slough Borough Council,1140,Montem Guesthouse,H205,Housing (People) Services,Supplies and Services,"1,705.00",Feb-23
Slough Borough Council,1140,Montem Guesthouse,H205,Housing (People) Services,Supplies and Services,"1,550.00",Feb-23
Slough Borough Council,1140,Montem Guesthouse,H205,Housing (People) Services,Supplies and Services,"1,240.00",Feb-23
Slough Borough Council,1140,Montem Guesthouse,H205,Housing (People) Services,Supplies and Services,"1,550.00",Feb-23
Slough Borough Council,1140,Montem Guesthouse,H205,Housing (People) Services,Supplies and Services,"1,705.00",Feb-23
Slough Borough Council,1140,Montem Guesthouse,H205,Housing (People) Services,Supplies and Services,"1,705.00",Feb-23
Slough Borough Council,1140,Montem Guesthouse,H205,Housing (People) Services,Supplies and Services,"1,550.00",Feb-23
Slough Borough Council,1140,Montem Guesthouse,H205,Housing (People) Services,Supplies and Services,"1,395.00",Feb-23
Slough Borough Council,1140,Montem Guesthouse,H205,Housing (People) Services,Supplies and Services,"1,550.00",Feb-23
Slough Borough Council,1140,Montem Guesthouse,H205,Housing (People) Services,Supplies and Services,"1,457.00",Feb-23
Slough Borough Council,1140,Montem Guesthouse,H205,Housing (People) Services,Supplies and Services,"1,395.00",Feb-23
Slough Borough Council,1140,Montem Guesthouse,H205,Housing (People) Services,Supplies and Services,"1,705.00",Feb-23
Slough Borough Council,1140,Montem Guesthouse,H205,Housing (People) Services,Supplies and Services,"1,550.00",Feb-23
Slough Borough Council,1140,Montem Guesthouse,H205,Housing (People) Services,Supplies and Services,"1,395.00",Feb-23
Slough Borough Council,1140,Montem Guesthouse,H205,Housing (People) Services,Supplies and Services,"1,550.00",Feb-23
Slough Borough Council,1140,Montem Guesthouse,H205,Housing (People) Services,Supplies and Services,611.00,Feb-23
Slough Borough Council,1140,Montem Guesthouse,H205,Housing (People) Services,Supplies and Services,"1,550.00",Feb-23
Slough Borough Council,1140,Montem Guesthouse,H205,Housing (People) Services,Supplies and Services,"1,705.00",Feb-23
Slough Borough Council,1140,Montem Guesthouse,H205,Housing (People) Services,Supplies and Services,"1,550.00",Feb-23
Slough Borough Council,1140,Montem Guesthouse,H205,Housing (People) Services,Supplies and Services,"1,705.00",Feb-23
Slough Borough Council,1140,Montem Guesthouse,H205,Housing (People) Services,Supplies and Services,"1,395.00",Feb-23
Slough Borough Council,1140,Montem Guesthouse,H205,Housing (People) Services,Supplies and Services,"1,350.00",Feb-23
Slough Borough Council,1140,Montem Guesthouse,H205,Housing (People) Services,Supplies and Services,"1,705.00",Feb-23
Slough Borough Council,1140,Montem Guesthouse,H205,Housing (People) Services,Supplies and Services,"1,395.00",Feb-23
Slough Borough Council,1140,Montem Guesthouse,H205,Housing (People) Services,Supplies and Services,"1,550.00",Feb-23
Slough Borough Council,1140,Montem Guesthouse,H205,Housing (People) Services,Supplies and Services,"1,705.00",Feb-23
Slough Borough Council,1140,Montem Guesthouse,H205,Housing (People) Services,Supplies and Services,"1,705.00",Feb-23
Slough Borough Council,1140,Montem Guesthouse,H205,Housing (People) Services,Supplies and Services,"1,860.00",Feb-23
Slough Borough Council,1140,Montem Guesthouse,H205,Housing (People) Services,Supplies and Services,"1,395.00",Feb-23
Slough Borough Council,1140,Montem Guesthouse,H205,Housing (People) Services,Supplies and Services,"1,395.00",Feb-23
Slough Borough Council,1140,Montem Guesthouse,H205,Housing (People) Services,Supplies and Services,"1,457.00",Feb-23
Slough Borough Council,1140,Montem Guesthouse,H205,Housing (People) Services,Supplies and Services,"1,550.00",Feb-23
Slough Borough Council,1140,Montem Guesthouse,H205,Housing (People) Services,Supplies and Services,"1,457.00",Feb-23
Slough Borough Council,1140,Montem Guesthouse,H205,Housing (People) Services,Supplies and Services,"1,457.00",Feb-23
Slough Borough Council,1140,Montem Guesthouse,H205,Housing (People) Services,Supplies and Services,"2,015.00",Feb-23
Slough Borough Council,1140,Montem Guesthouse,H205,Housing (People) Services,Supplies and Services,"1,705.00",Feb-23
Slough Borough Council,1140,Montem Guesthouse,H205,Housing (People) Services,Supplies and Services,"2,015.00",Feb-23
Slough Borough Council,3302,Montem Primary School,E620,Children & Families,Supplies and Services,"33,160.00",Feb-23
Slough Borough Council,805354,Morelock Signs Limited,P192,Capital,Supplies and Services,754.28,Feb-23
Slough Borough Council,807432,MPD FM Limited,P172,Capital,Supplies and Services,"8,883.36",Feb-23
Slough Borough Council,807432,MPD FM Limited,P242,Capital,Supplies and Services,"6,590.88",Feb-23
Slough Borough Council,806484,Mrs Parwinder Kaur Bhandal,H205,Housing (People) Services,Supplies and Services,"8,215.00",Feb-23
Slough Borough Council,806484,Mrs Parwinder Kaur Bhandal,H205,Housing (People) Services,Supplies and Services,"4,805.00",Feb-23
Slough Borough Council,806484,Mrs Parwinder Kaur Bhandal,H205,Housing (People) Services,Supplies and Services,"2,994.00",Feb-23
Slough Borough Council,804936,Ms. Marinela Caldarus,F382,Children & Families,Supplies and Services,"1,716.00",Feb-23
Slough Borough Council,806858,MUDDY BOOTS DAY NURSERY LTD,F909,Children & Families,Supplies and Services,"6,081.95",Feb-23
Slough Borough Council,804426,Music Mark,F253,Children & Families,Supplies and Services,675.00,Feb-23
Slough Borough Council,805369,NAS Services Limited,M42E,Adult Social Care Operations,Supplies and Services,"7,930.48",Feb-23
Slough Borough Council,808068,NEC Software Solutions UK Limited,J160,Place Management,Supplies and Services,841.02,Feb-23
Slough Borough Council,808068,NEC Software Solutions UK Limited,J160,Place Management,Supplies and Services,"45,208.20",Feb-23
Slough Borough Council,808068,NEC Software Solutions UK Limited,J160,Place Management,Supplies and Services,"23,313.16",Feb-23
Slough Borough Council,808068,NEC Software Solutions UK Limited,J160,Place Management,Supplies and Services,"10,540.00",Feb-23
Slough Borough Council,808068,NEC Software Solutions UK Limited,J160,Place Management,Supplies and Services,"1,275.00",Feb-23
Slough Borough Council,1864,Noahs Ark Environmental Services Ltd,H253,Community,Supplies and Services,"2,465.00",Feb-23
Slough Borough Council,1864,Noahs Ark Environmental Services Ltd,H253,Community,Supplies and Services,"2,059.36",Feb-23
Slough Borough Council,807860,Nominet UK,B282,Digital and Strategic IT,Supplies and Services,765.94,Feb-23
Slough Borough Council,808753,NOODLE LONDON PARTNERS LTD,B252,Business Services,Supplies and Services,"4,960.00",Feb-23
Slough Borough Council,3717,Norwood Schools Limited,M26E,Adult Social Care Operations,Supplies and Services,"3,612.72",Feb-23
Slough Borough Council,1343,Novacroft,D512,Place Strategy & Infrastructure,Supplies and Services,734.59,Feb-23
Slough Borough Council,803238,Oasis Care and Training Agency,M44C,Adult Social Care Operations,Supplies and Services,601.64,Feb-23
Slough Borough Council,803238,Oasis Care and Training Agency,M44C,Adult Social Care Operations,Supplies and Services,"1,100.16",Feb-23
Slough Borough Council,803238,Oasis Care and Training Agency,M44C,Adult Social Care Operations,Supplies and Services,842.32,Feb-23
Slough Borough Council,803238,Oasis Care and Training Agency,M44C,Adult Social Care Operations,Supplies and Services,962.64,Feb-23
Slough Borough Council,803238,Oasis Care and Training Agency,M44C,Adult Social Care Operations,Supplies and Services,722.00,Feb-23
Slough Borough Council,803238,Oasis Care and Training Agency,M44C,Adult Social Care Operations,Supplies and Services,"2,045.60",Feb-23
Slough Borough Council,803238,Oasis Care and Training Agency,M44C,Adult Social Care Operations,Supplies and Services,739.16,Feb-23
Slough Borough Council,803238,Oasis Care and Training Agency,M44C,Adult Social Care Operations,Supplies and Services,"1,082.96",Feb-23
Slough Borough Council,803238,Oasis Care and Training Agency,M44C,Adult Social Care Operations,Supplies and Services,722.00,Feb-23
Slough Borough Council,803238,Oasis Care and Training Agency,M44C,Adult Social Care Operations,Supplies and Services,"1,100.16",Feb-23
Slough Borough Council,803238,Oasis Care and Training Agency,M44C,Adult Social Care Operations,Supplies and Services,"1,151.72",Feb-23
Slough Borough Council,803238,Oasis Care and Training Agency,M44C,Adult Social Care Operations,Supplies and Services,"2,681.64",Feb-23
Slough Borough Council,803238,Oasis Care and Training Agency,M44C,Adult Social Care Operations,Supplies and Services,"2,784.80",Feb-23
Slough Borough Council,803238,Oasis Care and Training Agency,M44C,Adult Social Care Operations,Supplies and Services,"1,564.28",Feb-23
Slough Borough Council,803238,Oasis Care and Training Agency,M44C,Adult Social Care Operations,Supplies and Services,"1,443.96",Feb-23
Slough Borough Council,803238,Oasis Care and Training Agency,M44C,Adult Social Care Operations,Supplies and Services,"1,925.29",Feb-23
Slough Borough Council,803238,Oasis Care and Training Agency,M44D,Adult Social Care Operations,Supplies and Services,"2,165.96",Feb-23
Slough Borough Council,803238,Oasis Care and Training Agency,M44D,Adult Social Care Operations,Supplies and Services,979.84,Feb-23
Slough Borough Council,803238,Oasis Care and Training Agency,M44D,Adult Social Care Operations,Supplies and Services,670.40,Feb-23
Slough Borough Council,803238,Oasis Care and Training Agency,M44D,Adult Social Care Operations,Supplies and Services,"1,323.64",Feb-23
Slough Borough Council,803238,Oasis Care and Training Agency,M44D,Adult Social Care Operations,Supplies and Services,799.34,Feb-23
Slough Borough Council,803238,Oasis Care and Training Agency,M44D,Adult Social Care Operations,Supplies and Services,"2,165.96",Feb-23
Slough Borough Council,803238,Oasis Care and Training Agency,M44D,Adult Social Care Operations,Supplies and Services,816.54,Feb-23
Slough Borough Council,803238,Oasis Care and Training Agency,M44D,Adult Social Care Operations,Supplies and Services,842.32,Feb-23
Slough Borough Council,803238,Oasis Care and Training Agency,M44D,Adult Social Care Operations,Supplies and Services,"1,340.84",Feb-23
Slough Borough Council,803238,Oasis Care and Training Agency,M44F,Adult Social Care Operations,Supplies and Services,"1,375.20",Feb-23
Slough Borough Council,803238,Oasis Care and Training Agency,M44F,Adult Social Care Operations,Supplies and Services,"4,331.88",Feb-23
Slough Borough Council,1767,Olive Tree Montessori Ltd,F909,Children & Families,Supplies and Services,"5,156.15",Feb-23
Slough Borough Council,3603,Olympia Transport Limited,F123,Education & Inclusion,Supplies and Services,"13,041.03",Feb-23
Slough Borough Council,3603,Olympia Transport Limited,F123,Education & Inclusion,Supplies and Services,"2,397.00",Feb-23
Slough Borough Council,804687,Optalis Limited,M42E,Adult Social Care Operations,Supplies and Services,"5,642.13",Feb-23
Slough Borough Council,804687,Optalis Limited,M42E,Adult Social Care Operations,Supplies and Services,"4,807.26",Feb-23
Slough Borough Council,803490,Optimum Specialised Home Limited,M26E,Adult Social Care Operations,Supplies and Services,"8,400.00",Feb-23
Slough Borough Council,803490,Optimum Specialised Home Limited,M26E,Adult Social Care Operations,Supplies and Services,"7,180.00",Feb-23
Slough Borough Council,803490,Optimum Specialised Home Limited,M26E,Adult Social Care Operations,Supplies and Services,"7,200.00",Feb-23
Slough Borough Council,807272,Origin Transport Consultants Ltd,D224,Place Regulation,Supplies and Services,"2,876.31",Feb-23
Slough Borough Council,807272,Origin Transport Consultants Ltd,D224,Place Regulation,Supplies and Services,"4,899.86",Feb-23
Slough Borough Council,805011,Osborne Property Services Limited,J607,Place Management,Premises,"133,406.55",Feb-23
Slough Borough Council,805011,Osborne Property Services Limited,J607,Place Management,Premises,"48,798.91",Feb-23
Slough Borough Council,805011,Osborne Property Services Limited,J606,Place Management,Supplies and Services,"109,984.03",Feb-23
Slough Borough Council,805011,Osborne Property Services Limited,P412,Capital,Capital Charges,"55,203.73",Feb-23
Slough Borough Council,805011,Osborne Property Services Limited,P413,Capital,Capital Charges,"7,286.68",Feb-23
Slough Borough Council,805011,Osborne Property Services Limited,P415,Capital,Capital Charges,"60,287.72",Feb-23
Slough Borough Council,805011,Osborne Property Services Limited,P417,Capital,Capital Charges,"60,437.55",Feb-23
Slough Borough Council,805011,Osborne Property Services Limited,P418,Capital,Capital Charges,"4,449.51",Feb-23
Slough Borough Council,805011,Osborne Property Services Limited,P419,Capital,Capital Charges,"18,985.60",Feb-23
Slough Borough Council,805011,Osborne Property Services Limited,P421,Capital,Capital Charges,"30,886.52",Feb-23
Slough Borough Council,805011,Osborne Property Services Limited,P421,Capital,Capital Charges,"18,752.99",Feb-23
Slough Borough Council,805011,Osborne Property Services Limited,P421,Capital,Capital Charges,"67,860.56",Feb-23
Slough Borough Council,805011,Osborne Property Services Limited,P422,Capital,Capital Charges,"32,000.00",Feb-23
Slough Borough Council,805011,Osborne Property Services Limited,P431,Capital,Capital Charges,"154,934.95",Feb-23
Slough Borough Council,805011,Osborne Property Services Limited,P433,Capital,Capital Charges,"7,000.00",Feb-23
Slough Borough Council,805011,Osborne Property Services Limited,P547,Capital,Capital Charges,"33,262.93",Feb-23
Slough Borough Council,805011,Osborne Property Services Limited,P547,Capital,Capital Charges,"42,178.26",Feb-23
Slough Borough Council,805011,Osborne Property Services Limited,J607,Place Management,Supplies and Services,"74,617.90",Feb-23
Slough Borough Council,805011,Osborne Property Services Limited,J606,Place Management,Supplies and Services,"253,814.12",Feb-23
Slough Borough Council,3371,Our Lady Of Peace Catholic Primary and Nursery School,E340,Children & Families,Supplies and Services,"26,514.68",Feb-23
Slough Borough Council,803538,Oxford City Council,D206,Place Strategy & Infrastructure,Supplies and Services,"2,710.00",Feb-23
Slough Borough Council,680,Oxford House Community Care,M44C,Adult Social Care Operations,Supplies and Services,"1,211.30",Feb-23
Slough Borough Council,680,Oxford House Community Care,M44D,Adult Social Care Operations,Supplies and Services,"1,520.98",Feb-23
Slough Borough Council,518,Oxford House Nursing Home,M15D,Adult Social Care Operations,Supplies and Services,"3,235.76",Feb-23
Slough Borough Council,518,Oxford House Nursing Home,M15D,Adult Social Care Operations,Supplies and Services,"3,235.76",Feb-23
Slough Borough Council,518,Oxford House Nursing Home,M15D,Adult Social Care Operations,Supplies and Services,"3,235.76",Feb-23
Slough Borough Council,518,Oxford House Nursing Home,M15D,Adult Social Care Operations,Supplies and Services,"3,235.76",Feb-23
Slough Borough Council,518,Oxford House Nursing Home,M18C,Adult Social Care Operations,Supplies and Services,"3,235.76",Feb-23
Slough Borough Council,518,Oxford House Nursing Home,M18C,Adult Social Care Operations,Supplies and Services,"3,235.76",Feb-23
Slough Borough Council,518,Oxford House Nursing Home,M18C,Adult Social Care Operations,Supplies and Services,"3,235.76",Feb-23
Slough Borough Council,518,Oxford House Nursing Home,M18C,Adult Social Care Operations,Supplies and Services,"3,235.76",Feb-23
Slough Borough Council,518,Oxford House Nursing Home,M18C,Adult Social Care Operations,Supplies and Services,"5,200.00",Feb-23
Slough Borough Council,518,Oxford House Nursing Home,M18C,Adult Social Care Operations,Supplies and Services,"3,120.20",Feb-23
Slough Borough Council,518,Oxford House Nursing Home,M18C,Adult Social Care Operations,Supplies and Services,"3,235.76",Feb-23
Slough Borough Council,518,Oxford House Nursing Home,M18C,Adult Social Care Operations,Supplies and Services,"3,235.76",Feb-23
Slough Borough Council,518,Oxford House Nursing Home,M28C,Adult Social Care Operations,Supplies and Services,"3,052.60",Feb-23
Slough Borough Council,518,Oxford House Nursing Home,M28C,Adult Social Care Operations,Supplies and Services,"5,511.84",Feb-23
Slough Borough Council,518,Oxford House Nursing Home,M28C,Adult Social Care Operations,Supplies and Services,"-1,740.41",Feb-23
Slough Borough Council,807442,Pantheon Care Ltd,M44F,Adult Social Care Operations,Supplies and Services,"1,600.00",Feb-23
Slough Borough Council,2520,Paradigm Housing Group Ltd,H205,Housing (People) Services,Premises,"7,999.99",Feb-23
Slough Borough Council,808421,Paramjit Saib,F253,Children & Families,Agency Staff,"1,897.51",Feb-23
Slough Borough Council,808679,PARBHAN LTD,H205,Housing (People) Services,Supplies and Services,"4,070.00",Feb-23
Slough Borough Council,3271,Partnership In Care Ltd,M27F,Adult Social Care Operations,Supplies and Services,"1,839.32",Feb-23
Slough Borough Council,3271,Partnership In Care Ltd,M44F,Adult Social Care Operations,Supplies and Services,"2,783.44",Feb-23
Slough Borough Council,3271,Partnership In Care Ltd,M44F,Adult Social Care Operations,Supplies and Services,"2,783.44",Feb-23
Slough Borough Council,2509,Parvaaz Project,M44E,Adult Social Care Operations,Supplies and Services,678.60,Feb-23
Slough Borough Council,2509,Parvaaz Project,M44E,Adult Social Care Operations,Supplies and Services,678.60,Feb-23
Slough Borough Council,2509,Parvaaz Project,M44E,Adult Social Care Operations,Supplies and Services,678.60,Feb-23
Slough Borough Council,2509,Parvaaz Project,M44E,Adult Social Care Operations,Supplies and Services,678.60,Feb-23
Slough Borough Council,2509,Parvaaz Project,M50E,Adult Social Care Operations,Supplies and Services,800.40,Feb-23
Slough Borough Council,2509,Parvaaz Project,M50E,Adult Social Care Operations,Supplies and Services,800.40,Feb-23
Slough Borough Council,2509,Parvaaz Project,M50E,Adult Social Care Operations,Supplies and Services,800.40,Feb-23
Slough Borough Council,2509,Parvaaz Project,M50E,Adult Social Care Operations,Supplies and Services,800.40,Feb-23
Slough Borough Council,1468,Patrol,D010,Place Strategy & Infrastructure,Supplies and Services,"2,000.70",Feb-23
Slough Borough Council,1468,Patrol,D010,Place Strategy & Infrastructure,Supplies and Services,"2,000.70",Feb-23
Slough Borough Council,1468,Patrol,D123,Place Strategy & Infrastructure,Supplies and Services,"3,322.80",Feb-23
Slough Borough Council,807405,PayPoint Network Ltd,H055,Finance & Commercial,Supplies and Services,"5,954.55",Feb-23
Slough Borough Council,807405,PayPoint Network Ltd,H055,Finance & Commercial,Supplies and Services,"5,792.40",Feb-23
Slough Borough Council,807405,PayPoint Network Ltd,H055,Finance & Commercial,Supplies and Services,"5,011.10",Feb-23
Slough Borough Council,824,Penn Wood Primary and Nursery School,E450,Children & Families,Supplies and Services,"347,725.26",Feb-23
Slough Borough Council,808606,Pentwyn House Nursing Home,M18C,Adult Social Care Operations,Supplies and Services,"3,799.88",Feb-23
Slough Borough Council,807611,Peopletoo Ltd,A01D,People Adults,Supplies and Services,"25,078.00",Feb-23
Slough Borough Council,1504,Permanent Futures Limited,F410,Children & Families,Agency Staff,"1,350.00",Feb-23
Slough Borough Council,1504,Permanent Futures Limited,F410,Children & Families,Agency Staff,"1,350.00",Feb-23
Slough Borough Council,1504,Permanent Futures Limited,F410,Children & Families,Agency Staff,"1,350.00",Feb-23
Slough Borough Council,1504,Permanent Futures Limited,F640,Children & Families,Agency Staff,"1,500.00",Feb-23
Slough Borough Council,1504,Permanent Futures Limited,F640,Children & Families,Agency Staff,"1,500.00",Feb-23
Slough Borough Council,1504,Permanent Futures Limited,F640,Children & Families,Agency Staff,"1,500.00",Feb-23
Slough Borough Council,1504,Permanent Futures Limited,F640,Children & Families,Agency Staff,"1,500.00",Feb-23
Slough Borough Council,1504,Permanent Futures Limited,F640,Children & Families,Agency Staff,"1,500.00",Feb-23
Slough Borough Council,1504,Permanent Futures Limited,P331,Capital,Supplies and Services,"7,975.00",Feb-23
Slough Borough Council,803786,Phillipa Holliday,C322,Community,Supplies and Services,"2,343.00",Feb-23
Slough Borough Council,807727,Phoenix Infant Academy c/o Thames Learning Trust,E620,Children & Families,Supplies and Services,"14,000.00",Feb-23
Slough Borough Council,3359,Pippins School,E370,Children & Families,Supplies and Services,"21,211.27",Feb-23
Slough Borough Council,904,Pitney Bowes Finance Plc,K077,Business Services,Supplies and Services,"5,456.56",Feb-23
Slough Borough Council,807120,PJ Care Limited,M15D,Adult Social Care Operations,Supplies and Services,"8,880.20",Feb-23
Slough Borough Council,808563,Play & Care,F909,Children & Families,Supplies and Services,635.60,Feb-23
Slough Borough Council,3644,Poppy Cottage,M42E,Adult Social Care Operations,Supplies and Services,"6,159.00",Feb-23
Slough Borough Council,806875,Portsmouth City Council,P093,Capital,Capital Charges,"11,979.67",Feb-23
Slough Borough Council,806875,Portsmouth City Council,P093,Capital,Capital Charges,"4,594.16",Feb-23
Slough Borough Council,803188,Pre Paid Financial Services Ltd,A05C,People Strategy & Commissioning,Supplies and Services,"1,721.00",Feb-23
Slough Borough Council,803188,Pre Paid Financial Services Ltd,A05C,People Strategy & Commissioning,Supplies and Services,"1,727.00",Feb-23
Slough Borough Council,2537,Pre School Stars,F909,Children & Families,Supplies and Services,"6,682.55",Feb-23
Slough Borough Council,805398,PRIORITEYES LTD,A06E,Adult Social Care Operations,Supplies and Services,"7,140.00",Feb-23
Slough Borough Council,849,Priory Primary School,E380,Children & Families,Supplies and Services,"472,847.04",Feb-23
Slough Borough Council,849,Priory Primary School,B297,Finance & Commercial,Government Grants,"4,200.00",Feb-23
Slough Borough Council,807130,Prism Power Limited,B064,Business Services,Premises,"1,247.00",Feb-23
Slough Borough Council,807130,Prism Power Limited,B064,Business Services,Premises,"2,494.00",Feb-23
Slough Borough Council,808180,Proact,B342,Digital and Strategic IT,Capital Charges,"1,100.00",Feb-23
Slough Borough Council,808180,Proact,P084,Capital,Capital Charges,550.00,Feb-23
Slough Borough Council,808180,Proact,P084,Capital,Capital Charges,825.00,Feb-23
Slough Borough Council,808677,Prodigy Dance Studios,C424,Community,Supplies and Services,"2,500.00",Feb-23
Slough Borough Council,805949,Promedica24 UK Limited,M44D,Adult Social Care Operations,Supplies and Services,"3,428.57",Feb-23
Slough Borough Council,805949,Promedica24 UK Limited,M44D,Adult Social Care Operations,Supplies and Services,"3,542.86",Feb-23
Slough Borough Council,805949,Promedica24 UK Limited,M44D,Adult Social Care Operations,Supplies and Services,"3,200.00",Feb-23
Slough Borough Council,805949,Promedica24 UK Limited,M44D,Adult Social Care Operations,Supplies and Services,"3,542.86",Feb-23
Slough Borough Council,805949,Promedica24 UK Limited,M44D,Adult Social Care Operations,Supplies and Services,"3,542.86",Feb-23
Slough Borough Council,803568,ProQuest LLC,C104,Community,Supplies and Services,"3,408.27",Feb-23
Slough Borough Council,1138,Qed Slough Ltd,F868,Children & Families,Supplies and Services,"593,036.38",Feb-23
Slough Borough Council,808360,Queensmead-Witherslack,F462,Children & Families,Supplies and Services,"26,075.00",Feb-23
Slough Borough Council,808360,Queensmead-Witherslack,F462,Children & Families,Supplies and Services,"31,027.00",Feb-23
Slough Borough Council,808200,Quest Recovery Services Ltd,M44C,Adult Social Care Operations,Supplies and Services,"1,181.28",Feb-23
Slough Borough Council,808200,Quest Recovery Services Ltd,M44C,Adult Social Care Operations,Supplies and Services,"1,848.96",Feb-23
Slough Borough Council,808200,Quest Recovery Services Ltd,M44C,Adult Social Care Operations,Supplies and Services,719.04,Feb-23
Slough Borough Council,808200,Quest Recovery Services Ltd,M44C,Adult Social Care Operations,Supplies and Services,719.04,Feb-23
Slough Borough Council,808200,Quest Recovery Services Ltd,M44C,Adult Social Care Operations,Supplies and Services,552.12,Feb-23
Slough Borough Council,808200,Quest Recovery Services Ltd,M44D,Adult Social Care Operations,Supplies and Services,"1,318.24",Feb-23
Slough Borough Council,808200,Quest Recovery Services Ltd,M44F,Adult Social Care Operations,Supplies and Services,"5,680.00",Feb-23
Slough Borough Council,808200,Quest Recovery Services Ltd,M44F,Adult Social Care Operations,Supplies and Services,"-5,680.00",Feb-23
Slough Borough Council,808200,Quest Recovery Services Ltd,M44F,Adult Social Care Operations,Supplies and Services,"5,376.00",Feb-23
Slough Borough Council,808200,Quest Recovery Services Ltd,M45C,Adult Social Care Operations,Supplies and Services,"1,198.40",Feb-23
Slough Borough Council,808200,Quest Recovery Services Ltd,M45C,Adult Social Care Operations,Supplies and Services,"1,016.72",Feb-23
Slough Borough Council,808200,Quest Recovery Services Ltd,M45C,Adult Social Care Operations,Supplies and Services,736.16,Feb-23
Slough Borough Council,808200,Quest Recovery Services Ltd,M45C,Adult Social Care Operations,Supplies and Services,796.08,Feb-23
Slough Borough Council,808200,Quest Recovery Services Ltd,M45C,Adult Social Care Operations,Supplies and Services,838.88,Feb-23
Slough Borough Council,808200,Quest Recovery Services Ltd,M45C,Adult Social Care Operations,Supplies and Services,693.36,Feb-23
Slough Borough Council,808200,Quest Recovery Services Ltd,M45C,Adult Social Care Operations,Supplies and Services,"1,198.40",Feb-23
Slough Borough Council,808200,Quest Recovery Services Ltd,M45C,Adult Social Care Operations,Supplies and Services,963.00,Feb-23
Slough Borough Council,808200,Quest Recovery Services Ltd,M48C,Adult Social Care Operations,Supplies and Services,"2,157.12",Feb-23
Slough Borough Council,808200,Quest Recovery Services Ltd,M48C,Adult Social Care Operations,Supplies and Services,"1,078.56",Feb-23
Slough Borough Council,808200,Quest Recovery Services Ltd,M48C,Adult Social Care Operations,Supplies and Services,513.66,Feb-23
Slough Borough Council,805978,Quickscore,B179,Business Services,Premises,"1,800.00",Feb-23
Slough Borough Council,2685,R.E.A.C.H,M26E,Adult Social Care Operations,Supplies and Services,"7,667.52",Feb-23
Slough Borough Council,2685,R.E.A.C.H,M26E,Adult Social Care Operations,Supplies and Services,"7,142.96",Feb-23
Slough Borough Council,2685,R.E.A.C.H,M26E,Adult Social Care Operations,Supplies and Services,"6,191.08",Feb-23
Slough Borough Council,2685,R.E.A.C.H,M26E,Adult Social Care Operations,Supplies and Services,"10,591.40",Feb-23
Slough Borough Council,2685,R.E.A.C.H,M26E,Adult Social Care Operations,Supplies and Services,"5,556.80",Feb-23
Slough Borough Council,2685,R.E.A.C.H,M26E,Adult Social Care Operations,External Receipts,-574.80,Feb-23
Slough Borough Council,2685,R.E.A.C.H,M26E,Adult Social Care Operations,External Receipts,-641.20,Feb-23
Slough Borough Council,803575,Read - The Reading Agency,C104,Community,Supplies and Services,"3,044.00",Feb-23
Slough Borough Council,805444,Reading Transport Ltd,D512,Place Strategy & Infrastructure,Supplies and Services,"5,741.76",Feb-23
Slough Borough Council,805444,Reading Transport Ltd,D512,Place Strategy & Infrastructure,Supplies and Services,"5,543.17",Feb-23
Slough Borough Council,806766,Red Brick Care Ltd,M44C,Adult Social Care Operations,Supplies and Services,867.00,Feb-23
Slough Borough Council,806766,Red Brick Care Ltd,M44C,Adult Social Care Operations,Supplies and Services,833.00,Feb-23
Slough Borough Council,806766,Red Brick Care Ltd,M44C,Adult Social Care Operations,Supplies and Services,"1,666.00",Feb-23
Slough Borough Council,806766,Red Brick Care Ltd,M44C,Adult Social Care Operations,Supplies and Services,"2,142.00",Feb-23
Slough Borough Council,806766,Red Brick Care Ltd,M44C,Adult Social Care Operations,Supplies and Services,"2,142.00",Feb-23
Slough Borough Council,806766,Red Brick Care Ltd,M44C,Adult Social Care Operations,Supplies and Services,"2,210.00",Feb-23
Slough Borough Council,806766,Red Brick Care Ltd,M44C,Adult Social Care Operations,Supplies and Services,"2,618.00",Feb-23
Slough Borough Council,806541,Redacted,F549,Children & Families,Supplies and Services,"4,620.00",Feb-23
Slough Borough Council,806541,Redacted,F549,Children & Families,Supplies and Services,"4,620.00",Feb-23
Slough Borough Council,807810,Redacted,F556,Children & Families,Supplies and Services,"3,534.00",Feb-23
Slough Borough Council,2952,Redacted,F909,Children & Families,Supplies and Services,587.60,Feb-23
Slough Borough Council,805321,Redacted,F909,Children & Families,Supplies and Services,819.25,Feb-23
Slough Borough Council,805084,Redacted,F909,Children & Families,Supplies and Services,925.37,Feb-23
Slough Borough Council,806541,Redacted,F909,Children & Families,Supplies and Services,"11,794.19",Feb-23
Slough Borough Council,3903,Redacted,F909,Children & Families,Supplies and Services,"1,438.39",Feb-23
Slough Borough Council,805403,Redacted,F909,Children & Families,Supplies and Services,621.50,Feb-23
Slough Borough Council,1928,Redacted,F909,Children & Families,Supplies and Services,621.50,Feb-23
Slough Borough Council,3834,Redacted,F909,Children & Families,Supplies and Services,776.87,Feb-23
Slough Borough Council,805579,Redacted,F909,Children & Families,Supplies and Services,532.95,Feb-23
Slough Borough Council,3173,Redacted,F909,Children & Families,Supplies and Services,"1,226.86",Feb-23
Slough Borough Council,808110,Redacted,F909,Children & Families,Supplies and Services,"1,864.50",Feb-23
Slough Borough Council,3934,Redacted,F909,Children & Families,Supplies and Services,605.34,Feb-23
Slough Borough Council,3209,Redacted,F909,Children & Families,Supplies and Services,621.50,Feb-23
Slough Borough Council,804932,Redacted,F909,Children & Families,Supplies and Services,"1,266.91",Feb-23
Slough Borough Council,804707,Redacted,F909,Children & Families,Supplies and Services,"1,226.86",Feb-23
Slough Borough Council,807233,Redacted,F909,Children & Families,Supplies and Services,635.62,Feb-23
Slough Borough Council,803824,Redacted,F909,Children & Families,Supplies and Services,"4,252.05",Feb-23
Slough Borough Council,807475,Redacted,F909,Children & Families,Supplies and Services,"1,361.07",Feb-23
Slough Borough Council,803853,Redacted,F909,Children & Families,Supplies and Services,"4,144.67",Feb-23
Slough Borough Council,807647,Redacted,F909,Children & Families,Supplies and Services,"3,244.72",Feb-23
Slough Borough Council,807836,Redacted,F909,Children & Families,Supplies and Services,"1,585.65",Feb-23
Slough Borough Council,807698,Redacted,F909,Children & Families,Supplies and Services,628.64,Feb-23
Slough Borough Council,803874,Redacted,F909,Children & Families,Supplies and Services,"1,243.00",Feb-23
Slough Borough Council,803819,Redacted,F909,Children & Families,Supplies and Services,"1,423.57",Feb-23
Slough Borough Council,805806,Redacted,F909,Children & Families,Supplies and Services,621.50,Feb-23
Slough Borough Council,804597,Redline Buses Ltd,D512,Place Strategy & Infrastructure,Supplies and Services,"3,604.26",Feb-23
Slough Borough Council,804597,Redline Buses Ltd,D512,Place Strategy & Infrastructure,Supplies and Services,"3,600.59",Feb-23
Slough Borough Council,804597,Redline Buses Ltd,D512,Place Strategy & Infrastructure,Supplies and Services,"3,109.65",Feb-23
Slough Borough Council,806854,Reed Specialist Recruitment,B033,People,Supplies and Services,783.38,Feb-23
Slough Borough Council,2229,Reliance High-Tech Limited (T/A Reliance Project),C025,Community,Supplies and Services,939.60,Feb-23
Slough Borough Council,2229,Reliance High-Tech Limited (T/A Reliance Project),H253,Community,Supplies and Services,828.97,Feb-23
Slough Borough Council,2229,Reliance High-Tech Limited (T/A Reliance Project),H253,Community,Supplies and Services,"1,279.08",Feb-23
Slough Borough Council,2229,Reliance High-Tech Limited (T/A Reliance Project),F002,Community,Supplies and Services,587.25,Feb-23
Slough Borough Council,2229,Reliance High-Tech Limited (T/A Reliance Project),J016,Place Management,Supplies and Services,"1,570.68",Feb-23
Slough Borough Council,2229,Reliance High-Tech Limited (T/A Reliance Project),J017,Place Management,Supplies and Services,"2,423.56",Feb-23
Slough Borough Council,808302,Reliant Care Limited,M44C,Adult Social Care Operations,Supplies and Services,"3,124.71",Feb-23
Slough Borough Council,807562,Renovo Farnborough Limited,M25D,Adult Social Care Operations,Supplies and Services,"7,871.40",Feb-23
Slough Borough Council,781,Resource Productions CIC,C322,Community,Supplies and Services,"1,402.50",Feb-23
Slough Borough Council,3486,Response Organisation,M42F,Adult Social Care Operations,Supplies and Services,603.09,Feb-23
Slough Borough Council,3486,Response Organisation,M42F,Adult Social Care Operations,Supplies and Services,603.09,Feb-23
Slough Borough Council,3486,Response Organisation,M42F,Adult Social Care Operations,Supplies and Services,"1,274.28",Feb-23
Slough Borough Council,1893,Ricardo-Aea Limited,D308,Place Operations,Supplies and Services,"8,891.50",Feb-23
Slough Borough Council,2529,Richmond Fellowship,M27F,Adult Social Care Operations,Supplies and Services,"1,920.00",Feb-23
Slough Borough Council,805200,RJ Morgan Fencing Ltd,B089,Place Strategy & Infrastructure,Supplies and Services,700.00,Feb-23
Slough Borough Council,805200,RJ Morgan Fencing Ltd,D880,Place Operations,Supplies and Services,680.00,Feb-23
Slough Borough Council,1553,Robyn Baker,C322,Community,Supplies and Services,"1,645.50",Feb-23
Slough Borough Council,806930,Roselight Healthcare Service Limited,M42F,Adult Social Care Operations,Supplies and Services,"3,340.00",Feb-23
Slough Borough Council,806930,Roselight Healthcare Service Limited,M42F,Adult Social Care Operations,Supplies and Services,"2,360.00",Feb-23
Slough Borough Council,806930,Roselight Healthcare Service Limited,M44D,Adult Social Care Operations,Supplies and Services,"1,749.64",Feb-23
Slough Borough Council,806930,Roselight Healthcare Service Limited,M44F,Adult Social Care Operations,Supplies and Services,590.00,Feb-23
Slough Borough Council,806930,Roselight Healthcare Service Limited,M44F,Adult Social Care Operations,Supplies and Services,"2,360.00",Feb-23
Slough Borough Council,806930,Roselight Healthcare Service Limited,M44F,Adult Social Care Operations,Supplies and Services,"1,667.16",Feb-23
Slough Borough Council,806930,Roselight Healthcare Service Limited,M44F,Adult Social Care Operations,Supplies and Services,"1,765.16",Feb-23
Slough Borough Council,806930,Roselight Healthcare Service Limited,M44F,Adult Social Care Operations,Supplies and Services,"1,670.00",Feb-23
Slough Borough Council,806930,Roselight Healthcare Service Limited,M44F,Adult Social Care Operations,Supplies and Services,"1,722.00",Feb-23
Slough Borough Council,806930,Roselight Healthcare Service Limited,M44F,Adult Social Care Operations,Supplies and Services,"1,930.00",Feb-23
Slough Borough Council,806930,Roselight Healthcare Service Limited,M44F,Adult Social Care Operations,Supplies and Services,"1,724.72",Feb-23
Slough Borough Council,806930,Roselight Healthcare Service Limited,M44F,Adult Social Care Operations,Supplies and Services,"3,381.84",Feb-23
Slough Borough Council,806930,Roselight Healthcare Service Limited,M44F,Adult Social Care Operations,Supplies and Services,"1,667.16",Feb-23
Slough Borough Council,806930,Roselight Healthcare Service Limited,M44F,Adult Social Care Operations,Supplies and Services,"3,381.84",Feb-23
Slough Borough Council,806930,Roselight Healthcare Service Limited,M44F,Adult Social Care Operations,Supplies and Services,"2,600.00",Feb-23
Slough Borough Council,806930,Roselight Healthcare Service Limited,M44F,Adult Social Care Operations,Supplies and Services,"2,415.60",Feb-23
Slough Borough Council,806930,Roselight Healthcare Service Limited,M44F,Adult Social Care Operations,Supplies and Services,"1,506.00",Feb-23
Slough Borough Council,806930,Roselight Healthcare Service Limited,M44F,Adult Social Care Operations,Supplies and Services,"2,360.00",Feb-23
Slough Borough Council,1220,Royal Borough Of Windsor & Mhead,A05C,People Strategy & Commissioning,Supplies and Services,950.00,Feb-23
Slough Borough Council,2168,RSM UK Risk Assurance Services LLP,B132,Finance & Commercial,Supplies and Services,"24,050.00",Feb-23
Slough Borough Council,807425,Ruskin Mill Trust Ltd,F462,Children & Families,Supplies and Services,"80,587.69",Feb-23
Slough Borough Council,842,Ryvers Primary School,E620,Children & Families,Supplies and Services,"23,521.66",Feb-23
Slough Borough Council,842,Ryvers Primary School,F200,Education & Inclusion,Supplies and Services,"2,200.00",Feb-23
Slough Borough Council,808515,S R Estate Holding Limited,H205,Housing (People) Services,Supplies and Services,"1,540.00",Feb-23
Slough Borough Council,806398,Saba Park UK Services Limited,D122,Place Strategy & Infrastructure,Premises,"14,512.21",Feb-23
Slough Borough Council,806398,Saba Park UK Services Limited,D123,Place Strategy & Infrastructure,Supplies and Services,"2,771.10",Feb-23
Slough Borough Council,806398,Saba Park UK Services Limited,D123,Place Strategy & Infrastructure,Supplies and Services,539.98,Feb-23
Slough Borough Council,806398,Saba Park UK Services Limited,D123,Place Strategy & Infrastructure,Supplies and Services,"105,316.37",Feb-23
Slough Borough Council,806398,Saba Park UK Services Limited,D122,Place Strategy & Infrastructure,Supplies and Services,"11,701.82",Feb-23
Slough Borough Council,806398,Saba Park UK Services Limited,D123,Place Strategy & Infrastructure,Supplies and Services,"1,792.73",Feb-23
Slough Borough Council,806398,Saba Park UK Services Limited,D010,Place Strategy & Infrastructure,Supplies and Services,"17,400.50",Feb-23
Slough Borough Council,805875,Salutem Shared Services,M26E,Adult Social Care Operations,Supplies and Services,"2,130.42",Feb-23
Slough Borough Council,805875,Salutem Shared Services,M26E,Adult Social Care Operations,Supplies and Services,628.05,Feb-23
Slough Borough Council,805875,Salutem Shared Services,M26E,Adult Social Care Operations,Supplies and Services,"11,566.67",Feb-23
Slough Borough Council,805875,Salutem Shared Services,M26E,Adult Social Care Operations,Supplies and Services,"11,566.67",Feb-23
Slough Borough Council,805875,Salutem Shared Services,M26E,Adult Social Care Operations,Supplies and Services,"11,193.60",Feb-23
Slough Borough Council,805875,Salutem Shared Services,M26E,Adult Social Care Operations,Supplies and Services,"11,193.60",Feb-23
Slough Borough Council,805875,Salutem Shared Services,M26E,Adult Social Care Operations,External Receipts,-628.02,Feb-23
Slough Borough Council,1661,Scottish And Southern Electricity,D413,Place Strategy & Infrastructure,Supplies and Services,547.18,Feb-23
Slough Borough Council,3169,Seeability,M26E,Adult Social Care Operations,Supplies and Services,"11,832.08",Feb-23
Slough Borough Council,3169,Seeability,M26E,Adult Social Care Operations,Supplies and Services,"7,354.04",Feb-23
Slough Borough Council,806080,Selectamark Security Systems PLC,B282,Digital and Strategic IT,Supplies and Services,710.00,Feb-23
Slough Borough Council,803999,Sequence Care Group,M26E,Adult Social Care Operations,Supplies and Services,"11,487.11",Feb-23
Slough Borough Council,808140,Service to the Aged Ltd,M15D,Adult Social Care Operations,Supplies and Services,"3,990.01",Feb-23
Slough Borough Council,808140,Service to the Aged Ltd,M15D,Adult Social Care Operations,Supplies and Services,"3,990.01",Feb-23
Slough Borough Council,805203,Shorts Agricultural Services Ltd,D342,Place Operations,Supplies and Services,-806.40,Feb-23
Slough Borough Council,805203,Shorts Agricultural Services Ltd,D342,Place Operations,Supplies and Services,"15,528.87",Feb-23
Slough Borough Council,805203,Shorts Agricultural Services Ltd,D342,Place Operations,Supplies and Services,"13,106.38",Feb-23
Slough Borough Council,805203,Shorts Agricultural Services Ltd,D342,Place Operations,Supplies and Services,535.20,Feb-23
Slough Borough Council,805203,Shorts Agricultural Services Ltd,D342,Place Operations,Supplies and Services,"6,211.80",Feb-23
Slough Borough Council,805303,Sign Health,M27C,Adult Social Care Operations,Supplies and Services,"4,024.20",Feb-23
Slough Borough Council,805303,Sign Health,M27C,Adult Social Care Operations,Supplies and Services,"4,158.34",Feb-23
Slough Borough Council,805303,Sign Health,M27C,Adult Social Care Operations,Supplies and Services,"3,755.92",Feb-23
Slough Borough Council,805303,Sign Health,M27C,Adult Social Care Operations,Supplies and Services,"4,158.34",Feb-23
Slough Borough Council,805303,Sign Health,M27C,Adult Social Care Operations,Supplies and Services,"4,024.20",Feb-23
Slough Borough Council,805303,Sign Health,M27C,Adult Social Care Operations,Supplies and Services,"4,158.34",Feb-23
Slough Borough Council,807082,Simone Surveys Limited,P209,Capital,Capital Charges,"3,178.60",Feb-23
Slough Borough Council,804922,SIMPSON ENVIRONMENTAL SERVICE LTD,B082,Place Strategy & Infrastructure,Premises,"4,755.00",Feb-23
Slough Borough Council,808698,SKB INVESTMENTS LTD,H205,Housing (People) Services,Supplies and Services,"1,705.00",Feb-23
Slough Borough Council,808709,SKHH LIMITED,H205,Housing (People) Services,Supplies and Services,"1,705.00",Feb-23
Slough Borough Council,808529,Slatter Cricket & Play Ltd,B179,Business Services,Premises,547.50,Feb-23
Slough Borough Council,472,Slough & Eton C.E.School,B297,Finance & Commercial,Government Grants,"5,130.00",Feb-23
Slough Borough Council,1459,Slough And Eton C E School,E610,Children & Families,Supplies and Services,"24,500.00",Feb-23
Slough Borough Council,803795,Slough Centre Nursery School,F374,Children & Families,Supplies and Services,"1,605.90",Feb-23
Slough Borough Council,807834,Slough Children First,M99C,Children & Families,Supplies and Services,"1,786,000.00",Feb-23
Slough Borough Council,807834,Slough Children First,M99C,Children & Families,Supplies and Services,"2,619,512.80",Feb-23
Slough Borough Council,808680,SLOUGH CITY REAL ESTATE LTD,H205,Housing (People) Services,Supplies and Services,"86,913.00",Feb-23
Slough Borough Council,1913,Slough Crossroads Caring For Carers,M44C,Adult Social Care Operations,Supplies and Services,"1,120.00",Feb-23
Slough Borough Council,1913,Slough Crossroads Caring For Carers,M44E,Adult Social Care Operations,Supplies and Services,"1,040.00",Feb-23
Slough Borough Council,3503,Slough Day Nursery,F909,Children & Families,Supplies and Services,"3,010.95",Feb-23
Slough Borough Council,807348,Slough Town Centre BID,B012,Finance & Commercial,Government Grants,"59,329.25",Feb-23
Slough Borough Council,3011,Slough Urban Renewal Community Projects LLP,P575,Capital,Capital Charges,"26,348.89",Feb-23
Slough Borough Council,806733,Smart Move (Estate Agents UK) LTD,H205,Housing (People) Services,Supplies and Services,"1,705.00",Feb-23
Slough Borough Council,382,Softcat Plc,B342,Digital and Strategic IT,Supplies and Services,"1,200.00",Feb-23
Slough Borough Council,1228,Solace Enterprises Ltd,D003,Place Management,Agency Staff,"17,955.00",Feb-23
Slough Borough Council,114,Solutions 4 Health Ltd,A01P,Public Health,Supplies and Services,"229,057.81",Feb-23
Slough Borough Council,114,Solutions 4 Health Ltd,A01P,Public Health,Supplies and Services,"51,833.33",Feb-23
Slough Borough Council,808466,Somerset Council,F552,Children & Families,Supplies and Services,"12,065.83",Feb-23
Slough Borough Council,1598,Sorbon Estates Limited,H205,Housing (People) Services,Premises,"6,040.83",Feb-23
Slough Borough Council,808407,SOS Electricals & Services Ltd,P093,Capital,Capital Charges,"14,527.95",Feb-23
Slough Borough Council,807995,Sport4Kids,F382,Children & Families,Supplies and Services,-907.50,Feb-23
Slough Borough Council,807995,Sport4Kids,F382,Children & Families,Supplies and Services,"-1,361.25",Feb-23
Slough Borough Council,804781,Sports and Leisure Management Ltd,D309,Place Operations,Supplies and Services,"19,064.71",Feb-23
Slough Borough Council,808144,Sports Inc,F382,Children & Families,Supplies and Services,"1,097.87",Feb-23
Slough Borough Council,808144,Sports Inc,F382,Children & Families,Supplies and Services,"1,097.87",Feb-23
Slough Borough Council,803366,St Anthonys Catholic Primary School & Nursery,B297,Finance & Commercial,Government Grants,"2,310.00",Feb-23
Slough Borough Council,803165,St Anthony's Catholic Primary School & Nursery,E620,Children & Families,Supplies and Services,"17,125.54",Feb-23
Slough Borough Council,3383,St Bernards Catholic Grammar School,E550,Children & Families,Supplies and Services,"627,225.81",Feb-23
Slough Borough Council,3383,St Bernards Catholic Grammar School,B297,Finance & Commercial,Government Grants,"1,110.00",Feb-23
Slough Borough Council,2918,St Bernard'S Rc Preparatory School,F909,Children & Families,Supplies and Services,"11,351.76",Feb-23
Slough Borough Council,808813,St David's Home,M28C,Adult Social Care Operations,Supplies and Services,"4,285.71",Feb-23
Slough Borough Council,808813,St David's Home,M28C,Adult Social Care Operations,Supplies and Services,"6,642.86",Feb-23
Slough Borough Council,808813,St David's Home,M28C,Adult Social Care Operations,Supplies and Services,"6,642.86",Feb-23
Slough Borough Council,808813,St David's Home,M28C,Adult Social Care Operations,Supplies and Services,"6,000.00",Feb-23
Slough Borough Council,805366,St Edmund Campion Catholic Primary School,F552,Children & Families,Supplies and Services,"1,858.70",Feb-23
Slough Borough Council,808250,St Elizabeth's Centre,F558,Children & Families,Supplies and Services,"21,501.78",Feb-23
Slough Borough Council,808250,St Elizabeth's Centre,F558,Children & Families,Supplies and Services,"17,139.10",Feb-23
Slough Borough Council,3547,St Ethelberts School,E620,Children & Families,Supplies and Services,"11,406.18",Feb-23
Slough Borough Council,2634,St Marks Nursing Centre,M18C,Adult Social Care Operations,Supplies and Services,"4,766.53",Feb-23
Slough Borough Council,2634,St Marks Nursing Centre,M18C,Adult Social Care Operations,Supplies and Services,"4,925.41",Feb-23
Slough Borough Council,806584,St Mattews Ltd,M15F,Adult Social Care Operations,Supplies and Services,"3,700.00",Feb-23
Slough Borough Council,1445,Stallcombe House,M26E,Adult Social Care Operations,Supplies and Services,"5,922.00",Feb-23
Slough Borough Council,468,Stannah Lift Services Ltd,P006,Capital,Capital Charges,"2,971.00",Feb-23
Slough Borough Council,468,Stannah Lift Services Ltd,P006,Capital,Capital Charges,"6,860.00",Feb-23
Slough Borough Council,468,Stannah Lift Services Ltd,P006,Capital,Capital Charges,"6,136.00",Feb-23
Slough Borough Council,468,Stannah Lift Services Ltd,P006,Capital,Capital Charges,"3,694.00",Feb-23
Slough Borough Council,468,Stannah Lift Services Ltd,P006,Capital,Capital Charges,"3,021.00",Feb-23
Slough Borough Council,468,Stannah Lift Services Ltd,P006,Capital,Capital Charges,"6,014.00",Feb-23
Slough Borough Council,805206,Staysure Tyres Ltd,D750,Place Operations,Transport,545.00,Feb-23
Slough Borough Council,804910,Stennetts Limited,D630,Place Operations,Supplies and Services,"5,070.00",Feb-23
Slough Borough Council,804910,Stennetts Limited,D750,Place Operations,Supplies and Services,"1,000.00",Feb-23
Slough Borough Council,804910,Stennetts Limited,D880,Place Operations,Supplies and Services,"1,365.00",Feb-23
Slough Borough Council,806115,Stepping Stones,F909,Children & Families,Supplies and Services,621.50,Feb-23
Slough Borough Council,806522,Stewarts Coaches,D512,Place Strategy & Infrastructure,Supplies and Services,833.40,Feb-23
Slough Borough Council,806522,Stewarts Coaches,D512,Place Strategy & Infrastructure,Supplies and Services,611.16,Feb-23
Slough Borough Council,3151,Stillwater Associates Limited,D458,Place Strategy & Infrastructure,Supplies and Services,825.00,Feb-23
Slough Borough Council,804941,Storm Environmental Limited,D610,Place Operations,Supplies and Services,"19,687.40",Feb-23
Slough Borough Council,805181,Street Furnishings Ltd,D880,Place Operations,Supplies and Services,"1,233.48",Feb-23
Slough Borough Council,805181,Street Furnishings Ltd,D880,Place Operations,Supplies and Services,"3,155.00",Feb-23
Slough Borough Council,805181,Street Furnishings Ltd,D880,Place Operations,Supplies and Services,672.00,Feb-23
Slough Borough Council,807426,Sunfield Children's Home Ltd,F462,Children & Families,Supplies and Services,"6,666.67",Feb-23
Slough Borough Council,807426,Sunfield Children's Home Ltd,F462,Children & Families,Supplies and Services,"37,000.00",Feb-23
Slough Borough Council,808664,Sunspeed Transport Services Ltd,B342,Digital and Strategic IT,Capital Charges,"3,300.00",Feb-23
Slough Borough Council,808664,Sunspeed Transport Services Ltd,B342,Digital and Strategic IT,Capital Charges,"3,300.00",Feb-23
Slough Borough Council,293,Surecare Slough,M41D,Adult Social Care Operations,Supplies and Services,"2,469.60",Feb-23
Slough Borough Council,293,Surecare Slough,M44C,Adult Social Care Operations,Supplies and Services,"1,369.04",Feb-23
Slough Borough Council,293,Surecare Slough,M44C,Adult Social Care Operations,Supplies and Services,"1,439.29",Feb-23
Slough Borough Council,293,Surecare Slough,M44C,Adult Social Care Operations,Supplies and Services,874.48,Feb-23
Slough Borough Council,293,Surecare Slough,M44C,Adult Social Care Operations,Supplies and Services,967.91,Feb-23
Slough Borough Council,293,Surecare Slough,M44C,Adult Social Care Operations,Supplies and Services,"2,194.75",Feb-23
Slough Borough Council,293,Surecare Slough,M44C,Adult Social Care Operations,Supplies and Services,"2,406.60",Feb-23
Slough Borough Council,293,Surecare Slough,M44C,Adult Social Care Operations,Supplies and Services,"2,406.60",Feb-23
Slough Borough Council,293,Surecare Slough,M44C,Adult Social Care Operations,Supplies and Services,960.40,Feb-23
Slough Borough Council,293,Surecare Slough,M44C,Adult Social Care Operations,Supplies and Services,"1,230.22",Feb-23
Slough Borough Council,293,Surecare Slough,M44C,Adult Social Care Operations,Supplies and Services,"2,457.84",Feb-23
Slough Borough Council,293,Surecare Slough,M44C,Adult Social Care Operations,Supplies and Services,974.45,Feb-23
Slough Borough Council,293,Surecare Slough,M44C,Adult Social Care Operations,Supplies and Services,"2,488.56",Feb-23
Slough Borough Council,293,Surecare Slough,M44C,Adult Social Care Operations,Supplies and Services,"1,077.04",Feb-23
Slough Borough Council,293,Surecare Slough,M44C,Adult Social Care Operations,Supplies and Services,"1,280.99",Feb-23
Slough Borough Council,293,Surecare Slough,M44C,Adult Social Care Operations,Supplies and Services,"2,467.64",Feb-23
Slough Borough Council,293,Surecare Slough,M44C,Adult Social Care Operations,Supplies and Services,"1,233.50",Feb-23
Slough Borough Council,293,Surecare Slough,M44C,Adult Social Care Operations,Supplies and Services,"2,377.15",Feb-23
Slough Borough Council,293,Surecare Slough,M44C,Adult Social Care Operations,Supplies and Services,"1,424.28",Feb-23
Slough Borough Council,293,Surecare Slough,M44C,Adult Social Care Operations,Supplies and Services,937.20,Feb-23
Slough Borough Council,293,Surecare Slough,M44C,Adult Social Care Operations,Supplies and Services,"2,612.35",Feb-23
Slough Borough Council,293,Surecare Slough,M44D,Adult Social Care Operations,Supplies and Services,"2,578.20",Feb-23
Slough Borough Council,293,Surecare Slough,M44D,Adult Social Care Operations,Supplies and Services,871.22,Feb-23
Slough Borough Council,293,Surecare Slough,M44D,Adult Social Care Operations,Supplies and Services,"2,455.15",Feb-23
Slough Borough Council,293,Surecare Slough,M44D,Adult Social Care Operations,Supplies and Services,"1,226.63",Feb-23
Slough Borough Council,293,Surecare Slough,M44D,Adult Social Care Operations,Supplies and Services,884.11,Feb-23
Slough Borough Council,293,Surecare Slough,M44D,Adult Social Care Operations,Supplies and Services,671.95,Feb-23
Slough Borough Council,293,Surecare Slough,M44D,Adult Social Care Operations,Supplies and Services,"2,268.67",Feb-23
Slough Borough Council,293,Surecare Slough,M44E,Adult Social Care Operations,Supplies and Services,701.68,Feb-23
Slough Borough Council,293,Surecare Slough,M44F,Adult Social Care Operations,Supplies and Services,656.29,Feb-23
Slough Borough Council,293,Surecare Slough,M45C,Adult Social Care Operations,Supplies and Services,918.58,Feb-23
Slough Borough Council,293,Surecare Slough,M45C,Adult Social Care Operations,Supplies and Services,"1,180.90",Feb-23
Slough Borough Council,293,Surecare Slough,M48C,Adult Social Care Operations,Supplies and Services,"2,737.39",Feb-23
Slough Borough Council,293,Surecare Slough,M48C,Adult Social Care Operations,Supplies and Services,"2,967.36",Feb-23
Slough Borough Council,293,Surecare Slough,M48C,Adult Social Care Operations,Supplies and Services,"1,408.27",Feb-23
Slough Borough Council,804547,System Simulation,C104,Community,Supplies and Services,"1,500.00",Feb-23
Slough Borough Council,804906,T H White Limited,P178,Capital,Capital Charges,"26,018.00",Feb-23
Slough Borough Council,3369,Teeny Boppers Montessori School,F909,Children & Families,Supplies and Services,"8,354.28",Feb-23
Slough Borough Council,1596,Teleshore (Uk) Limited,D320,Place Operations,Supplies and Services,"2,163.00",Feb-23
Slough Borough Council,803382,Telford & Wrekin Council,F123,Education & Inclusion,Supplies and Services,"4,026.00",Feb-23
Slough Borough Council,807803,Telsolutions Ltd,H015,Finance & Commercial,Supplies and Services,500.00,Feb-23
Slough Borough Council,804594,Thames Valley AMHP Refresher Consortium,B409,Customer,Supplies and Services,680.00,Feb-23
Slough Borough Council,807878,Thames Valley Buses,F123,Education & Inclusion,Supplies and Services,"1,009.80",Feb-23
Slough Borough Council,807878,Thames Valley Buses,D512,Place Strategy & Infrastructure,Supplies and Services,"6,911.55",Feb-23
Slough Borough Council,807878,Thames Valley Buses,D512,Place Strategy & Infrastructure,Supplies and Services,"6,911.55",Feb-23
Slough Borough Council,807878,Thames Valley Buses,D512,Place Strategy & Infrastructure,Supplies and Services,"6,911.55",Feb-23
Slough Borough Council,807878,Thames Valley Buses,D512,Place Strategy & Infrastructure,Supplies and Services,"11,869.38",Feb-23
Slough Borough Council,807878,Thames Valley Buses,D512,Place Strategy & Infrastructure,Supplies and Services,"1,550.98",Feb-23
Slough Borough Council,807878,Thames Valley Buses,D512,Place Strategy & Infrastructure,Supplies and Services,"13,210.91",Feb-23
Slough Borough Council,807878,Thames Valley Buses,D512,Place Strategy & Infrastructure,Supplies and Services,"1,685.08",Feb-23
Slough Borough Council,807878,Thames Valley Buses,D512,Place Strategy & Infrastructure,Supplies and Services,"11,669.15",Feb-23
Slough Borough Council,717,Thames Water Utilities Limited,J015,Place Management,Premises,"3,683.37",Feb-23
Slough Borough Council,803774,The Abbeyfield Maidenhead Society Ltd,M27C,Adult Social Care Operations,Supplies and Services,"3,484.52",Feb-23
Slough Borough Council,808451,The Address Management,H205,Housing (People) Services,Supplies and Services,"10,485.00",Feb-23
Slough Borough Council,808451,The Address Management,H205,Housing (People) Services,Supplies and Services,"27,640.00",Feb-23
Slough Borough Council,805247,The Eden Academy T/A Pentland Field School,F551,Children & Families,Supplies and Services,"41,498.63",Feb-23
Slough Borough Council,805247,The Eden Academy T/A Pentland Field School,F551,Children & Families,Supplies and Services,"33,090.40",Feb-23
Slough Borough Council,805247,The Eden Academy T/A Pentland Field School,F551,Children & Families,Supplies and Services,"24,410.97",Feb-23
Slough Borough Council,653,The Godolphin Junior Academy,E620,Children & Families,Supplies and Services,"9,375.00",Feb-23
Slough Borough Council,653,The Godolphin Junior Academy,B297,Finance & Commercial,Government Grants,"2,610.00",Feb-23
Slough Borough Council,1852,The Knowledge Academy,B409,Customer,Indirect Employee Expenses,"3,850.00",Feb-23
Slough Borough Council,1385,The Langley Academy,E610,Children & Families,Supplies and Services,"15,958.33",Feb-23
Slough Borough Council,803300,The Langley Academy Primary,E610,Children & Families,Supplies and Services,"23,135.00",Feb-23
Slough Borough Council,806847,The Langley Heritage Primary Academy,E620,Children & Families,Supplies and Services,"20,326.67",Feb-23
Slough Borough Council,806847,The Langley Heritage Primary Academy,B297,Finance & Commercial,Government Grants,"1,665.00",Feb-23
Slough Borough Council,805400,The Leading Care Company,M44C,Adult Social Care Operations,Supplies and Services,622.48,Feb-23
Slough Borough Council,805400,The Leading Care Company,M44C,Adult Social Care Operations,Supplies and Services,747.60,Feb-23
Slough Borough Council,805400,The Leading Care Company,M44C,Adult Social Care Operations,Supplies and Services,"1,188.97",Feb-23
Slough Borough Council,805400,The Leading Care Company,M44C,Adult Social Care Operations,Supplies and Services,"1,898.37",Feb-23
Slough Borough Council,805400,The Leading Care Company,M44C,Adult Social Care Operations,Supplies and Services,737.00,Feb-23
Slough Borough Council,805400,The Leading Care Company,M44D,Adult Social Care Operations,Supplies and Services,"1,059.98",Feb-23
Slough Borough Council,805400,The Leading Care Company,M44D,Adult Social Care Operations,Supplies and Services,"2,510.82",Feb-23
Slough Borough Council,805400,The Leading Care Company,M48C,Adult Social Care Operations,Supplies and Services,"3,800.16",Feb-23
Slough Borough Council,3116,The Oratory Montessori Day Nursery,F909,Children & Families,Supplies and Services,"13,699.58",Feb-23
Slough Borough Council,803338,The Owl Centre,F417,Education & Inclusion,Supplies and Services,"1,508.40",Feb-23
Slough Borough Council,807439,The Pines,M26E,Adult Social Care Operations,Supplies and Services,"4,974.17",Feb-23
Slough Borough Council,807439,The Pines,M26E,Adult Social Care Operations,Supplies and Services,"2,763.09",Feb-23
Slough Borough Council,807439,The Pines,M27F,Adult Social Care Operations,Supplies and Services,"7,468.00",Feb-23
Slough Borough Council,807439,The Pines,M27F,Adult Social Care Operations,Supplies and Services,"8,268.14",Feb-23
Slough Borough Council,807439,The Pines,M27F,Adult Social Care Operations,Supplies and Services,"8,267.76",Feb-23
Slough Borough Council,807988,The Sports Collective,F382,Children & Families,Supplies and Services,"4,500.00",Feb-23
Slough Borough Council,821,The Westgate School,E610,Children & Families,Supplies and Services,"25,208.34",Feb-23
Slough Borough Council,821,The Westgate School,B297,Finance & Commercial,Government Grants,"6,639.75",Feb-23
Slough Borough Council,821,The Westgate School,B297,Finance & Commercial,Government Grants,"3,261.37",Feb-23
Slough Borough Council,821,The Westgate School,B297,Finance & Commercial,Government Grants,"3,627.00",Feb-23
Slough Borough Council,808553,Theori Housing Management Services Ltd,H205,Housing (People) Services,Supplies and Services,840.00,Feb-23
Slough Borough Council,808553,Theori Housing Management Services Ltd,H205,Housing (People) Services,Supplies and Services,868.00,Feb-23
Slough Borough Council,805915,Time 4 U Limited,M44F,Adult Social Care Operations,Supplies and Services,"3,139.05",Feb-23
Slough Borough Council,805915,Time 4 U Limited,M44F,Adult Social Care Operations,Supplies and Services,"3,139.05",Feb-23
Slough Borough Council,806360,Tiny Turtles Daycare Nursery Ltd,F549,Children & Families,Supplies and Services,"4,260.00",Feb-23
Slough Borough Council,806360,Tiny Turtles Daycare Nursery Ltd,F909,Children & Families,Supplies and Services,"14,977.65",Feb-23
Slough Borough Council,805506,TKF Training,D900,Place Operations,Indirect Employee Expenses,"2,360.00",Feb-23
Slough Borough Council,805506,TKF Training,D900,Place Operations,Indirect Employee Expenses,"2,060.00",Feb-23
Slough Borough Council,805506,TKF Training,D900,Place Operations,Indirect Employee Expenses,800.00,Feb-23
Slough Borough Council,805506,TKF Training,D900,Place Operations,Indirect Employee Expenses,"2,060.00",Feb-23
Slough Borough Council,805506,TKF Training,D900,Place Operations,Indirect Employee Expenses,640.00,Feb-23
Slough Borough Council,805506,TKF Training,D900,Place Operations,Indirect Employee Expenses,"1,030.00",Feb-23
Slough Borough Council,805506,TKF Training,D900,Place Operations,Indirect Employee Expenses,"2,060.00",Feb-23
Slough Borough Council,805506,TKF Training,D900,Place Operations,Indirect Employee Expenses,640.00,Feb-23
Slough Borough Council,803194,TMP Worldwide,B348,People,Indirect Employee Expenses,557.10,Feb-23
Slough Borough Council,803194,TMP Worldwide,B348,People,Indirect Employee Expenses,"1,474.00",Feb-23
Slough Borough Council,803194,TMP Worldwide,B348,People,Indirect Employee Expenses,"2,060.55",Feb-23
Slough Borough Council,803194,TMP Worldwide,B348,People,Indirect Employee Expenses,750.00,Feb-23
Slough Borough Council,803194,TMP Worldwide,B348,People,Indirect Employee Expenses,"2,405.55",Feb-23
Slough Borough Council,803194,TMP Worldwide,B348,People,Indirect Employee Expenses,"2,610.55",Feb-23
Slough Borough Council,803194,TMP Worldwide,B348,People,Indirect Employee Expenses,"1,615.05",Feb-23
Slough Borough Council,803194,TMP Worldwide,B348,People,Indirect Employee Expenses,"1,500.00",Feb-23
Slough Borough Council,803194,TMP Worldwide,B348,People,Indirect Employee Expenses,"4,811.10",Feb-23
Slough Borough Council,803194,TMP Worldwide,B348,People,Indirect Employee Expenses,"14,896.41",Feb-23
Slough Borough Council,803194,TMP Worldwide,B348,People,Indirect Employee Expenses,625.95,Feb-23
Slough Borough Council,2203,Toby Miller,C322,Community,Supplies and Services,503.75,Feb-23
Slough Borough Council,1782,Top Mill Ltd,H205,Housing (People) Services,Supplies and Services,"1,120.00",Feb-23
Slough Borough Council,1782,Top Mill Ltd,H205,Housing (People) Services,Supplies and Services,840.00,Feb-23
Slough Borough Council,1782,Top Mill Ltd,H205,Housing (People) Services,Supplies and Services,840.00,Feb-23
Slough Borough Council,3005,Topmark Claims Management Ltd,B018,Finance & Commercial,Supplies and Services,"5,605.00",Feb-23
Slough Borough Council,807871,Total Pest Control (UK) Limited,B175,Business Services,Premises,576.00,Feb-23
Slough Borough Council,2432,Tracsis Traffic Data Limited,P579,Capital,Capital Charges,"4,675.00",Feb-23
Slough Borough Council,1476,Transport For London - London Buses,D512,Place Strategy & Infrastructure,Supplies and Services,"7,184.21",Feb-23
Slough Borough Council,2889,Tudor (UK) Ltd t/a Tudor Environmental,D750,Place Operations,Supplies and Services,"6,209.33",Feb-23
Slough Borough Council,2889,Tudor (UK) Ltd t/a Tudor Environmental,D750,Place Operations,Supplies and Services,610.54,Feb-23
Slough Borough Council,2889,Tudor (UK) Ltd t/a Tudor Environmental,D750,Place Operations,Supplies and Services,"2,034.60",Feb-23
Slough Borough Council,2889,Tudor (UK) Ltd t/a Tudor Environmental,D750,Place Operations,Supplies and Services,"2,268.00",Feb-23
Slough Borough Council,2889,Tudor (UK) Ltd t/a Tudor Environmental,D750,Place Operations,Supplies and Services,554.99,Feb-23
Slough Borough Council,2889,Tudor (UK) Ltd t/a Tudor Environmental,D750,Place Operations,Supplies and Services,547.27,Feb-23
Slough Borough Council,1520,Upper Street Events Ltd,C322,Community,Supplies and Services,858.50,Feb-23
Slough Borough Council,1520,Upper Street Events Ltd,C322,Community,Supplies and Services,"6,835.50",Feb-23
Slough Borough Council,3953,Upton Court Grammar School,E610,Children & Families,Supplies and Services,"2,500.00",Feb-23
Slough Borough Council,577,Upton Park Hotel,H205,Housing (People) Services,Supplies and Services,784.00,Feb-23
Slough Borough Council,577,Upton Park Hotel,H205,Housing (People) Services,Supplies and Services,784.00,Feb-23
Slough Borough Council,577,Upton Park Hotel,H205,Housing (People) Services,Supplies and Services,784.00,Feb-23
Slough Borough Council,577,Upton Park Hotel,H205,Housing (People) Services,Supplies and Services,"1,248.00",Feb-23
Slough Borough Council,577,Upton Park Hotel,H205,Housing (People) Services,Supplies and Services,784.00,Feb-23
Slough Borough Council,577,Upton Park Hotel,H205,Housing (People) Services,Supplies and Services,784.00,Feb-23
Slough Borough Council,577,Upton Park Hotel,H205,Housing (People) Services,Supplies and Services,784.00,Feb-23
Slough Borough Council,577,Upton Park Hotel,H205,Housing (People) Services,Supplies and Services,784.00,Feb-23
Slough Borough Council,577,Upton Park Hotel,H205,Housing (People) Services,Supplies and Services,784.00,Feb-23
Slough Borough Council,577,Upton Park Hotel,H205,Housing (People) Services,Supplies and Services,784.00,Feb-23
Slough Borough Council,577,Upton Park Hotel,H205,Housing (People) Services,Supplies and Services,784.00,Feb-23
Slough Borough Council,577,Upton Park Hotel,H205,Housing (People) Services,Supplies and Services,784.00,Feb-23
Slough Borough Council,577,Upton Park Hotel,H205,Housing (People) Services,Supplies and Services,784.00,Feb-23
Slough Borough Council,577,Upton Park Hotel,H205,Housing (People) Services,Supplies and Services,"1,248.00",Feb-23
Slough Borough Council,577,Upton Park Hotel,H205,Housing (People) Services,Supplies and Services,784.00,Feb-23
Slough Borough Council,577,Upton Park Hotel,H205,Housing (People) Services,Supplies and Services,784.00,Feb-23
Slough Borough Council,577,Upton Park Hotel,H205,Housing (People) Services,Supplies and Services,784.00,Feb-23
Slough Borough Council,577,Upton Park Hotel,H205,Housing (People) Services,Supplies and Services,784.00,Feb-23
Slough Borough Council,577,Upton Park Hotel,H205,Housing (People) Services,Supplies and Services,784.00,Feb-23
Slough Borough Council,577,Upton Park Hotel,H205,Housing (People) Services,Supplies and Services,784.00,Feb-23
Slough Borough Council,577,Upton Park Hotel,H205,Housing (People) Services,Supplies and Services,784.00,Feb-23
Slough Borough Council,577,Upton Park Hotel,H205,Housing (People) Services,Supplies and Services,784.00,Feb-23
Slough Borough Council,577,Upton Park Hotel,H205,Housing (People) Services,Supplies and Services,864.00,Feb-23
Slough Borough Council,577,Upton Park Hotel,H205,Housing (People) Services,Supplies and Services,784.00,Feb-23
Slough Borough Council,577,Upton Park Hotel,H205,Housing (People) Services,Supplies and Services,864.00,Feb-23
Slough Borough Council,577,Upton Park Hotel,H205,Housing (People) Services,Supplies and Services,784.00,Feb-23
Slough Borough Council,577,Upton Park Hotel,H205,Housing (People) Services,Supplies and Services,785.28,Feb-23
Slough Borough Council,577,Upton Park Hotel,H205,Housing (People) Services,Supplies and Services,784.00,Feb-23
Slough Borough Council,577,Upton Park Hotel,H205,Housing (People) Services,Supplies and Services,784.00,Feb-23
Slough Borough Council,577,Upton Park Hotel,H205,Housing (People) Services,Supplies and Services,784.00,Feb-23
Slough Borough Council,577,Upton Park Hotel,H205,Housing (People) Services,Supplies and Services,784.00,Feb-23
Slough Borough Council,577,Upton Park Hotel,H205,Housing (People) Services,Supplies and Services,784.00,Feb-23
Slough Borough Council,577,Upton Park Hotel,H205,Housing (People) Services,Supplies and Services,784.00,Feb-23
Slough Borough Council,577,Upton Park Hotel,H205,Housing (People) Services,Supplies and Services,784.00,Feb-23
Slough Borough Council,577,Upton Park Hotel,H205,Housing (People) Services,Supplies and Services,784.00,Feb-23
Slough Borough Council,577,Upton Park Hotel,H205,Housing (People) Services,Supplies and Services,784.00,Feb-23
Slough Borough Council,577,Upton Park Hotel,H205,Housing (People) Services,Supplies and Services,"2,400.00",Feb-23
Slough Borough Council,577,Upton Park Hotel,H205,Housing (People) Services,Supplies and Services,784.00,Feb-23
Slough Borough Council,577,Upton Park Hotel,H205,Housing (People) Services,Supplies and Services,"1,056.00",Feb-23
Slough Borough Council,577,Upton Park Hotel,H205,Housing (People) Services,Supplies and Services,784.00,Feb-23
Slough Borough Council,577,Upton Park Hotel,H205,Housing (People) Services,Supplies and Services,784.00,Feb-23
Slough Borough Council,577,Upton Park Hotel,H205,Housing (People) Services,Supplies and Services,784.00,Feb-23
Slough Borough Council,577,Upton Park Hotel,H205,Housing (People) Services,Supplies and Services,784.00,Feb-23
Slough Borough Council,577,Upton Park Hotel,H205,Housing (People) Services,Supplies and Services,784.00,Feb-23
Slough Borough Council,577,Upton Park Hotel,H205,Housing (People) Services,Supplies and Services,"2,400.00",Feb-23
Slough Borough Council,577,Upton Park Hotel,H205,Housing (People) Services,Supplies and Services,784.00,Feb-23
Slough Borough Council,577,Upton Park Hotel,H205,Housing (People) Services,Supplies and Services,784.00,Feb-23
Slough Borough Council,577,Upton Park Hotel,H205,Housing (People) Services,Supplies and Services,784.00,Feb-23
Slough Borough Council,577,Upton Park Hotel,H205,Housing (People) Services,Supplies and Services,784.00,Feb-23
Slough Borough Council,577,Upton Park Hotel,H205,Housing (People) Services,Supplies and Services,784.00,Feb-23
Slough Borough Council,577,Upton Park Hotel,H205,Housing (People) Services,Supplies and Services,"2,400.00",Feb-23
Slough Borough Council,577,Upton Park Hotel,H205,Housing (People) Services,Supplies and Services,784.00,Feb-23
Slough Borough Council,577,Upton Park Hotel,H205,Housing (People) Services,Supplies and Services,784.00,Feb-23
Slough Borough Council,577,Upton Park Hotel,H205,Housing (People) Services,Supplies and Services,784.00,Feb-23
Slough Borough Council,577,Upton Park Hotel,H205,Housing (People) Services,Supplies and Services,784.00,Feb-23
Slough Borough Council,577,Upton Park Hotel,H205,Housing (People) Services,Supplies and Services,784.00,Feb-23
Slough Borough Council,808521,VAROSI ESTATES LIMITED,H205,Housing (People) Services,Supplies and Services,"3,100.00",Feb-23
Slough Borough Council,1212,Virgin Media Ltd,B023,Finance & Commercial,Supplies and Services,"7,895.43",Feb-23
Slough Borough Council,1212,Virgin Media Ltd,B023,Finance & Commercial,Supplies and Services,772.59,Feb-23
Slough Borough Council,1212,Virgin Media Ltd,B023,Finance & Commercial,Supplies and Services,"18,372.65",Feb-23
Slough Borough Council,1212,Virgin Media Ltd,B023,Finance & Commercial,Supplies and Services,"17,754.43",Feb-23
Slough Borough Council,803493,VISAV Limited,B252,Business Services,Supplies and Services,"1,026.00",Feb-23
Slough Borough Council,807617,Vivedia Ltd t/a Obitus,D320,Place Operations,External Receipts,"1,955.00",Feb-23
Slough Borough Council,803163,Volker Highways,D413,Place Strategy & Infrastructure,Supplies and Services,"5,092.66",Feb-23
Slough Borough Council,2682,Voyage 1 Limited,M26E,Adult Social Care Operations,Supplies and Services,548.36,Feb-23
Slough Borough Council,2682,Voyage 1 Limited,M26E,Adult Social Care Operations,Supplies and Services,"4,947.80",Feb-23
Slough Borough Council,2682,Voyage 1 Limited,M26E,Adult Social Care Operations,External Receipts,-654.88,Feb-23
Slough Borough Council,2682,Voyage 1 Limited,M26E,Adult Social Care Operations,External Receipts,-695.06,Feb-23
Slough Borough Council,3436,Voyage Ltd,M26E,Adult Social Care Operations,Supplies and Services,"5,169.72",Feb-23
Slough Borough Council,3436,Voyage Ltd,M26E,Adult Social Care Operations,Supplies and Services,"3,229.92",Feb-23
Slough Borough Council,3436,Voyage Ltd,M42E,Adult Social Care Operations,Supplies and Services,"4,672.66",Feb-23
Slough Borough Council,3436,Voyage Ltd,M42E,Adult Social Care Operations,Supplies and Services,"5,981.28",Feb-23
Slough Borough Council,3436,Voyage Ltd,M42E,Adult Social Care Operations,Supplies and Services,"5,830.23",Feb-23
Slough Borough Council,3436,Voyage Ltd,M42E,Adult Social Care Operations,Supplies and Services,"5,654.50",Feb-23
Slough Borough Council,3436,Voyage Ltd,M42E,Adult Social Care Operations,Supplies and Services,"5,685.42",Feb-23
Slough Borough Council,2906,Wandsworth Council,F551,Children & Families,Supplies and Services,"14,360.07",Feb-23
Slough Borough Council,808416,WATERMELON PROPERTIES LIMITED,H205,Housing (People) Services,Supplies and Services,"1,860.00",Feb-23
Slough Borough Council,1762,Wellingtons For Langley Hall,F909,Children & Families,Supplies and Services,570.00,Feb-23
Slough Borough Council,806685,West London College,F558,Children & Families,Supplies and Services,"35,204.00",Feb-23
Slough Borough Council,1749,West London Ymca,H205,Housing (People) Services,Supplies and Services,"3,050.00",Feb-23
